Workbook

Sheet LÉEME
D11: Hoja Léeme
D16: INVIERTE – Herramienta de cálculo de amortización
D18: Introducción
D19: Esta herramienta permite hacer una evaluación comparativa entre ingresos y tres opciones de bombeo para riego diferentes. La información necesaria para utilizar esta herramienta incluye los costos de inversión y operativos de los diferentes sistemas de bombeo, los ingresos que se esperan obtener de la producción agrícola y las condiciones económicas básicas que se prevén (p. ej. tasa de inflación). Está disponible una herramienta alternativa en:
D26: http://www.fao.org/energy/agrifood-chains/power-irrigation-tool/en/
D27: Consejos y trucos
D38: Sinopsis
D39: Esta herramienta incluye las siguientes hojas:
D41: 1. Entradas | G41: para introducir datos de ingresos y gastos previstos en relación con la tecnología de riego
D44: 2. Resultados | G44: para analizar los resultados generados automáticamente desde la hoja de entradas
D46: 3. Traducción | G46: para traducir palabras claves
D48: Acerca de
D49: Publicado por: | F49: GIZ y FAO
D50: Responsable: | F50: Proyecto de la GIZ Sustainable Energy for Food – Powering Agriculture
D52: Contacto: | F52: Powering.Agriculture@giz.de
D53: Enlace descarga: | F53: https://energypedia.info/wiki/Toolbox_on_SPIS
D54: Acerca de: | F54: Powering Agriculture: An Energy Grand Challenge for Development. Disponible en:
F56: https://poweringag.org
D57: Versión: | F57: 1.2 (julio de 2018)
D59: La publicación de la Caja de herramientas de sistemas de riego solar ha sido posible gracias al apoyo brindado por la iniciativa mundial Powering Agriculture: An Energy Grand Challenge for Development (PAEGC) (Energización Rural: Un gran desafío energético para el desarrollo). En 2012, la Agencia de los Estados Unidos para el Desarrollo Internacional (USAID), la Agencia Sueca de Cooperación Internacional para el Desarrollo (Sida), el Ministerio Federal de Cooperación Económica y Desarrollo (BMZ) de Alemania, la empresa de energía Duke Energy Corporation y la Corporación de Inversiones Privadas en el Extranjero (OPIC) juntaron recursos para crear la iniciativa PAEGC. El objetivo de PAEGC es fomentar nuevos enfoques sostenibles con el fin de acelerar el desarrollo y asegurar el establecimiento de energías limpias que incrementen la productividad y/o el valor de la agricultura en países en desarrollo y regiones emergentes sin acceso a fuentes de energía confiables, asequibles y limpias.
D71: Las denominaciones empleadas y la presentación del material en este producto informativo no implican juicio alguno por parte de la Deutsche Gesellschaft für Internationale Zusammenarbeit (GIZ) GmbH, la Organización de las Naciones Unidas para la Alimentación y la Agricultura (FAO), o los socios fundadores de la iniciativa PAEGC, sobre la condición jurídica o el grado de desarrollo de ninguno de los países, territorios, ciudades o zonas citados o de sus autoridades, ni respecto de la delimitación de sus fronteras o límites. La mención de empresas o productos de fabricantes en particular, estén o no patentados, no implica que la GIZ, la FAO o alguno de los socios fundadores de la iniciativa PAEGC los aprueben o recomienden, dándoles preferencia sobre otros de naturaleza similar que no se mencionan. Las opiniones expresadas en este producto informativo son las de su(s) autor(es) o autora(s), y no reflejan necesariamente los puntos de vista o las políticas de la GIZ, la FAO o ninguno de los socios fundadores de la iniciativa PAEGC.
D84: La GIZ, la FAO y los socios fundadores de la iniciativa PAEGC fomentan la utilización, la reproducción y la difusión del material presentado en este producto informativo. A menos que se indique lo contrario, el material puede ser copiado, descargado e impreso con fines de estudio privado, enseñanza e investigación científica, o para su utilización en productos o servicios no comerciales, siempre que se otorgue a la GIZ y la FAO el debido reconocimiento como fuentes y como titulares de los derechos de autor.
D91: © GIZ and FAO, 2017

Sheet Entradas
B1: INVIERTE – Herramienta de cálculo de amortización
B3: Esta hoja de ENTRADAS requiere la introducción de valores mediante los que se obtendrán los resultados mostrados en la siguiente hoja de RESULTADOS.
B6: Supuestos básicos
B8: Moneda utilizada para el cálculo: | E8: € | F8: usar cualquier moneda
B10: Inflación | E10: 0.06 | F10: la tasa porcentual nacional de devaluación del dinero por año (recabada de las estadísticas nacionales)
B12: Tasa de descuento | E12: 0.04 | F12: la tasa anual utilizada para determinar el valor actual de futuros flujos de efectivo (truco: la tasa de descuento simplificada suele ser igual al tipo de interés devengado por las cuentas de ahorro bancario o bonos del tesoro)
B14: Aumento del margen de beneficio anual | E14: 0.03 | F14: la tasa con la que el agricultor aumentará los precios cada año (calculada según los
B16: Aumento anual del precio del combustible | E16: 0.08 | F16: la tasa con la que aumentará el precio del combustible (gasóleo, gasolina o GLP) cada año (según lo indicado por la autoridad reguladora nacional o a partir de las estadísticas nacionales sobre energía)
B18: Aumento anual del precio de la electricidad | E18: 0.06 | F18: la tasa con la que aumentarán los precios del suministro eléctrico cada año (indicada por la autoridad reguladora nacional o la empresa de suministro eléctrico)
B20: Tasa de agua (recargo por derechos de utilización del agua) | E20: 2 | F20: =E8 & " por m³" -> € por m³ | G20: el precio del agua por m³, determinado por el gobierno o la autoridad local, para utilizar los recursos hídricos compartidos con los propios sistemas de bombeo
B22: Total de agua bombeada por día | E22: 50 | F22: m³ por día | G22: conforme a los cálculos de SALVAGUARDA EL AGUA – Herramienta de Estimación de las Necesidades de Agua o a lo indicado por el proveedor de la bomba
B24: Ingresos: Beneficio bruto de la explotación por año | E24: 17000 | F24: =E8 &" por año" -> € por año | G24: conforme a los cálculos de INVIERTE - Herramienta de Cálculo del Balance Económico o a partir de los propios registros
B26: Porcentaje de beneficio a invertir | E26: 0.5 | F26: % de beneficio disponible para invertir en sistema de bombeo de agua
B30: Supuestos de costo para: | D30: Sistema de riego con energía solar
E33: ="Precio en "& E8 -> Precio en € | G33: Vida útil de componentes
C34: Paneles solares | E34: 15000 | F34: =IF($E$8="","",$E$8) -> € | G34: 20 | H34: Años
C35: Estructura de montaje | F35: € | H35: Años
C36: Unidad de control | E36: 5000 | F36: € | G36: 10 | H36: Años
B37: Costos de capital inicial | C37: Bomba | E37: 7000 | F37: € | G37: 10 | H37: Años
C38: Cables/tubos | F38: € | H38: Años
C39: Almacenamiento de agua | F39: =IF($E$8="","",$E$8) -> € | H39: Años
C40: Sistema de riego | F40: € | H40: Años
C41: Perforación | F41: €
C42: Instalación | F42: € | G42: Subsidio
C43: Otros costos | F43: € | G43: Importe de subsidio en los costos de capital | K43: =IF($E$8="","",$E$8) -> €
C44: Total de costos | E44: =SUM(E34:E43)-J43 -> 27000 | F44: €
B47: Costos | C47: Costos de mantenimiento por año: | E47: 100 | F47: =IF($E$8="","",$E$8) -> €
B48: corrientes | C48: Costos operativos por año: | F48: =IF($E$8="","",$E$8) -> €
C50: Total de costos por año: | E50: =SUM(E46:E48) -> 100 | F50: =IF($E$8="","",$E$8) -> €
C53: Importe préstamo | E53: 20000 | F53: =IF($E$8="","",$E$8) -> €
B54: Préstamo | C54: Tasa de interés | E54: 0.06
C55: Período de inversión | E55: 10 | F55: Años
C56: Nombre de entidad bancaria | E56: AgriBank
B60: Supuestos de costo para: | D60: Sistema de riego conectado a la red eléctrica
J62: Emisiones de CO2 por año:
E63: ="Precio en "& E8 -> Precio en € | G63: Vida útil de componentes | J63: =J66*J83 -> 1792.8 | K63: kg/año
C64: Inversor (si la bomba es CC) | F64: =IF($E$8="","",$E$8) -> € | H64: Años | I64: Factor de emisiones:
C65: Unidad de control | E65: 3000 | F65: € | G65: 7 | H65: Años | I65: Agregar factor de emisiones de la red
B66: Costos de capital inicial | C66: Bomba | E66: 5000 | F66: € | G66: 7 | H66: Años | J66: 0.332 | K66: kgCO2/kWh
C67: Cables/tubos | F67: € | H67: Años | I67: Buscar factor de emisiones de diferentes países:
C68: Almacenamiento de agua | F68: =IF($E$8="","",$E$8) -> € | H68: Años | I68: https://ecometrica.com/assets/Electricity-specific-emission-factors-for-grid-electricity.pdf
C69: Sistema de riego | F69: € | H69: Años
C70: Perforación | F70: €
C71: Instalación | F71: € | G71: Subsidio
C72: Otros costos | F72: € | G72: Importe de subsidio en los costos de capital | K72: =IF($E$8="","",$E$8) -> €
C73: Total de costos | E73: =SUM(E64:E72)-J72 -> 8000 | F73: €
G76: Supuestos relativos a costos de conexión de la red eléctrica
C77: Costos de electricidad por año: | E77: =J86 -> 1410 | F77: =IF($E$8="","",$E$8) -> €
B78: Costos | C78: Costos de mantenimiento por año: | F78: =IF($E$8="","",$E$8) -> € | G78: Demanda de potencia de la bomba: | J78: 3 | K78: kW
B79: corrientes | C79: Costos operativos por año: | F79: =IF($E$8="","",$E$8) -> € | G79: Necesidades diarias de agua: | J79: =E22 -> 50 | K79: m³/día
G80: Volumen del flujo m³/hora: | J80: 5 | K80: m³/hora
C81: Total de costos por año: | E81: =SUM(E77:E79) -> 1410 | F81: =IF($E$8="","",$E$8) -> € | G81: kWh necesarios por día: | J81: =(J79/J80)*J78 -> 30 | K81: kWh
G82: Días de riego anuales: | J82: 180 | K82: días/año
G83: kWh necesarios por año: | J83: =J82*J81 -> 5400 | K83: kWh
G84: Costo kWh: | J84: 0.15 | K84: =IF($E$8="","",$E$8) & "/kWh" -> €/kWh
C85: Importe préstamo | F85: =IF($E$8="","",$E$8) -> € | G85: Tarifa básica de conexión al mes | J85: 50 | K85: =IF($E$8="","",$E$8) & "/mes" -> €/mes
B86: Préstamo | C86: Tasa de interés | G86: Costos de electricidad por año: | J86: =(J84*J83)+(J85*12) -> 1410 | K86: =IF($E$8="","",$E$8) -> €
C87: Período de inversión | F87: Años
C88: Nombre de entidad bancaria
B92: Supuestos de costo para: | D92: Sistema de riego con generador diésel
J94: Emisiones de CO2 por año:
E95: ="Price in "& E8 -> Price in € | G95: Component lifespan | I95: Gasóleo | J95: =VLOOKUP(I95,I97:J99,2,FALSE)*J115 -> 8464.05 | K95: kg/year
C96: Generador | E96: 2000 | F96: =IF($E$8="","",$E$8) -> € | G96: 7 | H96: Años | I96: Factor de emisiones:
B97: Costos de capital inicial | C97: Bomba | E97: 5000 | F97: € | G97: 7 | H97: Años | I97: Gasóleo | J97: 2.687 | K97: kg of CO2/litro
C98: Cables/tubos | F98: € | H98: Años | I98: Gasolina | J98: 2.31 | K98: kg of CO2/litro
C99: Almacenamiento de agua | F99: € | H99: Años | I99: GLP | J99: 1.52 | K99: kg of CO2/litro
C100: Sistema de riego | F100: € | H100: Años | I100: Fuente: | J100: https://www.gov.uk/government/publications/greenhouse-gas-reporting-conversion-factors-2018
C101: Perforación | F101: €
C102: Instalación | F102: €
C103: Otros costos | F103: €
C104: Total de costos | E104: =SUM(E94:E103) -> 7000 | F104: € | G104: Subsidio
G105: Importe de subsidio en los costos de capital | K105: =IF($E$8="","",$E$8) -> €
C108: Costos de combustible por año: | E108: =J117 -> 3780 | F108: =IF($E$8="","",$E$8) -> € | G108: Supuestos relativos a costos de combustible
B109: Costos | C109: Costos de mantenimiento por año: | F109: =IF($E$8="","",$E$8) -> €
B110: corrientes | C110: Costos operativos por año: | F110: =IF($E$8="","",$E$8) -> € | G110: Demanda de combustible de la bomba: | J110: 0.7 | K110: l/hora
G111: Necesidades diarias de agua: | J111: =E22 -> 50 | K111: m³/día
C112: Total de costos por año: | E112: =SUM(E108:E110) -> 3780 | F112: =IF($E$8="","",$E$8) -> € | G112: Volumen del flujo m³/hora: | J112: 2 | K112: m³/hora
G113: Combustible necesario por día: | J113: =(J111/J112)*J110 -> 17.5 | K113: l/día
G114: Días de riego anuales: | J114: 180 | K114: días/año
G115: Combustible necesario por año: | J115: =J114*J113 -> 3150 | K115: l/año
C116: Importe préstamo | F116: =IF($E$8="","",$E$8) -> € | G116: Costos combustible | J116: 1.2 | K116: =IF($E$8="","",$E$8) & "/l" -> €/l
B117: Préstamo | C117: Tasa de interés | G117: Costos de combustible por año: | J117: =J116*J115 -> 3780 | K117: =IF($E$8="","",$E$8) -> €
C118: Período de inversión | F118: Años
C119: Nombre de entidad bancaria

Sheet Resultados
I1: INVIERTE – Herramienta de cálculo de amortización
I3: Esta hoja de RESULTADOS resume los resultados obtenidos a partir de los valores introducidos en la hoja ENTRADAS completada anteriormente.
J5: Supuestos básicos
J7: Necesidad de agua total por día | M7: =Entradas!E22 & " m³ cada día" -> 50 m³ cada día | R7: Nota:
B8: Haga clic en el sistema que quiera eliminar del análisis | R8: Si aparece el mensaje “not feasable” en relación con la tasa interna de retorno (TIR), el valor de TIR es inferior a 0%.
J9: Total de ingresos por año | M9: =TEXT(Entradas!E24,"#.##0") &" " & Entradas!E8 -> 17000.0 € | N9: (en año 1)
J11: Cantidad total de la inversión por año | M11: =TEXT(Entradas!E24,"#.##0")*Entradas!E26 &" " & Entradas!E8 -> 8500 € | N11: (en año 1) | R11: Si se muestra un valor actual neto (VAN) negativo (-), entonces la inversión no es factible.
J13: Inflación | M13: =Entradas!E10 -> 0.06
R14: Si aparece el mensaje "no payback" en "Años para amortización" entonces los costos de capital y/o operativos superan los ingresos dentro de los 25 años.
J15: Tasa de descuento | M15: =Entradas!E12 -> 0.04
J17: Aumento del margen de beneficio anual | M17: =Entradas!E14 -> 0.03
J19: Aumento anual del precio del combustible | M19: =Entradas!E16 -> 0.08
B22: ="Análisis de " &Entradas!D30 -> Análisis de Sistema de riego con energía solar | J22: ="Análisis por " &Entradas!D60 -> Análisis por Sistema de riego conectado a la red eléctrica | R22: ="Análisis por " &Entradas!D92 -> Análisis por Sistema de riego con generador diésel
B24: Tasa interna de retorno (TIR) durante más de 25 años: | E24: =IFERROR('Cashflow Calculation'!C52,"not feasible") -> 0.22009127 | J24: Tasa interna de retorno (TIR) durante más de 25 años: | M24: =IFERROR('Cashflow Calculation'!C90,"not feasible") -> 0.8821485096 | R24: Tasa interna de retorno (TIR) durante más de 25 años: | U24: =IFERROR('Cashflow Calculation'!C156,"not feasible") -> 0.6061958228
B26: Valor actual neto (VAN): | E26: =TEXT('Cashflow Calculation'!C51,"#.##0") & " " &Entradas!E8 -> 632.744 € | J26: Valor actual neto (VAN): | M26: =TEXT('Cashflow Calculation'!C89,"#.##0") &" " &Entradas!E8 -> 1.011.367 € | R26: Valor actual neto (VAN): | U26: =TEXT('Cashflow Calculation'!C155,"#.##0") &" " &Entradas!E8 -> 192.344 €
B28: Flujo de efectivo acumulado tras el año 25: | E28: =TEXT('Cashflow Calculation'!S187,"#.##0") &" " &Entradas!E8 -> 139.661 € | J28: Flujo de efectivo acumulado tras el año 25: | M28: =TEXT('Cashflow Calculation'!S188,"#.##0") &" " &Entradas!E8 -> 164.732 € | R28: Flujo de efectivo acumulado tras el año 25: | U28: =TEXT('Cashflow Calculation'!S189,"#.##0") &" " &Entradas!E8 -> -26.085 €
B30: Costos del ciclo de vida del sistema (25 años): | E30: =TEXT('Cashflow Calculation'!B46,"#.##0") &" " &Entradas!E8 -> 170.243 € | J30: Costos del ciclo de vida del sistema (25 años): | M30: =TEXT('Cashflow Calculation'!B84,"#.##0") &" " &Entradas!E8 -> 145171.744 € | R30: Costos del ciclo de vida del sistema (25 años): | U30: =TEXT('Cashflow Calculation'!B150,"#.##0") &" " &Entradas!E8 -> 335989.138 €
B32: Años para amortización: | E32: ='Cashflow Calculation'!B44 -> 5 | J32: Años para amortización: | M32: ='Cashflow Calculation'!B82 -> 2 | R32: Años para amortización: | U32: ='Cashflow Calculation'!B148 -> no payback
B34: Banco de crédito: | E34: =IF(Entradas!E56=0,"",Entradas!E56) -> AgriBank | J34: Banco de crédito: | M34: =IF(Entradas!E88=0,"",Entradas!E88) ->  | R34: Banco de crédito: | U34: =IF(Entradas!E119=0,"",Entradas!E119) -> 
B36: Amortización del préstamo anual: | E36: =TEXT('Loan Repayment Solar'!Scheduled_Monthly_Payment,"#.##0") &" " &Entradas!E8 -> 2717.359 € | J36: Amortización del préstamo anual: | M36: =TEXT('Loan Repayment Grid'!Scheduled_Monthly_Payment,"#.##0") &" " &Entradas!E8 -> .0 € | R36: Amortización del préstamo anual: | U36: =TEXT('Loan Repayment Diesel'!Scheduled_Monthly_Payment,"#.##0") &" " &Entradas!E8 -> .0 €
J38: Emisiones de CO2 por año: | M38: =Entradas!J63 -> 1792.8 | N38: =Entradas!K63 -> kg/año | R38: Emisiones de CO2 por año: | U38: =Entradas!J95 -> 8464.05 | V38: =Entradas!K95 -> kg/year

Sheet Traducción
B1: English | F1: Français | J1: Español
B4: Sheet: Results | J4: Hoja: Resultados
B6: Years | J6: Años
B7: Capital Investment | J7: Inversión de capital
B9: Solar powered irrigation system costs | J9: Costos del sistema de riego con energía solar
B10: Grid powered irrigation system costs | J10: Costos del sistema de riego conectado a la red eléctrica
B11: Diesel powered irrigation system costs | J11: Costos del sistema de riego basado en gasóleo
B13: Click to remove from / add to analysis | J13: Haga clic para eliminar / agregar al análisis
B15: Comparative accumulated cash flow over first 10 years | J15: Flujo de efectivo acumulado comparado durante los primeros 10 años
B19: Average annual water cost | J19: Costo promedio del agua annual
B21: Comparative accumulated income and system costs over first 10 years | J21: Comparación de ingresos acumulados y costos del sistema durante los primeros 10 años

Sheet Cashflow Calculation (hidden)
A1: Annual profit margin increase: | B1: =Entradas!E14 -> 0.03
A2: Inflation rate: | B2: =Entradas!E10 -> 0.06
A3: Income-Gross farm profit/year: | B3: =Entradas!E24 -> 17000 | C3: =IF(Entradas!$E$8="","",Entradas!$E$8) -> €
A4: Percentage profit to invest | B4: =Entradas!E26 -> 0.5
A5: Fuel price increase/year: | B5: =Entradas!E16 -> 0.08
A6: Electricity price increase/year: | B6: =Entradas!E18 -> 0.06
A7: Discount rate | B7: =Entradas!E12 -> 0.04
A8: Water levy | B8: =Entradas!E20 -> 2 | C8: =IF(Entradas!$E$8="","",Entradas!$E$8) -> €
A9: Total water need per day | B9: =Entradas!E22 -> 50 | C9: =Entradas!F22 -> m³ por día
C11: year | D11: 0 | E11: 1 | F11: 2 | G11: 3 | H11: 4 | I11: 5 | J11: 6 | K11: 7 | L11: 8 | M11: 9 | N11: 10 | O11: 11 | P11: 12 | Q11: 13 | R11: 14 | S11: 15 | T11: 16 | U11: 17 | V11: 18 | W11: 19 | X11: 20 | Y11: 21 | Z11: 22 | AA11: 23 | AB11: 24 | AC11: 25
C12: =IF(Entradas!$E$8="","",Entradas!$E$8) -> € | D12: 0 | E12: =B3*B4 -> 8500 | F12: =E12*(1+(1*$B$1)) -> 8755 | G12: =F12*(1+(1*$B$1)) -> 9017.65 | H12: =G12*(1+(1*$B$1)) -> 9288.1795 | I12: 9566.824885 | J12: 9853.829632 | K12: 10149.44452 | L12: 10453.92786 | M12: 10767.54569 | N12: 11090.57206 | O12: 11423.28922 | P12: 11765.9879 | Q12: 12118.96754 | R12: 12482.53656 | S12: 12857.01266 | T12: 13242.72304 | U12: 13640.00473 | V12: 14049.20487 | W12: 14470.68102 | X12: 14904.80145 | Y12: 15351.94549 | Z12: 15812.50386 | AA12: 16286.87898 | AB12: 16775.48534 | AC12: 17278.7499
A13: Capital investment per year:
A14: TRUE | C14: accumulated | D14: =IF($A$14=TRUE,D15,NA()) -> 0 | E14: =IF($A$14=TRUE,E15,NA()) -> 8500 | F14: =IF($A$14=TRUE,F15,NA()) -> 17255 | G14: 26272.65 | H14: 35560.8295 | I14: 45127.65439 | J14: 54981.48402 | K14: 65130.92854 | L14: 75584.85639 | M14: 86352.40208 | N14: 97442.97415 | O14: 108866.2634 | P14: 120632.2513 | Q14: 132751.2188 | R14: 145233.7554 | S14: 158090.768 | T14: 171333.4911 | U14: 184973.4958 | V14: 199022.7007 | W14: 213493.3817 | X14: 228398.1832 | Y14: 243750.1287 | Z14: 259562.6325 | AA14: 275849.5115 | AB14: 292624.9968 | AC14: 309903.7467
D15: 0 | E15: =SUM(E12) -> 8500 | F15: =SUM($E$12:F12) -> 17255 | G15: =SUM($E$12:G12) -> 26272.65 | H15: =SUM($E$12:H12) -> 35560.8295 | I15: =SUM($E$12:I12) -> 45127.65439 | J15: =SUM($E$12:J12) -> 54981.48402 | K15: =SUM($E$12:K12) -> 65130.92854 | L15: =SUM($E$12:L12) -> 75584.85639 | M15: =SUM($E$12:M12) -> 86352.40208 | N15: =SUM($E$12:N12) -> 97442.97415 | O15: =SUM($E$12:O12) -> 108866.2634 | P15: =SUM($E$12:P12) -> 120632.2513 | Q15: =SUM($E$12:Q12) -> 132751.2188 | R15: =SUM($E$12:R12) -> 145233.7554 | S15: =SUM($E$12:S12) -> 158090.768 | T15: =SUM($E$12:T12) -> 171333.4911 | U15: =SUM($E$12:U12) -> 184973.4958 | V15: =SUM($E$12:V12) -> 199022.7007 | W15: =SUM($E$12:W12) -> 213493.3817 | X15: =SUM($E$12:X12) -> 228398.1832 | Y15: =SUM($E$12:Y12) -> 243750.1287 | Z15: =SUM($E$12:Z12) -> 259562.6325 | AA15: =SUM($E$12:AA12) -> 275849.5115 | AB15: =SUM($E$12:AB12) -> 292624.9968 | AC15: =SUM($E$12:AC12) -> 309903.7467
A21: =Entradas!D30 -> Sistema de riego con energía solar
A24: =Entradas!C34 -> Paneles solares | C24: =IF(Entradas!$E$8="","",Entradas!$E$8) -> € | D24: =Entradas!E34 -> 15000 | E24: =IF(MOD(E11,Entradas!$G$34)=0,($D$24*(1+$B$2)^E11),0) -> 0 | F24: =IF(MOD(F11,Entradas!$G$34)=0,($D$24*(1+$B$2)^F11),0) -> 0 | G24: =IF(MOD(G11,Entradas!$G$34)=0,($D$24*(1+$B$2)^G11),0) -> 0 | H24: =IF(MOD(H11,Entradas!$G$34)=0,($D$24*(1+$B$2)^H11),0) -> 0 | I24: =IF(MOD(I11,Entradas!$G$34)=0,($D$24*(1+$B$2)^I11),0) -> 0 | J24: =IF(MOD(J11,Entradas!$G$34)=0,($D$24*(1+$B$2)^J11),0) -> 0 | K24: =IF(MOD(K11,Entradas!$G$34)=0,($D$24*(1+$B$2)^K11),0) -> 0 | L24: =IF(MOD(L11,Entradas!$G$34)=0,($D$24*(1+$B$2)^L11),0) -> 0 | M24: =IF(MOD(M11,Entradas!$G$34)=0,($D$24*(1+$B$2)^M11),0) -> 0 | N24: =IF(MOD(N11,Entradas!$G$34)=0,($D$24*(1+$B$2)^N11),0) -> 0 | O24: =IF(MOD(O11,Entradas!$G$34)=0,($D$24*(1+$B$2)^O11),0) -> 0 | P24: =IF(MOD(P11,Entradas!$G$34)=0,($D$24*(1+$B$2)^P11),0) -> 0 | Q24: =IF(MOD(Q11,Entradas!$G$34)=0,($D$24*(1+$B$2)^Q11),0) -> 0 | R24: =IF(MOD(R11,Entradas!$G$34)=0,($D$24*(1+$B$2)^R11),0) -> 0 | S24: =IF(MOD(S11,Entradas!$G$34)=0,($D$24*(1+$B$2)^S11),0) -> 0 | T24: =IF(MOD(T11,Entradas!$G$34)=0,($D$24*(1+$B$2)^T11),0) -> 0 | U24: =IF(MOD(U11,Entradas!$G$34)=0,($D$24*(1+$B$2)^U11),0) -> 0 | V24: =IF(MOD(V11,Entradas!$G$34)=0,($D$24*(1+$B$2)^V11),0) -> 0 | W24: =IF(MOD(W11,Entradas!$G$34)=0,($D$24*(1+$B$2)^W11),0) -> 0 | X24: =IF(MOD(X11,Entradas!$G$34)=0,($D$24*(1+$B$2)^X11),0) -> 48107.03208 | Y24: =IF(MOD(Y11,Entradas!$G$34)=0,($D$24*(1+$B$2)^Y11),0) -> 0 | Z24: =IF(MOD(Z11,Entradas!$G$34)=0,($D$24*(1+$B$2)^Z11),0) -> 0 | AA24: =IF(MOD(AA11,Entradas!$G$34)=0,($D$24*(1+$B$2)^AA11),0) -> 0 | AB24: =IF(MOD(AB11,Entradas!$G$34)=0,($D$24*(1+$B$2)^AB11),0) -> 0 | AC24: =IF(MOD(AC11,Entradas!$G$34)=0,($D$24*(1+$B$2)^AC11),0) -> 0
A25: =Entradas!C36 -> Unidad de control | C25: =IF(Entradas!$E$8="","",Entradas!$E$8) -> € | D25: =Entradas!E36 -> 5000 | E25: =IF(MOD(E11,Entradas!$G$36)=0,($D$25*(1+$B$2)^E11),0) -> 0 | F25: =IF(MOD(F11,Entradas!$G$36)=0,($D$25*(1+$B$2)^F11),0) -> 0 | G25: =IF(MOD(G11,Entradas!$G$36)=0,($D$25*(1+$B$2)^G11),0) -> 0 | H25: =IF(MOD(H11,Entradas!$G$36)=0,($D$25*(1+$B$2)^H11),0) -> 0 | I25: =IF(MOD(I11,Entradas!$G$36)=0,($D$25*(1+$B$2)^I11),0) -> 0 | J25: =IF(MOD(J11,Entradas!$G$36)=0,($D$25*(1+$B$2)^J11),0) -> 0 | K25: =IF(MOD(K11,Entradas!$G$36)=0,($D$25*(1+$B$2)^K11),0) -> 0 | L25: =IF(MOD(L11,Entradas!$G$36)=0,($D$25*(1+$B$2)^L11),0) -> 0 | M25: =IF(MOD(M11,Entradas!$G$36)=0,($D$25*(1+$B$2)^M11),0) -> 0 | N25: =IF(MOD(N11,Entradas!$G$36)=0,($D$25*(1+$B$2)^N11),0) -> 8954.238483 | O25: =IF(MOD(O11,Entradas!$G$36)=0,($D$25*(1+$B$2)^O11),0) -> 0 | P25: =IF(MOD(P11,Entradas!$G$36)=0,($D$25*(1+$B$2)^P11),0) -> 0 | Q25: =IF(MOD(Q11,Entradas!$G$36)=0,($D$25*(1+$B$2)^Q11),0) -> 0 | R25: =IF(MOD(R11,Entradas!$G$36)=0,($D$25*(1+$B$2)^R11),0) -> 0 | S25: =IF(MOD(S11,Entradas!$G$36)=0,($D$25*(1+$B$2)^S11),0) -> 0 | T25: =IF(MOD(T11,Entradas!$G$36)=0,($D$25*(1+$B$2)^T11),0) -> 0 | U25: =IF(MOD(U11,Entradas!$G$36)=0,($D$25*(1+$B$2)^U11),0) -> 0 | V25: =IF(MOD(V11,Entradas!$G$36)=0,($D$25*(1+$B$2)^V11),0) -> 0 | W25: =IF(MOD(W11,Entradas!$G$36)=0,($D$25*(1+$B$2)^W11),0) -> 0 | X25: =IF(MOD(X11,Entradas!$G$36)=0,($D$25*(1+$B$2)^X11),0) -> 16035.67736 | Y25: =IF(MOD(Y11,Entradas!$G$36)=0,($D$25*(1+$B$2)^Y11),0) -> 0 | Z25: =IF(MOD(Z11,Entradas!$G$36)=0,($D$25*(1+$B$2)^Z11),0) -> 0 | AA25: =IF(MOD(AA11,Entradas!$G$36)=0,($D$25*(1+$B$2)^AA11),0) -> 0 | AB25: =IF(MOD(AB11,Entradas!$G$36)=0,($D$25*(1+$B$2)^AB11),0) -> 0 | AC25: =IF(MOD(AC11,Entradas!$G$36)=0,($D$25*(1+$B$2)^AC11),0) -> 0
A26: =Entradas!C37 -> Bomba | C26: =IF(Entradas!$E$8="","",Entradas!$E$8) -> € | D26: =Entradas!E37 -> 7000 | E26: =IF(MOD(E11,Entradas!$G$37)=0,($D$26*(1+$B$2)^E11),0) -> 0 | F26: =IF(MOD(F11,Entradas!$G$37)=0,($D$26*(1+$B$2)^F11),0) -> 0 | G26: =IF(MOD(G11,Entradas!$G$37)=0,($D$26*(1+$B$2)^G11),0) -> 0 | H26: =IF(MOD(H11,Entradas!$G$37)=0,($D$26*(1+$B$2)^H11),0) -> 0 | I26: =IF(MOD(I11,Entradas!$G$37)=0,($D$26*(1+$B$2)^I11),0) -> 0 | J26: =IF(MOD(J11,Entradas!$G$37)=0,($D$26*(1+$B$2)^J11),0) -> 0 | K26: =IF(MOD(K11,Entradas!$G$37)=0,($D$26*(1+$B$2)^K11),0) -> 0 | L26: =IF(MOD(L11,Entradas!$G$37)=0,($D$26*(1+$B$2)^L11),0) -> 0 | M26: =IF(MOD(M11,Entradas!$G$37)=0,($D$26*(1+$B$2)^M11),0) -> 0 | N26: =IF(MOD(N11,Entradas!$G$37)=0,($D$26*(1+$B$2)^N11),0) -> 12535.93388 | O26: =IF(MOD(O11,Entradas!$G$37)=0,($D$26*(1+$B$2)^O11),0) -> 0 | P26: =IF(MOD(P11,Entradas!$G$37)=0,($D$26*(1+$B$2)^P11),0) -> 0 | Q26: =IF(MOD(Q11,Entradas!$G$37)=0,($D$26*(1+$B$2)^Q11),0) -> 0 | R26: =IF(MOD(R11,Entradas!$G$37)=0,($D$26*(1+$B$2)^R11),0) -> 0 | S26: =IF(MOD(S11,Entradas!$G$37)=0,($D$26*(1+$B$2)^S11),0) -> 0 | T26: =IF(MOD(T11,Entradas!$G$37)=0,($D$26*(1+$B$2)^T11),0) -> 0 | U26: =IF(MOD(U11,Entradas!$G$37)=0,($D$26*(1+$B$2)^U11),0) -> 0 | V26: =IF(MOD(V11,Entradas!$G$37)=0,($D$26*(1+$B$2)^V11),0) -> 0 | W26: =IF(MOD(W11,Entradas!$G$37)=0,($D$26*(1+$B$2)^W11),0) -> 0 | X26: =IF(MOD(X11,Entradas!$G$37)=0,($D$26*(1+$B$2)^X11),0) -> 22449.94831 | Y26: =IF(MOD(Y11,Entradas!$G$37)=0,($D$26*(1+$B$2)^Y11),0) -> 0 | Z26: =IF(MOD(Z11,Entradas!$G$37)=0,($D$26*(1+$B$2)^Z11),0) -> 0 | AA26: =IF(MOD(AA11,Entradas!$G$37)=0,($D$26*(1+$B$2)^AA11),0) -> 0 | AB26: =IF(MOD(AB11,Entradas!$G$37)=0,($D$26*(1+$B$2)^AB11),0) -> 0 | AC26: =IF(MOD(AC11,Entradas!$G$37)=0,($D$26*(1+$B$2)^AC11),0) -> 0
A27: Wires / tubes | C27: =IF(Entradas!$E$8="","",Entradas!$E$8) -> € | D27: =Entradas!E38 -> 0 | E27: =IF(MOD(E11,Entradas!$G$38)=0,($D$27*(1+$B$2)^E11),0) ->  | F27: =IF(MOD(F11,Entradas!$G$38)=0,($D$27*(1+$B$2)^F11),0) ->  | G27: =IF(MOD(G11,Entradas!$G$38)=0,($D$27*(1+$B$2)^G11),0) ->  | H27: =IF(MOD(H11,Entradas!$G$38)=0,($D$27*(1+$B$2)^H11),0) ->  | I27: =IF(MOD(I11,Entradas!$G$38)=0,($D$27*(1+$B$2)^I11),0) ->  | J27: =IF(MOD(J11,Entradas!$G$38)=0,($D$27*(1+$B$2)^J11),0) ->  | K27: =IF(MOD(K11,Entradas!$G$38)=0,($D$27*(1+$B$2)^K11),0) ->  | L27: =IF(MOD(L11,Entradas!$G$38)=0,($D$27*(1+$B$2)^L11),0) ->  | M27: =IF(MOD(M11,Entradas!$G$38)=0,($D$27*(1+$B$2)^M11),0) ->  | N27: =IF(MOD(N11,Entradas!$G$38)=0,($D$27*(1+$B$2)^N11),0) ->  | O27: =IF(MOD(O11,Entradas!$G$38)=0,($D$27*(1+$B$2)^O11),0) ->  | P27: =IF(MOD(P11,Entradas!$G$38)=0,($D$27*(1+$B$2)^P11),0) ->  | Q27: =IF(MOD(Q11,Entradas!$G$38)=0,($D$27*(1+$B$2)^Q11),0) ->  | R27: =IF(MOD(R11,Entradas!$G$38)=0,($D$27*(1+$B$2)^R11),0) ->  | S27: =IF(MOD(S11,Entradas!$G$38)=0,($D$27*(1+$B$2)^S11),0) ->  | T27: =IF(MOD(T11,Entradas!$G$38)=0,($D$27*(1+$B$2)^T11),0) ->  | U27: =IF(MOD(U11,Entradas!$G$38)=0,($D$27*(1+$B$2)^U11),0) ->  | V27: =IF(MOD(V11,Entradas!$G$38)=0,($D$27*(1+$B$2)^V11),0) ->  | W27: =IF(MOD(W11,Entradas!$G$38)=0,($D$27*(1+$B$2)^W11),0) ->  | X27: =IF(MOD(X11,Entradas!$G$38)=0,($D$27*(1+$B$2)^X11),0) ->  | Y27: =IF(MOD(Y11,Entradas!$G$38)=0,($D$27*(1+$B$2)^Y11),0) ->  | Z27: =IF(MOD(Z11,Entradas!$G$38)=0,($D$27*(1+$B$2)^Z11),0) ->  | AA27: =IF(MOD(AA11,Entradas!$G$38)=0,($D$27*(1+$B$2)^AA11),0) ->  | AB27: =IF(MOD(AB11,Entradas!$G$38)=0,($D$27*(1+$B$2)^AB11),0) ->  | AC27: =IF(MOD(AC11,Entradas!$G$38)=0,($D$27*(1+$B$2)^AC11),0) -> 
A28: Water storage | C28: =IF(Entradas!$E$8="","",Entradas!$E$8) -> € | D28: =Entradas!E39 -> 0 | E28: =IF(MOD(E11,Entradas!$G$39)=0,($D$28*(1+$B$2)^E11),0) ->  | F28: =IF(MOD(F11,Entradas!$G$39)=0,($D$28*(1+$B$2)^F11),0) ->  | G28: =IF(MOD(G11,Entradas!$G$39)=0,($D$28*(1+$B$2)^G11),0) ->  | H28: =IF(MOD(H11,Entradas!$G$39)=0,($D$28*(1+$B$2)^H11),0) ->  | I28: =IF(MOD(I11,Entradas!$G$39)=0,($D$28*(1+$B$2)^I11),0) ->  | J28: =IF(MOD(J11,Entradas!$G$39)=0,($D$28*(1+$B$2)^J11),0) ->  | K28: =IF(MOD(K11,Entradas!$G$39)=0,($D$28*(1+$B$2)^K11),0) ->  | L28: =IF(MOD(L11,Entradas!$G$39)=0,($D$28*(1+$B$2)^L11),0) ->  | M28: =IF(MOD(M11,Entradas!$G$39)=0,($D$28*(1+$B$2)^M11),0) ->  | N28: =IF(MOD(N11,Entradas!$G$39)=0,($D$28*(1+$B$2)^N11),0) ->  | O28: =IF(MOD(O11,Entradas!$G$39)=0,($D$28*(1+$B$2)^O11),0) ->  | P28: =IF(MOD(P11,Entradas!$G$39)=0,($D$28*(1+$B$2)^P11),0) ->  | Q28: =IF(MOD(Q11,Entradas!$G$39)=0,($D$28*(1+$B$2)^Q11),0) ->  | R28: =IF(MOD(R11,Entradas!$G$39)=0,($D$28*(1+$B$2)^R11),0) ->  | S28: =IF(MOD(S11,Entradas!$G$39)=0,($D$28*(1+$B$2)^S11),0) ->  | T28: =IF(MOD(T11,Entradas!$G$39)=0,($D$28*(1+$B$2)^T11),0) ->  | U28: =IF(MOD(U11,Entradas!$G$39)=0,($D$28*(1+$B$2)^U11),0) ->  | V28: =IF(MOD(V11,Entradas!$G$39)=0,($D$28*(1+$B$2)^V11),0) ->  | W28: =IF(MOD(W11,Entradas!$G$39)=0,($D$28*(1+$B$2)^W11),0) ->  | X28: =IF(MOD(X11,Entradas!$G$39)=0,($D$28*(1+$B$2)^X11),0) ->  | Y28: =IF(MOD(Y11,Entradas!$G$39)=0,($D$28*(1+$B$2)^Y11),0) ->  | Z28: =IF(MOD(Z11,Entradas!$G$39)=0,($D$28*(1+$B$2)^Z11),0) ->  | AA28: =IF(MOD(AA11,Entradas!$G$39)=0,($D$28*(1+$B$2)^AA11),0) ->  | AB28: =IF(MOD(AB11,Entradas!$G$39)=0,($D$28*(1+$B$2)^AB11),0) ->  | AC28: =IF(MOD(AC11,Entradas!$G$39)=0,($D$28*(1+$B$2)^AC11),0) -> 
A29: Irrigation system | C29: =IF(Entradas!$E$8="","",Entradas!$E$8) -> € | D29: =Entradas!E40 -> 0 | E29: =IF(MOD(E11,Entradas!$G$40)=0,($D$29*(1+$B$2)^E11),0) ->  | F29: =IF(MOD(F11,Entradas!$G$40)=0,($D$29*(1+$B$2)^F11),0) ->  | G29: =IF(MOD(G11,Entradas!$G$40)=0,($D$29*(1+$B$2)^G11),0) ->  | H29: =IF(MOD(H11,Entradas!$G$40)=0,($D$29*(1+$B$2)^H11),0) ->  | I29: =IF(MOD(I11,Entradas!$G$40)=0,($D$29*(1+$B$2)^I11),0) ->  | J29: =IF(MOD(J11,Entradas!$G$40)=0,($D$29*(1+$B$2)^J11),0) ->  | K29: =IF(MOD(K11,Entradas!$G$40)=0,($D$29*(1+$B$2)^K11),0) ->  | L29: =IF(MOD(L11,Entradas!$G$40)=0,($D$29*(1+$B$2)^L11),0) ->  | M29: =IF(MOD(M11,Entradas!$G$40)=0,($D$29*(1+$B$2)^M11),0) ->  | N29: =IF(MOD(N11,Entradas!$G$40)=0,($D$29*(1+$B$2)^N11),0) ->  | O29: =IF(MOD(O11,Entradas!$G$40)=0,($D$29*(1+$B$2)^O11),0) ->  | P29: =IF(MOD(P11,Entradas!$G$40)=0,($D$29*(1+$B$2)^P11),0) ->  | Q29: =IF(MOD(Q11,Entradas!$G$40)=0,($D$29*(1+$B$2)^Q11),0) ->  | R29: =IF(MOD(R11,Entradas!$G$40)=0,($D$29*(1+$B$2)^R11),0) ->  | S29: =IF(MOD(S11,Entradas!$G$40)=0,($D$29*(1+$B$2)^S11),0) ->  | T29: =IF(MOD(T11,Entradas!$G$40)=0,($D$29*(1+$B$2)^T11),0) ->  | U29: =IF(MOD(U11,Entradas!$G$40)=0,($D$29*(1+$B$2)^U11),0) ->  | V29: =IF(MOD(V11,Entradas!$G$40)=0,($D$29*(1+$B$2)^V11),0) ->  | W29: =IF(MOD(W11,Entradas!$G$40)=0,($D$29*(1+$B$2)^W11),0) ->  | X29: =IF(MOD(X11,Entradas!$G$40)=0,($D$29*(1+$B$2)^X11),0) ->  | Y29: =IF(MOD(Y11,Entradas!$G$40)=0,($D$29*(1+$B$2)^Y11),0) ->  | Z29: =IF(MOD(Z11,Entradas!$G$40)=0,($D$29*(1+$B$2)^Z11),0) ->  | AA29: =IF(MOD(AA11,Entradas!$G$40)=0,($D$29*(1+$B$2)^AA11),0) ->  | AB29: =IF(MOD(AB11,Entradas!$G$40)=0,($D$29*(1+$B$2)^AB11),0) ->  | AC29: =IF(MOD(AC11,Entradas!$G$40)=0,($D$29*(1+$B$2)^AC11),0) -> 
A30: Drilling | C30: =IF(Entradas!$E$8="","",Entradas!$E$8) -> € | D30: =Entradas!E41 -> 0
A31: Installation | C31: =IF(Entradas!$E$8="","",Entradas!$E$8) -> € | D31: =Entradas!E42 -> 0
A32: Other Costs | C32: =IF(Entradas!$E$8="","",Entradas!$E$8) -> € | D32: =Entradas!E43 -> 0
A33: Loan Repayment | C33: =IF(Entradas!$E$8="","",Entradas!$E$8) -> € | D33: 0 | E33: =IF(E11<='Loan Repayment Solar'!Loan_Years,'Loan Repayment Solar'!Scheduled_Monthly_Payment,0) -> 2717.359164 | F33: =IF(F11<='Loan Repayment Solar'!Loan_Years,'Loan Repayment Solar'!Scheduled_Monthly_Payment,0) -> 2717.359164 | G33: =IF(G11<='Loan Repayment Solar'!Loan_Years,'Loan Repayment Solar'!Scheduled_Monthly_Payment,0) -> 2717.359164 | H33: =IF(H11<='Loan Repayment Solar'!Loan_Years,'Loan Repayment Solar'!Scheduled_Monthly_Payment,0) -> 2717.359164 | I33: =IF(I11<='Loan Repayment Solar'!Loan_Years,'Loan Repayment Solar'!Scheduled_Monthly_Payment,0) -> 2717.359164 | J33: =IF(J11<='Loan Repayment Solar'!Loan_Years,'Loan Repayment Solar'!Scheduled_Monthly_Payment,0) -> 2717.359164 | K33: =IF(K11<='Loan Repayment Solar'!Loan_Years,'Loan Repayment Solar'!Scheduled_Monthly_Payment,0) -> 2717.359164 | L33: =IF(L11<='Loan Repayment Solar'!Loan_Years,'Loan Repayment Solar'!Scheduled_Monthly_Payment,0) -> 2717.359164 | M33: =IF(M11<='Loan Repayment Solar'!Loan_Years,'Loan Repayment Solar'!Scheduled_Monthly_Payment,0) -> 2717.359164 | N33: =IF(N11<='Loan Repayment Solar'!Loan_Years,'Loan Repayment Solar'!Scheduled_Monthly_Payment,0) -> 2717.359164 | O33: =IF(O11<='Loan Repayment Solar'!Loan_Years,'Loan Repayment Solar'!Scheduled_Monthly_Payment,0) -> 0 | P33: =IF(P11<='Loan Repayment Solar'!Loan_Years,'Loan Repayment Solar'!Scheduled_Monthly_Payment,0) -> 0 | Q33: =IF(Q11<='Loan Repayment Solar'!Loan_Years,'Loan Repayment Solar'!Scheduled_Monthly_Payment,0) -> 0 | R33: =IF(R11<='Loan Repayment Solar'!Loan_Years,'Loan Repayment Solar'!Scheduled_Monthly_Payment,0) -> 0 | S33: =IF(S11<='Loan Repayment Solar'!Loan_Years,'Loan Repayment Solar'!Scheduled_Monthly_Payment,0) -> 0 | T33: =IF(T11<='Loan Repayment Solar'!Loan_Years,'Loan Repayment Solar'!Scheduled_Monthly_Payment,0) -> 0 | U33: =IF(U11<='Loan Repayment Solar'!Loan_Years,'Loan Repayment Solar'!Scheduled_Monthly_Payment,0) -> 0 | V33: =IF(V11<='Loan Repayment Solar'!Loan_Years,'Loan Repayment Solar'!Scheduled_Monthly_Payment,0) -> 0 | W33: =IF(W11<='Loan Repayment Solar'!Loan_Years,'Loan Repayment Solar'!Scheduled_Monthly_Payment,0) -> 0 | X33: =IF(X11<='Loan Repayment Solar'!Loan_Years,'Loan Repayment Solar'!Scheduled_Monthly_Payment,0) -> 0 | Y33: =IF(Y11<='Loan Repayment Solar'!Loan_Years,'Loan Repayment Solar'!Scheduled_Monthly_Payment,0) -> 0 | Z33: =IF(Z11<='Loan Repayment Solar'!Loan_Years,'Loan Repayment Solar'!Scheduled_Monthly_Payment,0) -> 0 | AA33: =IF(AA11<='Loan Repayment Solar'!Loan_Years,'Loan Repayment Solar'!Scheduled_Monthly_Payment,0) -> 0 | AB33: =IF(AB11<='Loan Repayment Solar'!Loan_Years,'Loan Repayment Solar'!Scheduled_Monthly_Payment,0) -> 0 | AC33: =IF(AC11<='Loan Repayment Solar'!Loan_Years,'Loan Repayment Solar'!Scheduled_Monthly_Payment,0) -> 0
A34: Energy costs (fuel or electricity): | C34: =IF(Entradas!$E$8="","",Entradas!$E$8) -> € | D34: 0 | E34: =Entradas!E46 -> 0 | F34: =E34*(1+(1*$B$5)) -> 0 | G34: =F34*(1+(1*$B$5)) -> 0 | H34: 0 | I34: 0 | J34: 0 | K34: 0 | L34: 0 | M34: 0 | N34: 0 | O34: 0 | P34: 0 | Q34: 0 | R34: 0 | S34: 0 | T34: 0 | U34: 0 | V34: 0 | W34: 0 | X34: 0 | Y34: 0 | Z34: 0 | AA34: 0 | AB34: 0 | AC34: 0
A35: Operating Costs: | C35: =IF(Entradas!$E$8="","",Entradas!$E$8) -> € | D35: 0 | E35: =SUM(Entradas!E47:E48) -> 100 | F35: =E35*(1+(1*$B$2)) -> 106 | G35: 112.36 | H35: 119.1016 | I35: 126.247696 | J35: 133.8225578 | K35: 141.8519112 | L35: 150.3630259 | M35: 159.3848075 | N35: 168.9478959 | O35: 179.0847697 | P35: 189.8298558 | Q35: 201.2196472 | R35: 213.292826 | S35: 226.0903956 | T35: 239.6558193 | U35: 254.0351685 | V35: 269.2772786 | W35: 285.4339153 | X35: 302.5599502 | Y35: 320.7135472 | Z35: 339.9563601 | AA35: 360.3537417 | AB35: 381.9749662 | AC35: 404.8934641
A36: Water levy | E36: =$B$8*$B$9 -> 100 | F36: =$B$8*$B$9 -> 100 | G36: 100 | H36: 100 | I36: 100 | J36: 100 | K36: 100 | L36: 100 | M36: 100 | N36: 100 | O36: 100 | P36: 100 | Q36: 100 | R36: 100 | S36: 100 | T36: 100 | U36: 100 | V36: 100 | W36: 100 | X36: 100 | Y36: 100 | Z36: 100 | AA36: 100 | AB36: 100 | AC36: 100
A38: Gross Expenses System per year: | C38: =IF(Entradas!$E$8="","",Entradas!$E$8) -> € | D38: =SUM(D24:D32) -> 27000 | E38: =E34+E35+E36+SUMIF(E24:E33,"<1E+307") -> 2917.359164 | F38: 2923.359164 | G38: 2929.719164 | H38: 2936.460764 | I38: 2943.60686 | J38: 2951.181722 | K38: 2959.211076 | L38: =L34+L35+L36+SUMIF(L24:L33,"<1E+307") -> 2967.72219 | M38: 2976.743972 | N38: 24476.47942 | O38: 279.0847697 | P38: 289.8298558 | Q38: 301.2196472 | R38: 313.292826 | S38: 326.0903956 | T38: 339.6558193 | U38: 354.0351685 | V38: 369.2772786 | W38: 385.4339153 | X38: 86995.2177 | Y38: 420.7135472 | Z38: 439.9563601 | AA38: 460.3537417 | AB38: 481.9749662 | AC38: 504.8934641
A41: Cash Flow: | D41: =D14-D46 -> -27000 | E41: =E14-E46 -> -21417.35916 | F41: =F14-F46 -> -15585.71833 | G41: =G14-G46 -> -9497.787493 | H41: -3146.068758 | I41: 3477.149267 | J41: 10379.79718 | K41: 17570.03062 | L41: 25056.23629 | M41: 32847.03801 | N41: 19461.13065 | O41: 30605.33511 | P41: 42081.49315 | Q41: 53899.24104 | R41: 66068.48478 | S41: 78599.40705 | T41: 91502.47427 | U41: 104788.4438 | V41: 118468.3714 | W41: 132553.6185 | X41: 60463.20228 | Y41: 75394.43423 | Z41: 90766.98173 | AA41: 106593.507 | AB41: 122887.0173 | AC41: 139660.8738
D43: =IF(D41>0,"Yes","No") -> No | E43: =IF(E41>0,"Yes","No") -> No | F43: =IF(F41>0,"Yes","No") -> No | G43: No | H43: No | I43: Yes | J43: Yes | K43: Yes | L43: Yes | M43: Yes | N43: Yes | O43: Yes | P43: Yes | Q43: Yes | R43: Yes | S43: Yes | T43: Yes | U43: Yes | V43: Yes | W43: Yes | X43: Yes | Y43: Yes | Z43: Yes | AA43: Yes | AB43: Yes | AC43: Yes
A44: Payback period against investment (years) | B44: =IF(AC41<0,"no payback",COUNTIF(D41:AC41,"<0")) -> 5 | C44: years
A46: System Life Cycle Costs (25 years) | B46: =IF($A$47=TRUE,AC47,NA()) -> 170242.873 | C46: =IF(Entradas!$E$8="","",Entradas!$E$8) -> € | D46: =IF($A$47=TRUE,D47,NA()) -> 27000 | E46: =IF($A$47=TRUE,E47,NA()) -> 29917.35916 | F46: =IF($A$47=TRUE,F47,NA()) -> 32840.71833 | G46: 35770.43749 | H46: 38706.89826 | I46: 41650.50512 | J46: 44601.68684 | K46: 47560.89792 | L46: 50528.62011 | M46: 53505.36408 | N46: 77981.8435 | O46: 78260.92827 | P46: 78550.75812 | Q46: 78851.97777 | R46: 79165.2706 | S46: 79491.36099 | T46: 79831.01681 | U46: 80185.05198 | V46: 80554.32926 | W46: 80939.76317 | X46: 167934.9809 | Y46: 168355.6944 | Z46: 168795.6508 | AA46: 169256.0045 | AB46: 169737.9795 | AC46: 170242.873
A47: TRUE | D47: =D38 -> 27000 | E47: =SUM($D$38:E38) -> 29917.35916 | F47: =SUM($D$38:F38) -> 32840.71833 | G47: =SUM($D$38:G38) -> 35770.43749 | H47: =SUM($D$38:H38) -> 38706.89826 | I47: =SUM($D$38:I38) -> 41650.50512 | J47: =SUM($D$38:J38) -> 44601.68684 | K47: =SUM($D$38:K38) -> 47560.89792 | L47: =SUM($D$38:L38) -> 50528.62011 | M47: =SUM($D$38:M38) -> 53505.36408 | N47: =SUM($D$38:N38) -> 77981.8435 | O47: =SUM($D$38:O38) -> 78260.92827 | P47: =SUM($D$38:P38) -> 78550.75812 | Q47: =SUM($D$38:Q38) -> 78851.97777 | R47: =SUM($D$38:R38) -> 79165.2706 | S47: =SUM($D$38:S38) -> 79491.36099 | T47: =SUM($D$38:T38) -> 79831.01681 | U47: =SUM($D$38:U38) -> 80185.05198 | V47: =SUM($D$38:V38) -> 80554.32926 | W47: =SUM($D$38:W38) -> 80939.76317 | X47: =SUM($D$38:X38) -> 167934.9809 | Y47: =SUM($D$38:Y38) -> 168355.6944 | Z47: =SUM($D$38:Z38) -> 168795.6508 | AA47: =SUM($D$38:AA38) -> 169256.0045 | AB47: =SUM($D$38:AB38) -> 169737.9795 | AC47: =SUM($D$38:AC38) -> 170242.873
A48: Cost of water | C48: =IF(Entradas!$E$8="","",Entradas!$E$8&" /m3") -> € /m3 | D48: =D38/($B$9*365) -> 1.479452055 | E48: =E38/($B$9*365) -> 0.1598552967 | F48: 0.1601840638 | G48: 0.160532557 | H48: 0.1609019597 | I48: 0.1612935266 | J48: 0.1617085875 | K48: 0.1621485521 | L48: 0.1626149145 | M48: 0.1631092587 | N48: 1.341176954 | O48: 0.01529231615 | P48: 0.01588108799 | Q48: 0.01650518615 | R48: 0.01716673019 | S48: 0.01786796688 | T48: 0.01861127777 | U48: 0.01939918731 | V48: 0.02023437143 | W48: 0.02111966659 | X48: 4.766861244 | Y48: 0.02305279711 | Z48: 0.02410719781 | AA48: 0.02522486256 | AB48: 0.02640958719 | AC48: 0.02766539529
A49: Average water cost over 25 years | B49: =AVERAGE(D48:AC48) -> 0.3587837154 | C49: =IF(Entradas!$E$8="","",Entradas!$E$8&" /m3") -> € /m3 | I49: =AVERAGE(D48:I48) -> 0.3803699098 | N49: =AVERAGE(D48:N48) -> 0.3884525205
A51: NPV | B51: =Entradas!E12 -> 0.04 | C51: =NPV(B51,E41:AC41)+D41 -> 632743.7758
A52: IRR | C52: =IRR(D41:AC41) -> 0.22009127
A59: =Entradas!D60 -> Sistema de riego conectado a la red eléctrica
A62: =Entradas!C64 -> Inversor (si la bomba es CC) | C62: =IF(Entradas!$E$8="","",Entradas!$E$8) -> € | D62: =Entradas!E64 -> 0 | E62: =IF(MOD(E11,Entradas!$G$64)=0,($D$62*(1+$B$2)^E11),0) ->  | F62: =IF(MOD(F11,Entradas!$G$64)=0,($D$62*(1+$B$2)^F11),0) ->  | G62: =IF(MOD(G11,Entradas!$G$64)=0,($D$62*(1+$B$2)^G11),0) ->  | H62: =IF(MOD(H11,Entradas!$G$64)=0,($D$62*(1+$B$2)^H11),0) ->  | I62: =IF(MOD(I11,Entradas!$G$64)=0,($D$62*(1+$B$2)^I11),0) ->  | J62: =IF(MOD(J11,Entradas!$G$64)=0,($D$62*(1+$B$2)^J11),0) ->  | K62: =IF(MOD(K11,Entradas!$G$64)=0,($D$62*(1+$B$2)^K11),0) ->  | L62: =IF(MOD(L11,Entradas!$G$64)=0,($D$62*(1+$B$2)^L11),0) ->  | M62: =IF(MOD(M11,Entradas!$G$64)=0,($D$62*(1+$B$2)^M11),0) ->  | N62: =IF(MOD(N11,Entradas!$G$64)=0,($D$62*(1+$B$2)^N11),0) ->  | O62: =IF(MOD(O11,Entradas!$G$64)=0,($D$62*(1+$B$2)^O11),0) ->  | P62: =IF(MOD(P11,Entradas!$G$64)=0,($D$62*(1+$B$2)^P11),0) ->  | Q62: =IF(MOD(Q11,Entradas!$G$64)=0,($D$62*(1+$B$2)^Q11),0) ->  | R62: =IF(MOD(R11,Entradas!$G$64)=0,($D$62*(1+$B$2)^R11),0) ->  | S62: =IF(MOD(S11,Entradas!$G$64)=0,($D$62*(1+$B$2)^S11),0) ->  | T62: =IF(MOD(T11,Entradas!$G$64)=0,($D$62*(1+$B$2)^T11),0) ->  | U62: =IF(MOD(U11,Entradas!$G$64)=0,($D$62*(1+$B$2)^U11),0) ->  | V62: =IF(MOD(V11,Entradas!$G$64)=0,($D$62*(1+$B$2)^V11),0) ->  | W62: =IF(MOD(W11,Entradas!$G$64)=0,($D$62*(1+$B$2)^W11),0) ->  | X62: =IF(MOD(X11,Entradas!$G$64)=0,($D$62*(1+$B$2)^X11),0) ->  | Y62: =IF(MOD(Y11,Entradas!$G$64)=0,($D$62*(1+$B$2)^Y11),0) ->  | Z62: =IF(MOD(Z11,Entradas!$G$64)=0,($D$62*(1+$B$2)^Z11),0) ->  | AA62: =IF(MOD(AA11,Entradas!$G$64)=0,($D$62*(1+$B$2)^AA11),0) ->  | AB62: =IF(MOD(AB11,Entradas!$G$64)=0,($D$62*(1+$B$2)^AB11),0) ->  | AC62: =IF(MOD(AC11,Entradas!$G$64)=0,($D$62*(1+$B$2)^AC11),0) -> 
A63: =Entradas!C65 -> Unidad de control | C63: =IF(Entradas!$E$8="","",Entradas!$E$8) -> € | D63: =Entradas!E65 -> 3000 | E63: =IF(MOD(E11,Entradas!$G$65)=0,($D$63*(1+$B$2)^E11),0) -> 0 | F63: =IF(MOD(F11,Entradas!$G$65)=0,($D$63*(1+$B$2)^F11),0) -> 0 | G63: =IF(MOD(G11,Entradas!$G$65)=0,($D$63*(1+$B$2)^G11),0) -> 0 | H63: =IF(MOD(H11,Entradas!$G$65)=0,($D$63*(1+$B$2)^H11),0) -> 0 | I63: =IF(MOD(I11,Entradas!$G$65)=0,($D$63*(1+$B$2)^I11),0) -> 0 | J63: =IF(MOD(J11,Entradas!$G$65)=0,($D$63*(1+$B$2)^J11),0) -> 0 | K63: =IF(MOD(K11,Entradas!$G$65)=0,($D$63*(1+$B$2)^K11),0) -> 4510.890777 | L63: =IF(MOD(L11,Entradas!$G$65)=0,($D$63*(1+$B$2)^L11),0) -> 0 | M63: =IF(MOD(M11,Entradas!$G$65)=0,($D$63*(1+$B$2)^M11),0) -> 0 | N63: =IF(MOD(N11,Entradas!$G$65)=0,($D$63*(1+$B$2)^N11),0) -> 0 | O63: =IF(MOD(O11,Entradas!$G$65)=0,($D$63*(1+$B$2)^O11),0) -> 0 | P63: =IF(MOD(P11,Entradas!$G$65)=0,($D$63*(1+$B$2)^P11),0) -> 0 | Q63: =IF(MOD(Q11,Entradas!$G$65)=0,($D$63*(1+$B$2)^Q11),0) -> 0 | R63: =IF(MOD(R11,Entradas!$G$65)=0,($D$63*(1+$B$2)^R11),0) -> 6782.711867 | S63: =IF(MOD(S11,Entradas!$G$65)=0,($D$63*(1+$B$2)^S11),0) -> 0 | T63: =IF(MOD(T11,Entradas!$G$65)=0,($D$63*(1+$B$2)^T11),0) -> 0 | U63: =IF(MOD(U11,Entradas!$G$65)=0,($D$63*(1+$B$2)^U11),0) -> 0 | V63: =IF(MOD(V11,Entradas!$G$65)=0,($D$63*(1+$B$2)^V11),0) -> 0 | W63: =IF(MOD(W11,Entradas!$G$65)=0,($D$63*(1+$B$2)^W11),0) -> 0 | X63: =IF(MOD(X11,Entradas!$G$65)=0,($D$63*(1+$B$2)^X11),0) -> 0 | Y63: =IF(MOD(Y11,Entradas!$G$65)=0,($D$63*(1+$B$2)^Y11),0) -> 10198.6908 | Z63: =IF(MOD(Z11,Entradas!$G$65)=0,($D$63*(1+$B$2)^Z11),0) -> 0 | AA63: =IF(MOD(AA11,Entradas!$G$65)=0,($D$63*(1+$B$2)^AA11),0) -> 0 | AB63: =IF(MOD(AB11,Entradas!$G$65)=0,($D$63*(1+$B$2)^AB11),0) -> 0 | AC63: =IF(MOD(AC11,Entradas!$G$65)=0,($D$63*(1+$B$2)^AC11),0) -> 0
A64: =Entradas!C66 -> Bomba | C64: =IF(Entradas!$E$8="","",Entradas!$E$8) -> € | D64: =Entradas!E66 -> 5000 | E64: =IF(MOD(E11,Entradas!$G$66)=0,($D$64*(1+$B$2)^E11),0) -> 0 | F64: =IF(MOD(F11,Entradas!$G$66)=0,($D$64*(1+$B$2)^F11),0) -> 0 | G64: =IF(MOD(G11,Entradas!$G$66)=0,($D$64*(1+$B$2)^G11),0) -> 0 | H64: =IF(MOD(H11,Entradas!$G$66)=0,($D$64*(1+$B$2)^H11),0) -> 0 | I64: =IF(MOD(I11,Entradas!$G$66)=0,($D$64*(1+$B$2)^I11),0) -> 0 | J64: =IF(MOD(J11,Entradas!$G$66)=0,($D$64*(1+$B$2)^J11),0) -> 0 | K64: =IF(MOD(K11,Entradas!$G$66)=0,($D$64*(1+$B$2)^K11),0) -> 7518.151295 | L64: =IF(MOD(L11,Entradas!$G$66)=0,($D$64*(1+$B$2)^L11),0) -> 0 | M64: =IF(MOD(M11,Entradas!$G$66)=0,($D$64*(1+$B$2)^M11),0) -> 0 | N64: =IF(MOD(N11,Entradas!$G$66)=0,($D$64*(1+$B$2)^N11),0) -> 0 | O64: =IF(MOD(O11,Entradas!$G$66)=0,($D$64*(1+$B$2)^O11),0) -> 0 | P64: =IF(MOD(P11,Entradas!$G$66)=0,($D$64*(1+$B$2)^P11),0) -> 0 | Q64: =IF(MOD(Q11,Entradas!$G$66)=0,($D$64*(1+$B$2)^Q11),0) -> 0 | R64: =IF(MOD(R11,Entradas!$G$66)=0,($D$64*(1+$B$2)^R11),0) -> 11304.51978 | S64: =IF(MOD(S11,Entradas!$G$66)=0,($D$64*(1+$B$2)^S11),0) -> 0 | T64: =IF(MOD(T11,Entradas!$G$66)=0,($D$64*(1+$B$2)^T11),0) -> 0 | U64: =IF(MOD(U11,Entradas!$G$66)=0,($D$64*(1+$B$2)^U11),0) -> 0 | V64: =IF(MOD(V11,Entradas!$G$66)=0,($D$64*(1+$B$2)^V11),0) -> 0 | W64: =IF(MOD(W11,Entradas!$G$66)=0,($D$64*(1+$B$2)^W11),0) -> 0 | X64: =IF(MOD(X11,Entradas!$G$66)=0,($D$64*(1+$B$2)^X11),0) -> 0 | Y64: =IF(MOD(Y11,Entradas!$G$66)=0,($D$64*(1+$B$2)^Y11),0) -> 16997.818 | Z64: =IF(MOD(Z11,Entradas!$G$66)=0,($D$64*(1+$B$2)^Z11),0) -> 0 | AA64: =IF(MOD(AA11,Entradas!$G$66)=0,($D$64*(1+$B$2)^AA11),0) -> 0 | AB64: =IF(MOD(AB11,Entradas!$G$66)=0,($D$64*(1+$B$2)^AB11),0) -> 0 | AC64: =IF(MOD(AC11,Entradas!$G$66)=0,($D$64*(1+$B$2)^AC11),0) -> 0
A65: Wires / tubes | C65: =IF(Entradas!$E$8="","",Entradas!$E$8) -> € | D65: =Entradas!E67 -> 0 | E65: =IF(MOD(E11,Entradas!$G$67)=0,($D$65*(1+$B$2)^E11),0) ->  | F65: =IF(MOD(F11,Entradas!$G$67)=0,($D$65*(1+$B$2)^F11),0) ->  | G65: =IF(MOD(G11,Entradas!$G$67)=0,($D$65*(1+$B$2)^G11),0) ->  | H65: =IF(MOD(H11,Entradas!$G$67)=0,($D$65*(1+$B$2)^H11),0) ->  | I65: =IF(MOD(I11,Entradas!$G$67)=0,($D$65*(1+$B$2)^I11),0) ->  | J65: =IF(MOD(J11,Entradas!$G$67)=0,($D$65*(1+$B$2)^J11),0) ->  | K65: =IF(MOD(K11,Entradas!$G$67)=0,($D$65*(1+$B$2)^K11),0) ->  | L65: =IF(MOD(L11,Entradas!$G$67)=0,($D$65*(1+$B$2)^L11),0) ->  | M65: =IF(MOD(M11,Entradas!$G$67)=0,($D$65*(1+$B$2)^M11),0) ->  | N65: =IF(MOD(N11,Entradas!$G$67)=0,($D$65*(1+$B$2)^N11),0) ->  | O65: =IF(MOD(O11,Entradas!$G$67)=0,($D$65*(1+$B$2)^O11),0) ->  | P65: =IF(MOD(P11,Entradas!$G$67)=0,($D$65*(1+$B$2)^P11),0) ->  | Q65: =IF(MOD(Q11,Entradas!$G$67)=0,($D$65*(1+$B$2)^Q11),0) ->  | R65: =IF(MOD(R11,Entradas!$G$67)=0,($D$65*(1+$B$2)^R11),0) ->  | S65: =IF(MOD(S11,Entradas!$G$67)=0,($D$65*(1+$B$2)^S11),0) ->  | T65: =IF(MOD(T11,Entradas!$G$67)=0,($D$65*(1+$B$2)^T11),0) ->  | U65: =IF(MOD(U11,Entradas!$G$67)=0,($D$65*(1+$B$2)^U11),0) ->  | V65: =IF(MOD(V11,Entradas!$G$67)=0,($D$65*(1+$B$2)^V11),0) ->  | W65: =IF(MOD(W11,Entradas!$G$67)=0,($D$65*(1+$B$2)^W11),0) ->  | X65: =IF(MOD(X11,Entradas!$G$67)=0,($D$65*(1+$B$2)^X11),0) ->  | Y65: =IF(MOD(Y11,Entradas!$G$67)=0,($D$65*(1+$B$2)^Y11),0) ->  | Z65: =IF(MOD(Z11,Entradas!$G$67)=0,($D$65*(1+$B$2)^Z11),0) ->  | AA65: =IF(MOD(AA11,Entradas!$G$67)=0,($D$65*(1+$B$2)^AA11),0) ->  | AB65: =IF(MOD(AB11,Entradas!$G$67)=0,($D$65*(1+$B$2)^AB11),0) ->  | AC65: =IF(MOD(AC11,Entradas!$G$67)=0,($D$65*(1+$B$2)^AC11),0) -> 
A66: =Entradas!C68 -> Almacenamiento de agua | C66: =IF(Entradas!$E$8="","",Entradas!$E$8) -> € | D66: =Entradas!E68 -> 0 | E66: =IF(MOD(E11,Entradas!$G$68)=0,($D$66*(1+$B$2)^E11),0) ->  | F66: =IF(MOD(F11,Entradas!$G$68)=0,($D$66*(1+$B$2)^F11),0) ->  | G66: =IF(MOD(G11,Entradas!$G$68)=0,($D$66*(1+$B$2)^G11),0) ->  | H66: =IF(MOD(H11,Entradas!$G$68)=0,($D$66*(1+$B$2)^H11),0) ->  | I66: =IF(MOD(I11,Entradas!$G$68)=0,($D$66*(1+$B$2)^I11),0) ->  | J66: =IF(MOD(J11,Entradas!$G$68)=0,($D$66*(1+$B$2)^J11),0) ->  | K66: =IF(MOD(K11,Entradas!$G$68)=0,($D$66*(1+$B$2)^K11),0) ->  | L66: =IF(MOD(L11,Entradas!$G$68)=0,($D$66*(1+$B$2)^L11),0) ->  | M66: =IF(MOD(M11,Entradas!$G$68)=0,($D$66*(1+$B$2)^M11),0) ->  | N66: =IF(MOD(N11,Entradas!$G$68)=0,($D$66*(1+$B$2)^N11),0) ->  | O66: =IF(MOD(O11,Entradas!$G$68)=0,($D$66*(1+$B$2)^O11),0) ->  | P66: =IF(MOD(P11,Entradas!$G$68)=0,($D$66*(1+$B$2)^P11),0) ->  | Q66: =IF(MOD(Q11,Entradas!$G$68)=0,($D$66*(1+$B$2)^Q11),0) ->  | R66: =IF(MOD(R11,Entradas!$G$68)=0,($D$66*(1+$B$2)^R11),0) ->  | S66: =IF(MOD(S11,Entradas!$G$68)=0,($D$66*(1+$B$2)^S11),0) ->  | T66: =IF(MOD(T11,Entradas!$G$68)=0,($D$66*(1+$B$2)^T11),0) ->  | U66: =IF(MOD(U11,Entradas!$G$68)=0,($D$66*(1+$B$2)^U11),0) ->  | V66: =IF(MOD(V11,Entradas!$G$68)=0,($D$66*(1+$B$2)^V11),0) ->  | W66: =IF(MOD(W11,Entradas!$G$68)=0,($D$66*(1+$B$2)^W11),0) ->  | X66: =IF(MOD(X11,Entradas!$G$68)=0,($D$66*(1+$B$2)^X11),0) ->  | Y66: =IF(MOD(Y11,Entradas!$G$68)=0,($D$66*(1+$B$2)^Y11),0) ->  | Z66: =IF(MOD(Z11,Entradas!$G$68)=0,($D$66*(1+$B$2)^Z11),0) ->  | AA66: =IF(MOD(AA11,Entradas!$G$68)=0,($D$66*(1+$B$2)^AA11),0) ->  | AB66: =IF(MOD(AB11,Entradas!$G$68)=0,($D$66*(1+$B$2)^AB11),0) ->  | AC66: =IF(MOD(AC11,Entradas!$G$68)=0,($D$66*(1+$B$2)^AC11),0) -> 
A67: Irrigation system | C67: =IF(Entradas!$E$8="","",Entradas!$E$8) -> € | D67: =Entradas!E69 -> 0 | E67: =IF(MOD(E11,Entradas!$G$69)=0,($D$67*(1+$B$2)^E11),0) ->  | F67: =IF(MOD(F11,Entradas!$G$69)=0,($D$67*(1+$B$2)^F11),0) ->  | G67: =IF(MOD(G11,Entradas!$G$69)=0,($D$67*(1+$B$2)^G11),0) ->  | H67: =IF(MOD(H11,Entradas!$G$69)=0,($D$67*(1+$B$2)^H11),0) ->  | I67: =IF(MOD(I11,Entradas!$G$69)=0,($D$67*(1+$B$2)^I11),0) ->  | J67: =IF(MOD(J11,Entradas!$G$69)=0,($D$67*(1+$B$2)^J11),0) ->  | K67: =IF(MOD(K11,Entradas!$G$69)=0,($D$67*(1+$B$2)^K11),0) ->  | L67: =IF(MOD(L11,Entradas!$G$69)=0,($D$67*(1+$B$2)^L11),0) ->  | M67: =IF(MOD(M11,Entradas!$G$69)=0,($D$67*(1+$B$2)^M11),0) ->  | N67: =IF(MOD(N11,Entradas!$G$69)=0,($D$67*(1+$B$2)^N11),0) ->  | O67: =IF(MOD(O11,Entradas!$G$69)=0,($D$67*(1+$B$2)^O11),0) ->  | P67: =IF(MOD(P11,Entradas!$G$69)=0,($D$67*(1+$B$2)^P11),0) ->  | Q67: =IF(MOD(Q11,Entradas!$G$69)=0,($D$67*(1+$B$2)^Q11),0) ->  | R67: =IF(MOD(R11,Entradas!$G$69)=0,($D$67*(1+$B$2)^R11),0) ->  | S67: =IF(MOD(S11,Entradas!$G$69)=0,($D$67*(1+$B$2)^S11),0) ->  | T67: =IF(MOD(T11,Entradas!$G$69)=0,($D$67*(1+$B$2)^T11),0) ->  | U67: =IF(MOD(U11,Entradas!$G$69)=0,($D$67*(1+$B$2)^U11),0) ->  | V67: =IF(MOD(V11,Entradas!$G$69)=0,($D$67*(1+$B$2)^V11),0) ->  | W67: =IF(MOD(W11,Entradas!$G$69)=0,($D$67*(1+$B$2)^W11),0) ->  | X67: =IF(MOD(X11,Entradas!$G$69)=0,($D$67*(1+$B$2)^X11),0) ->  | Y67: =IF(MOD(Y11,Entradas!$G$69)=0,($D$67*(1+$B$2)^Y11),0) ->  | Z67: =IF(MOD(Z11,Entradas!$G$69)=0,($D$67*(1+$B$2)^Z11),0) ->  | AA67: =IF(MOD(AA11,Entradas!$G$69)=0,($D$67*(1+$B$2)^AA11),0) ->  | AB67: =IF(MOD(AB11,Entradas!$G$69)=0,($D$67*(1+$B$2)^AB11),0) ->  | AC67: =IF(MOD(AC11,Entradas!$G$69)=0,($D$67*(1+$B$2)^AC11),0) -> 
A68: Drilling | C68: =IF(Entradas!$E$8="","",Entradas!$E$8) -> € | D68: =Entradas!E70 -> 0
A69: Installation | C69: =IF(Entradas!$E$8="","",Entradas!$E$8) -> € | D69: =Entradas!E71 -> 0
A70: Other Costs | C70: =IF(Entradas!$E$8="","",Entradas!$E$8) -> € | D70: =Entradas!E72 -> 0
A71: Loan Repayment | C71: =IF(Entradas!$E$8="","",Entradas!$E$8) -> € | D71: 0 | E71: =IF(E11<='Loan Repayment Grid'!Loan_Years,'Loan Repayment Grid'!Scheduled_Monthly_Payment,0) -> 0 | F71: =IF(F11<='Loan Repayment Grid'!Loan_Years,'Loan Repayment Grid'!Scheduled_Monthly_Payment,0) -> 0 | G71: =IF(G11<='Loan Repayment Grid'!Loan_Years,'Loan Repayment Grid'!Scheduled_Monthly_Payment,0) -> 0 | H71: =IF(H11<='Loan Repayment Grid'!Loan_Years,'Loan Repayment Grid'!Scheduled_Monthly_Payment,0) -> 0 | I71: =IF(I11<='Loan Repayment Grid'!Loan_Years,'Loan Repayment Grid'!Scheduled_Monthly_Payment,0) -> 0 | J71: =IF(J11<='Loan Repayment Grid'!Loan_Years,'Loan Repayment Grid'!Scheduled_Monthly_Payment,0) -> 0 | K71: =IF(K11<='Loan Repayment Grid'!Loan_Years,'Loan Repayment Grid'!Scheduled_Monthly_Payment,0) -> 0 | L71: =IF(L11<='Loan Repayment Grid'!Loan_Years,'Loan Repayment Grid'!Scheduled_Monthly_Payment,0) -> 0 | M71: =IF(M11<='Loan Repayment Grid'!Loan_Years,'Loan Repayment Grid'!Scheduled_Monthly_Payment,0) -> 0 | N71: =IF(N11<='Loan Repayment Grid'!Loan_Years,'Loan Repayment Grid'!Scheduled_Monthly_Payment,0) -> 0 | O71: =IF(O11<='Loan Repayment Grid'!Loan_Years,'Loan Repayment Grid'!Scheduled_Monthly_Payment,0) -> 0 | P71: =IF(P11<='Loan Repayment Grid'!Loan_Years,'Loan Repayment Grid'!Scheduled_Monthly_Payment,0) -> 0 | Q71: =IF(Q11<='Loan Repayment Grid'!Loan_Years,'Loan Repayment Grid'!Scheduled_Monthly_Payment,0) -> 0 | R71: =IF(R11<='Loan Repayment Grid'!Loan_Years,'Loan Repayment Grid'!Scheduled_Monthly_Payment,0) -> 0 | S71: =IF(S11<='Loan Repayment Grid'!Loan_Years,'Loan Repayment Grid'!Scheduled_Monthly_Payment,0) -> 0 | T71: =IF(T11<='Loan Repayment Grid'!Loan_Years,'Loan Repayment Grid'!Scheduled_Monthly_Payment,0) -> 0 | U71: =IF(U11<='Loan Repayment Grid'!Loan_Years,'Loan Repayment Grid'!Scheduled_Monthly_Payment,0) -> 0 | V71: =IF(V11<='Loan Repayment Grid'!Loan_Years,'Loan Repayment Grid'!Scheduled_Monthly_Payment,0) -> 0 | W71: =IF(W11<='Loan Repayment Grid'!Loan_Years,'Loan Repayment Grid'!Scheduled_Monthly_Payment,0) -> 0 | X71: =IF(X11<='Loan Repayment Grid'!Loan_Years,'Loan Repayment Grid'!Scheduled_Monthly_Payment,0) -> 0 | Y71: =IF(Y11<='Loan Repayment Grid'!Loan_Years,'Loan Repayment Grid'!Scheduled_Monthly_Payment,0) -> 0 | Z71: =IF(Z11<='Loan Repayment Grid'!Loan_Years,'Loan Repayment Grid'!Scheduled_Monthly_Payment,0) -> 0 | AA71: =IF(AA11<='Loan Repayment Grid'!Loan_Years,'Loan Repayment Grid'!Scheduled_Monthly_Payment,0) -> 0 | AB71: =IF(AB11<='Loan Repayment Grid'!Loan_Years,'Loan Repayment Grid'!Scheduled_Monthly_Payment,0) -> 0 | AC71: =IF(AC11<='Loan Repayment Grid'!Loan_Years,'Loan Repayment Grid'!Scheduled_Monthly_Payment,0) -> 0
A72: Electricity costs: | C72: =IF(Entradas!$E$8="","",Entradas!$E$8) -> € | D72: 0 | E72: =Entradas!E77 -> 1410 | F72: =E72*(1+(1*$B$6)) -> 1494.6 | G72: =F72*(1+(1*$B$6)) -> 1584.276 | H72: =G72*(1+(1*$B$6)) -> 1679.33256 | I72: 1780.092514 | J72: 1886.898064 | K72: 2000.111948 | L72: 2120.118665 | M72: 2247.325785 | N72: 2382.165332 | O72: 2525.095252 | P72: 2676.600967 | Q72: 2837.197025 | R72: 3007.428847 | S72: 3187.874578 | T72: 3379.147052 | U72: 3581.895875 | V72: 3796.809628 | W72: 4024.618206 | X72: 4266.095298 | Y72: 4522.061016 | Z72: 4793.384677 | AA72: 5080.987757 | AB72: 5385.847023 | AC72: 5708.997844
A73: Operating Costs: | C73: =IF(Entradas!$E$8="","",Entradas!$E$8) -> € | D73: 0 | E73: =SUM(Entradas!E78:E79) -> 0 | F73: =E73*(1+(1*$B$2)) -> 0 | G73: 0 | H73: 0 | I73: 0 | J73: 0 | K73: 0 | L73: 0 | M73: 0 | N73: 0 | O73: 0 | P73: 0 | Q73: 0 | R73: 0 | S73: 0 | T73: 0 | U73: 0 | V73: 0 | W73: 0 | X73: 0 | Y73: 0 | Z73: 0 | AA73: 0 | AB73: 0 | AC73: 0
A74: Water levy | E74: =$B$8*$B$9 -> 100 | F74: =$B$8*$B$9 -> 100 | G74: 100 | H74: 100 | I74: 100 | J74: 100 | K74: 100 | L74: 100 | M74: 100 | N74: 100 | O74: 100 | P74: 100 | Q74: 100 | R74: 100 | S74: 100 | T74: 100 | U74: 100 | V74: 100 | W74: 100 | X74: 100 | Y74: 100 | Z74: 100 | AA74: 100 | AB74: 100 | AC74: 100
A76: Gross Expenses System per year: | C76: =IF(Entradas!$E$8="","",Entradas!$E$8) -> € | D76: =SUM(D62:D70) -> 8000 | E76: =E72+E73+E74+SUMIF(E62:E71,"<1E+307") -> 1510 | F76: =F72+F73+F74+SUMIF(F62:F71,"<1E+307") -> 1594.6 | G76: 1684.276 | H76: 1779.33256 | I76: 1880.092514 | J76: 1986.898064 | K76: 14129.15402 | L76: 2220.118665 | M76: 2347.325785 | N76: 2482.165332 | O76: 2625.095252 | P76: 2776.600967 | Q76: 2937.197025 | R76: 21194.66049 | S76: 3287.874578 | T76: 3479.147052 | U76: 3681.895875 | V76: 3896.809628 | W76: 4124.618206 | X76: 4366.095298 | Y76: 31818.56982 | Z76: 4893.384677 | AA76: 5180.987757 | AB76: 5485.847023 | AC76: 5808.997844
A79: Cash Flow: | C79: =IF(Entradas!$E$8="","",Entradas!$E$8) -> € | D79: =D14-D84 -> -8000 | E79: =E14-E84 -> -1010 | F79: 6150.4 | G79: 13483.774 | H79: 20992.62094 | I79: 28679.35331 | J79: 36546.28488 | K79: 32566.57538 | L79: 40800.38457 | M79: 49220.60448 | N79: 57829.01121 | O79: 66627.20518 | P79: 75616.59211 | Q79: 84798.36263 | R79: 76086.2387 | S79: 85655.37678 | T79: 95418.95277 | U79: 105377.0616 | V79: 115529.4569 | W79: 125875.5197 | X79: 136414.2258 | Y79: 119947.6015 | Z79: 130866.7207 | AA79: 141972.6119 | AB79: 153262.2502 | AC79: 164732.0023
D81: =IF(D79>0,"Yes","No") -> No | E81: =IF(E79>0,"Yes","No") -> No | F81: Yes | G81: Yes | H81: Yes | I81: Yes | J81: Yes | K81: Yes | L81: Yes | M81: Yes | N81: Yes | O81: Yes | P81: Yes | Q81: Yes | R81: Yes | S81: Yes | T81: Yes | U81: Yes | V81: Yes | W81: Yes | X81: Yes | Y81: Yes | Z81: Yes | AA81: Yes | AB81: Yes | AC81: Yes
A82: Payback period against investment (years) | B82: =IF(AC79<0,"no payback",COUNTIF(D79:AC79,"<0")) -> 2 | C82: years
A84: System Life Cycle Costs | B84: =IF($A$85=TRUE,AC85,NA()) -> 145171.7444 | C84: =IF(Entradas!$E$8="","",Entradas!$E$8) -> € | D84: =IF($A$85=TRUE,D85,NA()) -> 8000 | E84: 9510 | F84: 11104.6 | G84: 12788.876 | H84: 14568.20856 | I84: 16448.30107 | J84: 18435.19914 | K84: 32564.35316 | L84: 34784.47182 | M84: 37131.79761 | N84: 39613.96294 | O84: 42239.05819 | P84: 45015.65916 | Q84: 47952.85619 | R84: 69147.51668 | S84: 72435.39126 | T84: 75914.53831 | U84: 79596.43418 | V84: 83493.24381 | W84: 87617.86202 | X84: 91983.95731 | Y84: 123802.5271 | Z84: 128695.9118 | AA84: 133876.8996 | AB84: 139362.7466 | AC84: 145171.7444
A85: TRUE | D85: =D76 -> 8000 | E85: =SUM($D$76:E76) -> 9510 | F85: =SUM($D$76:F76) -> 11104.6 | G85: =SUM($D$76:G76) -> 12788.876 | H85: =SUM($D$76:H76) -> 14568.20856 | I85: =SUM($D$76:I76) -> 16448.30107 | J85: =SUM($D$76:J76) -> 18435.19914 | K85: =SUM($D$76:K76) -> 32564.35316 | L85: =SUM($D$76:L76) -> 34784.47182 | M85: =SUM($D$76:M76) -> 37131.79761 | N85: =SUM($D$76:N76) -> 39613.96294 | O85: =SUM($D$76:O76) -> 42239.05819 | P85: =SUM($D$76:P76) -> 45015.65916 | Q85: =SUM($D$76:Q76) -> 47952.85619 | R85: =SUM($D$76:R76) -> 69147.51668 | S85: =SUM($D$76:S76) -> 72435.39126 | T85: =SUM($D$76:T76) -> 75914.53831 | U85: =SUM($D$76:U76) -> 79596.43418 | V85: =SUM($D$76:V76) -> 83493.24381 | W85: =SUM($D$76:W76) -> 87617.86202 | X85: =SUM($D$76:X76) -> 91983.95731 | Y85: =SUM($D$76:Y76) -> 123802.5271 | Z85: =SUM($D$76:Z76) -> 128695.9118 | AA85: =SUM($D$76:AA76) -> 133876.8996 | AB85: =SUM($D$76:AB76) -> 139362.7466 | AC85: =SUM($D$76:AC76) -> 145171.7444
A86: Cost of water | C86: =IF(Entradas!$E$8="","",Entradas!$E$8&" /m3") -> € /m3 | D86: =D76/($B$9*365) -> 0.4383561644 | E86: =E76/($B$9*365) -> 0.08273972603 | F86: 0.08737534247 | G86: 0.09228909589 | H86: 0.09749767452 | I86: 0.1030187679 | J86: 0.1088711268 | K86: 0.7742002203 | L86: 0.1216503378 | M86: 0.128620591 | N86: 0.1360090593 | O86: 0.1438408357 | P86: 0.1521425188 | Q86: 0.1609423028 | R86: 1.16135126 | S86: 0.1801575111 | T86: 0.1906381946 | U86: 0.2017477192 | V86: 0.2135238152 | W86: 0.226006477 | X86: 0.2392380985 | Y86: 1.743483278 | Z86: 0.2681306672 | AA86: 0.2838897401 | AB86: 0.3005943574 | AC86: 0.3183012517
A87: Average water cost over 25 years | B87: =AVERAGE(D86:AC86) -> 0.3059467744 | C87: =IF(Entradas!$E$8="","",Entradas!$E$8&" /m3") -> € /m3 | I87: =AVERAGE(D86:I86) -> 0.1502127952 | N87: =AVERAGE(D86:N86) -> 0.1973298278
A89: NPV | B89: =Entradas!E12 -> 0.04 | C89: =NPV(B89,E79:AC79)+D79 -> 1011366.679
A90: IRR | C90: =IRR(D79:AC79) -> 0.8821485096
N97: PV | P97: Diesel
L98: Anuties of Investment | N98: =C51 -> 632743.7758 | P98: =C89 -> 1011366.679
L100: Year | N100: Annuity | O100: NPV | P100: Annuity | Q100: NPV
L101: 0
L102: 1 | N102: =PMT($B$51,$L$121,$C$51,0,0)*-1 -> 46558.39453 | O102: =N102*(1.05^-L102) -> 44341.32813 | P102: =PMT($B$89,$L$121,$C$89,0,0)*-1 -> 74418.13045 | Q102: =P102*(1.06^-L102) -> 70205.78345
L103: =L102+1 -> 2 | N103: =PMT($B$51,$L$121,$C$51,0,0)*-1 -> 46558.39453 | O103: =N103*(1.06^-L103) -> 41436.80539 | P103: =PMT($B$89,$L$121,$C$89,0,0)*-1 -> 74418.13045 | Q103: =P103*(1.06^-L103) -> 66231.87118
L104: 3 | N104: 46558.39453 | O104: 39091.32584 | P104: 74418.13045 | Q104: 62482.89734
L105: 4 | N105: 46558.39453 | O105: 36878.60928 | P105: 74418.13045 | Q105: 58946.12956
L106: 5 | N106: 46558.39453 | O106: 34791.14083 | P106: 74418.13045 | Q106: 55609.55619
L107: 6 | N107: 46558.39453 | O107: 32821.83097 | P107: 74418.13045 | Q107: 52461.84546
L108: 7 | N108: 46558.39453 | O108: 30963.99148 | P108: 74418.13045 | Q108: 49492.30704
L109: 8 | N109: 46558.39453 | O109: 29211.31272 | P109: 74418.13045 | Q109: 46690.8557
L110: 9 | N110: 46558.39453 | O110: 27557.84219 | P110: 74418.13045 | Q110: 44047.97707
L111: 10 | N111: 46558.39453 | O111: 25997.96433 | P111: 74418.13045 | Q111: 41554.69535
L112: 11 | N112: 46558.39453 | O112: 24526.38144 | P112: 74418.13045 | Q112: 39202.54279
L113: 12 | N113: 46558.39453 | O113: 23138.0957 | P113: 74418.13045 | Q113: 36983.53093
L114: 13 | N114: 46558.39453 | O114: 21828.39217 | P114: 74418.13045 | Q114: 34890.12352
L115: 14 | N115: 46558.39453 | O115: 20592.8228 | P115: 74418.13045 | Q115: 32915.21087
L116: 15 | N116: 46558.39453 | O116: 19427.19132 | P116: 74418.13045 | Q116: 31052.08572
L117: 16 | N117: 46558.39453 | O117: 18327.53898 | P117: 74418.13045 | Q117: 29294.42049
L118: 17 | N118: 46558.39453 | O118: 17290.13112 | P118: 74418.13045 | Q118: 27636.24575
L119: 18 | N119: 46558.39453 | O119: 16311.44445 | P119: 74418.13045 | Q119: 26071.92995
L120: 19 | N120: 46558.39453 | O120: 15388.15514 | P120: 74418.13045 | Q120: 24596.16033
L121: 20 | N121: 46558.39453 | O121: 14517.12749 | P121: 74418.13045 | Q121: 23203.92484
L123: Total | O123: =SUM(O102:O121) -> 534439.4318 | Q123: =SUM(Q102:Q121) -> 853570.0935
A127: =Entradas!D92 -> Sistema de riego con generador diésel
A129: =Entradas!C96 -> Generador | C129: =IF(Entradas!$E$8="","",Entradas!$E$8) -> € | D129: =Entradas!E96 -> 2000 | E129: =IF(MOD(E11,Entradas!$G$96)=0,($D$129*(1+$B$2)^E11),0) -> 0 | F129: =IF(MOD(F11,Entradas!$G$96)=0,($D$129*(1+$B$2)^F11),0) -> 0 | G129: =IF(MOD(G11,Entradas!$G$96)=0,($D$129*(1+$B$2)^G11),0) -> 0 | H129: =IF(MOD(H11,Entradas!$G$96)=0,($D$129*(1+$B$2)^H11),0) -> 0 | I129: =IF(MOD(I11,Entradas!$G$96)=0,($D$129*(1+$B$2)^I11),0) -> 0 | J129: =IF(MOD(J11,Entradas!$G$96)=0,($D$129*(1+$B$2)^J11),0) -> 0 | K129: =IF(MOD(K11,Entradas!$G$96)=0,($D$129*(1+$B$2)^K11),0) -> 3007.260518 | L129: =IF(MOD(L11,Entradas!$G$96)=0,($D$129*(1+$B$2)^L11),0) -> 0 | M129: =IF(MOD(M11,Entradas!$G$96)=0,($D$129*(1+$B$2)^M11),0) -> 0 | N129: =IF(MOD(N11,Entradas!$G$96)=0,($D$129*(1+$B$2)^N11),0) -> 0 | O129: =IF(MOD(O11,Entradas!$G$96)=0,($D$129*(1+$B$2)^O11),0) -> 0 | P129: =IF(MOD(P11,Entradas!$G$96)=0,($D$129*(1+$B$2)^P11),0) -> 0 | Q129: =IF(MOD(Q11,Entradas!$G$96)=0,($D$129*(1+$B$2)^Q11),0) -> 0 | R129: =IF(MOD(R11,Entradas!$G$96)=0,($D$129*(1+$B$2)^R11),0) -> 4521.807912 | S129: =IF(MOD(S11,Entradas!$G$96)=0,($D$129*(1+$B$2)^S11),0) -> 0 | T129: =IF(MOD(T11,Entradas!$G$96)=0,($D$129*(1+$B$2)^T11),0) -> 0 | U129: =IF(MOD(U11,Entradas!$G$96)=0,($D$129*(1+$B$2)^U11),0) -> 0 | V129: =IF(MOD(V11,Entradas!$G$96)=0,($D$129*(1+$B$2)^V11),0) -> 0 | W129: =IF(MOD(W11,Entradas!$G$96)=0,($D$129*(1+$B$2)^W11),0) -> 0 | X129: =IF(MOD(X11,Entradas!$G$96)=0,($D$129*(1+$B$2)^X11),0) -> 0 | Y129: =IF(MOD(Y11,Entradas!$G$96)=0,($D$129*(1+$B$2)^Y11),0) -> 6799.127201 | Z129: =IF(MOD(Z11,Entradas!$G$96)=0,($D$129*(1+$B$2)^Z11),0) -> 0 | AA129: =IF(MOD(AA11,Entradas!$G$96)=0,($D$129*(1+$B$2)^AA11),0) -> 0 | AB129: =IF(MOD(AB11,Entradas!$G$96)=0,($D$129*(1+$B$2)^AB11),0) -> 0 | AC129: =IF(MOD(AC11,Entradas!$G$96)=0,($D$129*(1+$B$2)^AC11),0) -> 0
A130: =Entradas!C97 -> Bomba | C130: =IF(Entradas!$E$8="","",Entradas!$E$8) -> € | D130: =Entradas!E97 -> 5000 | E130: =IF(MOD(E11,Entradas!$G$97)=0,($D$130*(1+$B$2)^E11),0) -> 0 | F130: =IF(MOD(F11,Entradas!$G$97)=0,($D$130*(1+$B$2)^F11),0) -> 0 | G130: =IF(MOD(G11,Entradas!$G$97)=0,($D$130*(1+$B$2)^G11),0) -> 0 | H130: =IF(MOD(H11,Entradas!$G$97)=0,($D$130*(1+$B$2)^H11),0) -> 0 | I130: =IF(MOD(I11,Entradas!$G$97)=0,($D$130*(1+$B$2)^I11),0) -> 0 | J130: =IF(MOD(J11,Entradas!$G$97)=0,($D$130*(1+$B$2)^J11),0) -> 0 | K130: =IF(MOD(K11,Entradas!$G$97)=0,($D$130*(1+$B$2)^K11),0) -> 7518.151295 | L130: =IF(MOD(L11,Entradas!$G$97)=0,($D$130*(1+$B$2)^L11),0) -> 0 | M130: =IF(MOD(M11,Entradas!$G$97)=0,($D$130*(1+$B$2)^M11),0) -> 0 | N130: =IF(MOD(N11,Entradas!$G$97)=0,($D$130*(1+$B$2)^N11),0) -> 0 | O130: =IF(MOD(O11,Entradas!$G$97)=0,($D$130*(1+$B$2)^O11),0) -> 0 | P130: =IF(MOD(P11,Entradas!$G$97)=0,($D$130*(1+$B$2)^P11),0) -> 0 | Q130: =IF(MOD(Q11,Entradas!$G$97)=0,($D$130*(1+$B$2)^Q11),0) -> 0 | R130: =IF(MOD(R11,Entradas!$G$97)=0,($D$130*(1+$B$2)^R11),0) -> 11304.51978 | S130: =IF(MOD(S11,Entradas!$G$97)=0,($D$130*(1+$B$2)^S11),0) -> 0 | T130: =IF(MOD(T11,Entradas!$G$97)=0,($D$130*(1+$B$2)^T11),0) -> 0 | U130: =IF(MOD(U11,Entradas!$G$97)=0,($D$130*(1+$B$2)^U11),0) -> 0 | V130: =IF(MOD(V11,Entradas!$G$97)=0,($D$130*(1+$B$2)^V11),0) -> 0 | W130: =IF(MOD(W11,Entradas!$G$97)=0,($D$130*(1+$B$2)^W11),0) -> 0 | X130: =IF(MOD(X11,Entradas!$G$97)=0,($D$130*(1+$B$2)^X11),0) -> 0 | Y130: =IF(MOD(Y11,Entradas!$G$97)=0,($D$130*(1+$B$2)^Y11),0) -> 16997.818 | Z130: =IF(MOD(Z11,Entradas!$G$97)=0,($D$130*(1+$B$2)^Z11),0) -> 0 | AA130: =IF(MOD(AA11,Entradas!$G$97)=0,($D$130*(1+$B$2)^AA11),0) -> 0 | AB130: =IF(MOD(AB11,Entradas!$G$97)=0,($D$130*(1+$B$2)^AB11),0) -> 0 | AC130: =IF(MOD(AC11,Entradas!$G$97)=0,($D$130*(1+$B$2)^AC11),0) -> 0
A131: Wires / tubes | C131: =IF(Entradas!$E$8="","",Entradas!$E$8) -> € | D131: =Entradas!E98 -> 0 | E131: =IF(MOD(E11,Entradas!$G$98)=0,($D$131*(1+$B$2)^E11),0) ->  | F131: =IF(MOD(F11,Entradas!$G$98)=0,($D$131*(1+$B$2)^F11),0) ->  | G131: =IF(MOD(G11,Entradas!$G$98)=0,($D$131*(1+$B$2)^G11),0) ->  | H131: =IF(MOD(H11,Entradas!$G$98)=0,($D$131*(1+$B$2)^H11),0) ->  | I131: =IF(MOD(I11,Entradas!$G$98)=0,($D$131*(1+$B$2)^I11),0) ->  | J131: =IF(MOD(J11,Entradas!$G$98)=0,($D$131*(1+$B$2)^J11),0) ->  | K131: =IF(MOD(K11,Entradas!$G$98)=0,($D$131*(1+$B$2)^K11),0) ->  | L131: =IF(MOD(L11,Entradas!$G$98)=0,($D$131*(1+$B$2)^L11),0) ->  | M131: =IF(MOD(M11,Entradas!$G$98)=0,($D$131*(1+$B$2)^M11),0) ->  | N131: =IF(MOD(N11,Entradas!$G$98)=0,($D$131*(1+$B$2)^N11),0) ->  | O131: =IF(MOD(O11,Entradas!$G$98)=0,($D$131*(1+$B$2)^O11),0) ->  | P131: =IF(MOD(P11,Entradas!$G$98)=0,($D$131*(1+$B$2)^P11),0) ->  | Q131: =IF(MOD(Q11,Entradas!$G$98)=0,($D$131*(1+$B$2)^Q11),0) ->  | R131: =IF(MOD(R11,Entradas!$G$98)=0,($D$131*(1+$B$2)^R11),0) ->  | S131: =IF(MOD(S11,Entradas!$G$98)=0,($D$131*(1+$B$2)^S11),0) ->  | T131: =IF(MOD(T11,Entradas!$G$98)=0,($D$131*(1+$B$2)^T11),0) ->  | U131: =IF(MOD(U11,Entradas!$G$98)=0,($D$131*(1+$B$2)^U11),0) ->  | V131: =IF(MOD(V11,Entradas!$G$98)=0,($D$131*(1+$B$2)^V11),0) ->  | W131: =IF(MOD(W11,Entradas!$G$98)=0,($D$131*(1+$B$2)^W11),0) ->  | X131: =IF(MOD(X11,Entradas!$G$98)=0,($D$131*(1+$B$2)^X11),0) ->  | Y131: =IF(MOD(Y11,Entradas!$G$98)=0,($D$131*(1+$B$2)^Y11),0) ->  | Z131: =IF(MOD(Z11,Entradas!$G$98)=0,($D$131*(1+$B$2)^Z11),0) ->  | AA131: =IF(MOD(AA11,Entradas!$G$98)=0,($D$131*(1+$B$2)^AA11),0) ->  | AB131: =IF(MOD(AB11,Entradas!$G$98)=0,($D$131*(1+$B$2)^AB11),0) ->  | AC131: =IF(MOD(AC11,Entradas!$G$98)=0,($D$131*(1+$B$2)^AC11),0) -> 
A132: =Entradas!C99 -> Almacenamiento de agua | C132: =IF(Entradas!$E$8="","",Entradas!$E$8) -> € | D132: =Entradas!E99 -> 0 | E132: =IF(MOD(E11,Entradas!$G$99)=0,($D$132*(1+$B$2)^E11),0) ->  | F132: =IF(MOD(F11,Entradas!$G$99)=0,($D$132*(1+$B$2)^F11),0) ->  | G132: =IF(MOD(G11,Entradas!$G$99)=0,($D$132*(1+$B$2)^G11),0) ->  | H132: =IF(MOD(H11,Entradas!$G$99)=0,($D$132*(1+$B$2)^H11),0) ->  | I132: =IF(MOD(I11,Entradas!$G$99)=0,($D$132*(1+$B$2)^I11),0) ->  | J132: =IF(MOD(J11,Entradas!$G$99)=0,($D$132*(1+$B$2)^J11),0) ->  | K132: =IF(MOD(K11,Entradas!$G$99)=0,($D$132*(1+$B$2)^K11),0) ->  | L132: =IF(MOD(L11,Entradas!$G$99)=0,($D$132*(1+$B$2)^L11),0) ->  | M132: =IF(MOD(M11,Entradas!$G$99)=0,($D$132*(1+$B$2)^M11),0) ->  | N132: =IF(MOD(N11,Entradas!$G$99)=0,($D$132*(1+$B$2)^N11),0) ->  | O132: =IF(MOD(O11,Entradas!$G$99)=0,($D$132*(1+$B$2)^O11),0) ->  | P132: =IF(MOD(P11,Entradas!$G$99)=0,($D$132*(1+$B$2)^P11),0) ->  | Q132: =IF(MOD(Q11,Entradas!$G$99)=0,($D$132*(1+$B$2)^Q11),0) ->  | R132: =IF(MOD(R11,Entradas!$G$99)=0,($D$132*(1+$B$2)^R11),0) ->  | S132: =IF(MOD(S11,Entradas!$G$99)=0,($D$132*(1+$B$2)^S11),0) ->  | T132: =IF(MOD(T11,Entradas!$G$99)=0,($D$132*(1+$B$2)^T11),0) ->  | U132: =IF(MOD(U11,Entradas!$G$99)=0,($D$132*(1+$B$2)^U11),0) ->  | V132: =IF(MOD(V11,Entradas!$G$99)=0,($D$132*(1+$B$2)^V11),0) ->  | W132: =IF(MOD(W11,Entradas!$G$99)=0,($D$132*(1+$B$2)^W11),0) ->  | X132: =IF(MOD(X11,Entradas!$G$99)=0,($D$132*(1+$B$2)^X11),0) ->  | Y132: =IF(MOD(Y11,Entradas!$G$99)=0,($D$132*(1+$B$2)^Y11),0) ->  | Z132: =IF(MOD(Z11,Entradas!$G$99)=0,($D$132*(1+$B$2)^Z11),0) ->  | AA132: =IF(MOD(AA11,Entradas!$G$99)=0,($D$132*(1+$B$2)^AA11),0) ->  | AB132: =IF(MOD(AB11,Entradas!$G$99)=0,($D$132*(1+$B$2)^AB11),0) ->  | AC132: =IF(MOD(AC11,Entradas!$G$99)=0,($D$132*(1+$B$2)^AC11),0) -> 
A133: Irrigation system | C133: =IF(Entradas!$E$8="","",Entradas!$E$8) -> € | D133: =Entradas!E100 -> 0 | E133: =IF(MOD(E11,Entradas!$G$100)=0,($D$133*(1+$B$2)^E11),0) ->  | F133: =IF(MOD(F11,Entradas!$G$100)=0,($D$133*(1+$B$2)^F11),0) ->  | G133: =IF(MOD(G11,Entradas!$G$100)=0,($D$133*(1+$B$2)^G11),0) ->  | H133: =IF(MOD(H11,Entradas!$G$100)=0,($D$133*(1+$B$2)^H11),0) ->  | I133: =IF(MOD(I11,Entradas!$G$100)=0,($D$133*(1+$B$2)^I11),0) ->  | J133: =IF(MOD(J11,Entradas!$G$100)=0,($D$133*(1+$B$2)^J11),0) ->  | K133: =IF(MOD(K11,Entradas!$G$100)=0,($D$133*(1+$B$2)^K11),0) ->  | L133: =IF(MOD(L11,Entradas!$G$100)=0,($D$133*(1+$B$2)^L11),0) ->  | M133: =IF(MOD(M11,Entradas!$G$100)=0,($D$133*(1+$B$2)^M11),0) ->  | N133: =IF(MOD(N11,Entradas!$G$100)=0,($D$133*(1+$B$2)^N11),0) ->  | O133: =IF(MOD(O11,Entradas!$G$100)=0,($D$133*(1+$B$2)^O11),0) ->  | P133: =IF(MOD(P11,Entradas!$G$100)=0,($D$133*(1+$B$2)^P11),0) ->  | Q133: =IF(MOD(Q11,Entradas!$G$100)=0,($D$133*(1+$B$2)^Q11),0) ->  | R133: =IF(MOD(R11,Entradas!$G$100)=0,($D$133*(1+$B$2)^R11),0) ->  | S133: =IF(MOD(S11,Entradas!$G$100)=0,($D$133*(1+$B$2)^S11),0) ->  | T133: =IF(MOD(T11,Entradas!$G$100)=0,($D$133*(1+$B$2)^T11),0) ->  | U133: =IF(MOD(U11,Entradas!$G$100)=0,($D$133*(1+$B$2)^U11),0) ->  | V133: =IF(MOD(V11,Entradas!$G$100)=0,($D$133*(1+$B$2)^V11),0) ->  | W133: =IF(MOD(W11,Entradas!$G$100)=0,($D$133*(1+$B$2)^W11),0) ->  | X133: =IF(MOD(X11,Entradas!$G$100)=0,($D$133*(1+$B$2)^X11),0) ->  | Y133: =IF(MOD(Y11,Entradas!$G$100)=0,($D$133*(1+$B$2)^Y11),0) ->  | Z133: =IF(MOD(Z11,Entradas!$G$100)=0,($D$133*(1+$B$2)^Z11),0) ->  | AA133: =IF(MOD(AA11,Entradas!$G$100)=0,($D$133*(1+$B$2)^AA11),0) ->  | AB133: =IF(MOD(AB11,Entradas!$G$100)=0,($D$133*(1+$B$2)^AB11),0) ->  | AC133: =IF(MOD(AC11,Entradas!$G$100)=0,($D$133*(1+$B$2)^AC11),0) -> 
A134: Drilling | C134: =IF(Entradas!$E$8="","",Entradas!$E$8) -> € | D134: =Entradas!E101 -> 0
A135: Installation | C135: =IF(Entradas!$E$8="","",Entradas!$E$8) -> € | D135: =Entradas!E102 -> 0
A136: Other Costs | C136: =IF(Entradas!$E$8="","",Entradas!$E$8) -> € | D136: =Entradas!E103 -> 0
A137: Loan Repayment | C137: =IF(Entradas!$E$8="","",Entradas!$E$8) -> € | D137: 0 | E137: =IF(E11<='Loan Repayment Diesel'!Loan_Years,'Loan Repayment Diesel'!Scheduled_Monthly_Payment,0) -> 0 | F137: =IF(F11<='Loan Repayment Diesel'!Loan_Years,'Loan Repayment Diesel'!Scheduled_Monthly_Payment,0) -> 0 | G137: =IF(G11<='Loan Repayment Diesel'!Loan_Years,'Loan Repayment Diesel'!Scheduled_Monthly_Payment,0) -> 0 | H137: =IF(H11<='Loan Repayment Diesel'!Loan_Years,'Loan Repayment Diesel'!Scheduled_Monthly_Payment,0) -> 0 | I137: =IF(I11<='Loan Repayment Diesel'!Loan_Years,'Loan Repayment Diesel'!Scheduled_Monthly_Payment,0) -> 0 | J137: =IF(J11<='Loan Repayment Diesel'!Loan_Years,'Loan Repayment Diesel'!Scheduled_Monthly_Payment,0) -> 0 | K137: =IF(K11<='Loan Repayment Diesel'!Loan_Years,'Loan Repayment Diesel'!Scheduled_Monthly_Payment,0) -> 0 | L137: =IF(L11<='Loan Repayment Diesel'!Loan_Years,'Loan Repayment Diesel'!Scheduled_Monthly_Payment,0) -> 0 | M137: =IF(M11<='Loan Repayment Diesel'!Loan_Years,'Loan Repayment Diesel'!Scheduled_Monthly_Payment,0) -> 0 | N137: =IF(N11<='Loan Repayment Diesel'!Loan_Years,'Loan Repayment Diesel'!Scheduled_Monthly_Payment,0) -> 0 | O137: =IF(O11<='Loan Repayment Diesel'!Loan_Years,'Loan Repayment Diesel'!Scheduled_Monthly_Payment,0) -> 0 | P137: =IF(P11<='Loan Repayment Diesel'!Loan_Years,'Loan Repayment Diesel'!Scheduled_Monthly_Payment,0) -> 0 | Q137: =IF(Q11<='Loan Repayment Diesel'!Loan_Years,'Loan Repayment Diesel'!Scheduled_Monthly_Payment,0) -> 0 | R137: =IF(R11<='Loan Repayment Diesel'!Loan_Years,'Loan Repayment Diesel'!Scheduled_Monthly_Payment,0) -> 0 | S137: =IF(S11<='Loan Repayment Diesel'!Loan_Years,'Loan Repayment Diesel'!Scheduled_Monthly_Payment,0) -> 0 | T137: =IF(T11<='Loan Repayment Diesel'!Loan_Years,'Loan Repayment Diesel'!Scheduled_Monthly_Payment,0) -> 0 | U137: =IF(U11<='Loan Repayment Diesel'!Loan_Years,'Loan Repayment Diesel'!Scheduled_Monthly_Payment,0) -> 0 | V137: =IF(V11<='Loan Repayment Diesel'!Loan_Years,'Loan Repayment Diesel'!Scheduled_Monthly_Payment,0) -> 0 | W137: =IF(W11<='Loan Repayment Diesel'!Loan_Years,'Loan Repayment Diesel'!Scheduled_Monthly_Payment,0) -> 0 | X137: =IF(X11<='Loan Repayment Diesel'!Loan_Years,'Loan Repayment Diesel'!Scheduled_Monthly_Payment,0) -> 0 | Y137: =IF(Y11<='Loan Repayment Diesel'!Loan_Years,'Loan Repayment Diesel'!Scheduled_Monthly_Payment,0) -> 0 | Z137: =IF(Z11<='Loan Repayment Diesel'!Loan_Years,'Loan Repayment Diesel'!Scheduled_Monthly_Payment,0) -> 0 | AA137: =IF(AA11<='Loan Repayment Diesel'!Loan_Years,'Loan Repayment Diesel'!Scheduled_Monthly_Payment,0) -> 0 | AB137: =IF(AB11<='Loan Repayment Diesel'!Loan_Years,'Loan Repayment Diesel'!Scheduled_Monthly_Payment,0) -> 0 | AC137: =IF(AC11<='Loan Repayment Diesel'!Loan_Years,'Loan Repayment Diesel'!Scheduled_Monthly_Payment,0) -> 0
A138: Fuel costs: | C138: =IF(Entradas!$E$8="","",Entradas!$E$8) -> € | D138: 0 | E138: =Entradas!E108 -> 3780 | F138: =E138*(1+(1*$B$5)) -> 4082.4 | G138: =F138*(1+(1*$B$5)) -> 4408.992 | H138: 4761.71136 | I138: 5142.648269 | J138: 5554.06013 | K138: 5998.384941 | L138: 6478.255736 | M138: 6996.516195 | N138: 7556.23749 | O138: 8160.73649 | P138: 8813.595409 | Q138: 9518.683042 | R138: 10280.17768 | S138: 11102.5919 | T138: 11990.79925 | U138: 12950.06319 | V138: 13986.06825 | W138: 15104.95371 | X138: 16313.35 | Y138: 17618.418 | Z138: 19027.89144 | AA138: 20550.12276 | AB138: 22194.13258 | AC138: 23969.66319
A139: Operating Costs: | C139: =IF(Entradas!$E$8="","",Entradas!$E$8) -> € | D139: 0 | E139: =SUM(Entradas!E109:E110) -> 0 | F139: =E139*(1+(1*$B$2)) -> 0 | G139: =F139*(1+(1*$B$2)) -> 0 | H139: =G139*(1+(1*$B$2)) -> 0 | I139: =H139*(1+(1*$B$2)) -> 0 | J139: =I139*(1+(1*$B$2)) -> 0 | K139: =J139*(1+(1*$B$2)) -> 0 | L139: =K139*(1+(1*$B$2)) -> 0 | M139: =L139*(1+(1*$B$2)) -> 0 | N139: =M139*(1+(1*$B$2)) -> 0 | O139: =N139*(1+(1*$B$2)) -> 0 | P139: =O139*(1+(1*$B$2)) -> 0 | Q139: =P139*(1+(1*$B$2)) -> 0 | R139: =Q139*(1+(1*$B$2)) -> 0 | S139: =R139*(1+(1*$B$2)) -> 0 | T139: =S139*(1+(1*$B$2)) -> 0 | U139: =T139*(1+(1*$B$2)) -> 0 | V139: =U139*(1+(1*$B$2)) -> 0 | W139: =V139*(1+(1*$B$2)) -> 0 | X139: =W139*(1+(1*$B$2)) -> 0 | Y139: =X139*(1+(1*$B$2)) -> 0 | Z139: =Y139*(1+(1*$B$2)) -> 0 | AA139: =Z139*(1+(1*$B$2)) -> 0 | AB139: =AA139*(1+(1*$B$2)) -> 0 | AC139: =AB139*(1+(1*$B$2)) -> 0
A140: Water levy | E140: =$B$8*$B$9 -> 100 | F140: =$B$8*$B$9 -> 100 | G140: 100 | H140: 100 | I140: 100 | J140: 100 | K140: 100 | L140: 100 | M140: 100 | N140: 100 | O140: 100 | P140: 100 | Q140: 100 | R140: 100 | S140: 100 | T140: 100 | U140: 100 | V140: 100 | W140: 100 | X140: 100 | Y140: 100 | Z140: 100 | AA140: 100 | AB140: 100 | AC140: 100
A142: Gross Expenses System per year: | C142: =IF(Entradas!$E$8="","",Entradas!$E$8) -> € | D142: =SUM(D129:D136) -> 7000 | E142: =E138+E139+E140+SUMIF(E129:E137,"<1E+307") -> 3880 | F142: =F138+F139+F140+SUMIF(F129:F137,"<1E+307") -> 4182.4 | G142: 4508.992 | H142: 4861.71136 | I142: 5242.648269 | J142: 5654.06013 | K142: 16623.79675 | L142: 6578.255736 | M142: 7096.516195 | N142: 7656.23749 | O142: 8260.73649 | P142: 8913.595409 | Q142: 9618.683042 | R142: 26206.50538 | S142: 11202.5919 | T142: 12090.79925 | U142: 13050.06319 | V142: 14086.06825 | W142: 15204.95371 | X142: 16413.35 | Y142: 41515.36321 | Z142: 19127.89144 | AA142: 20650.12276 | AB142: 22294.13258 | AC142: 24069.66319
A145: Cash Flow: | C145: =IF(Entradas!$E$8="","",Entradas!$E$8) -> € | D145: =D14-D150 -> -7000 | E145: =E14-E150 -> -2380 | F145: =F14-F150 -> 2192.6 | G145: =G14-G150 -> 6701.258 | H145: 11127.72614 | I145: 15451.90276 | J145: 19651.67226 | K145: 13177.32002 | L145: 17052.99214 | M145: 20724.02164 | N145: 24158.35621 | O145: 27320.90895 | P145: 30173.30144 | Q145: 32673.58594 | R145: 18949.61713 | S145: 20604.03789 | T145: 21755.96168 | U145: 22345.90322 | V145: 22309.03984 | W145: 21574.76716 | X145: 20066.21861 | Y145: -6097.199107 | Z145: -9412.586691 | AA145: -13775.83048 | AB145: -19294.47771 | AC145: -26085.39099
D147: =IF(D145>0,"Yes","No") -> No | E147: =IF(E145>0,"Yes","No") -> No | F147: Yes | G147: Yes | H147: Yes | I147: Yes | J147: Yes | K147: Yes | L147: Yes | M147: Yes | N147: Yes | O147: Yes | P147: Yes | Q147: Yes | R147: Yes | S147: Yes | T147: Yes | U147: Yes | V147: =IF(V145>0,"Yes","No") -> Yes | W147: Yes | X147: Yes | Y147: No | Z147: No | AA147: No | AB147: No | AC147: No
A148: Payback period against investment (years) | B148: =IF(AC145<0,"no payback",COUNTIF(D145:AC145,"<0")) -> no payback | C148: years
A150: System Life Cycle Costs | B150: =IF($A$151=TRUE,AC151,NA()) -> 335989.1377 | C150: =IF(Entradas!$E$8="","",Entradas!$E$8) -> € | D150: =IF($A$151=TRUE,D151,NA()) -> 7000 | E150: =IF($A$151=TRUE,E151,NA()) -> 10880 | F150: 15062.4 | G150: 19571.392 | H150: 24433.10336 | I150: 29675.75163 | J150: 35329.81176 | K150: 51953.60851 | L150: 58531.86425 | M150: 65628.38044 | N150: 73284.61793 | O150: 81545.35442 | P150: 90458.94983 | Q150: 100077.6329 | R150: 126284.1382 | S150: 137486.7301 | T150: 149577.5294 | U150: 162627.5926 | V150: 176713.6608 | W150: 191918.6145 | X150: 208331.9646 | Y150: 249847.3278 | Z150: 268975.2192 | AA150: 289625.342 | AB150: 311919.4745 | AC150: =IF($A$151=TRUE,AC151,NA()) -> 335989.1377
A151: TRUE | D151: =D142 -> 7000 | E151: =SUM($D$142:E142) -> 10880 | F151: =SUM($D$142:F142) -> 15062.4 | G151: =SUM($D$142:G142) -> 19571.392 | H151: =SUM($D$142:H142) -> 24433.10336 | I151: =SUM($D$142:I142) -> 29675.75163 | J151: =SUM($D$142:J142) -> 35329.81176 | K151: =SUM($D$142:K142) -> 51953.60851 | L151: =SUM($D$142:L142) -> 58531.86425 | M151: =SUM($D$142:M142) -> 65628.38044 | N151: =SUM($D$142:N142) -> 73284.61793 | O151: =SUM($D$142:O142) -> 81545.35442 | P151: =SUM($D$142:P142) -> 90458.94983 | Q151: =SUM($D$142:Q142) -> 100077.6329 | R151: =SUM($D$142:R142) -> 126284.1382 | S151: =SUM($D$142:S142) -> 137486.7301 | T151: =SUM($D$142:T142) -> 149577.5294 | U151: =SUM($D$142:U142) -> 162627.5926 | V151: =SUM($D$142:V142) -> 176713.6608 | W151: =SUM($D$142:W142) -> 191918.6145 | X151: =SUM($D$142:X142) -> 208331.9646 | Y151: =SUM($D$142:Y142) -> 249847.3278 | Z151: =SUM($D$142:Z142) -> 268975.2192 | AA151: =SUM($D$142:AA142) -> 289625.342 | AB151: =SUM($D$142:AB142) -> 311919.4745 | AC151: =SUM($D$142:AC142) -> 335989.1377
A152: Cost of water | C152: =IF(Entradas!$E$8="","",Entradas!$E$8&" /m3") -> € /m3 | D152: =D142/($B$9*365) -> 0.3835616438 | E152: =E142/($B$9*365) -> 0.2126027397 | F152: 0.2291726027 | G152: 0.2470680548 | H152: 0.266395143 | I152: 0.2872683983 | J152: 0.309811514 | K152: 0.9108929728 | L152: 0.3604523691 | M152: 0.3888502025 | N152: 0.4195198625 | O152: 0.4526430953 | P152: 0.4884161868 | Q152: 0.5270511256 | R152: 1.435972897 | S152: 0.613840652 | T152: 0.662509548 | U152: 0.7150719557 | V152: 0.771839356 | W152: 0.8331481483 | X152: 0.899361644 | Y152: 2.274814422 | Z152: 1.048103641 | AA152: 1.131513576 | AB152: 1.221596306 | AC152: 1.318885654
A153: Average water cost over 25 years | B153: =AVERAGE(D152:AC152) -> 0.708090912 | C153: =IF(Entradas!$E$8="","",Entradas!$E$8&" /m3") -> € /m3 | I153: =AVERAGE(D152:I152) -> 0.2710114304 | N153: =AVERAGE(D152:N152) -> 0.3650541367
A155: NPV | B155: =Entradas!E12 -> 0.04 | C155: =NPV(B155,E145:AC145)+D145 -> 192343.6672
A156: IRR | C156: =IRR(D145:AC145) -> 0.6061958228
F181: Diagramms (Output) - Number:
E185: =Resultados!B26 -> Valor actual neto (VAN): | H185: =Resultados!B24 -> Tasa interna de retorno (TIR) durante más de 25 años: | K185: =Resultados!B30 -> Costos del ciclo de vida del sistema (25 años): | N185: =Resultados!B32 -> Años para amortización: | R185: Accumulated cash flow | U185: Water cost | V185: 5 years | W185: 10 years | X185: 25 years
E187: =Entradas!D30 -> Sistema de riego con energía solar | F187: =C51 -> 632743.7758 | H187: =Entradas!D30 -> Sistema de riego con energía solar | I187: =C52 -> 0.22009127 | K187: =Entradas!D30 -> Sistema de riego con energía solar | L187: =B46 -> 170242.873 | N187: =Entradas!D30 -> Sistema de riego con energía solar | O187: =B44 -> 5 | R187: =Entradas!D30 -> Sistema de riego con energía solar | S187: =AC41 -> 139660.8738 | U187: =Entradas!D30 -> Sistema de riego con energía solar | V187: =IF($A$47=TRUE,I49,NA()) -> 0.3803699098 | W187: =IF($A$47=TRUE,N49,NA()) -> 0.3884525205 | X187: =IF($A$47=TRUE,B49,NA()) -> 0.3587837154
E188: =Entradas!D60 -> Sistema de riego conectado a la red eléctrica | F188: =C89 -> 1011366.679 | H188: =Entradas!D60 -> Sistema de riego conectado a la red eléctrica | I188: =C90 -> 0.8821485096 | K188: =Entradas!D60 -> Sistema de riego conectado a la red eléctrica | L188: =B84 -> 145171.7444 | N188: =Entradas!D60 -> Sistema de riego conectado a la red eléctrica | O188: =B82 -> 2 | R188: =Entradas!D60 -> Sistema de riego conectado a la red eléctrica | S188: =AC79 -> 164732.0023 | U188: =Entradas!D60 -> Sistema de riego conectado a la red eléctrica | V188: =IF($A$85=TRUE,I87,NA()) -> 0.1502127952 | W188: =IF($A$85=TRUE,N87,NA()) -> 0.1973298278 | X188: =IF($A$85=TRUE,B87,NA()) -> 0.3059467744
E189: =Entradas!D92 -> Sistema de riego con generador diésel | F189: =C155 -> 192343.6672 | H189: =Entradas!D92 -> Sistema de riego con generador diésel | I189: =C156 -> 0.6061958228 | K189: =Entradas!D92 -> Sistema de riego con generador diésel | L189: =B150 -> 335989.1377 | N189: =Entradas!D92 -> Sistema de riego con generador diésel | O189: =B148 -> no payback | R189: =Entradas!D92 -> Sistema de riego con generador diésel | S189: =AC145 -> -26085.39099 | U189: =Entradas!D92 -> Sistema de riego con generador diésel | V189: =IF($A$151=TRUE,I153,NA()) -> 0.2710114304 | W189: =IF($A$151=TRUE,N153,NA()) -> 0.3650541367 | X189: =IF($A$151=TRUE,B153,NA()) -> 0.708090912
E190: =" " & Entradas!E8 -> € | H190: % | K190: =" " & Entradas!E8 -> € | N190: Years | S190: =" " & Entradas!E8 -> € | V190: =" " & Entradas!E8 -> €
E191: ="Comparative accumulated income and system costs over first 10 years in " & E190 -> Comparative accumulated income and system costs over first 10 years in €
E192: ="Comparative accumulated income and system costs over first 25 years in " & E190 -> Comparative accumulated income and system costs over first 25 years in €
E193: ="Comparative accumulated cash flow over first 10 years in " & E190 -> Comparative accumulated cash flow over first 10 years in €
E194: ="Average annual water cost in " & E190 &" /m³" -> Average annual water cost in € /m³
J195: Connections:
E196: =Entradas!D30 -> Sistema de riego con energía solar | J196: =Entradas!E8 & "/kWh" -> €/kWh
E197: =Entradas!D60 -> Sistema de riego conectado a la red eléctrica | J197: =Entradas!E8 & "/l" -> €/l

Sheet Loan Repayment Solar (hidden)
A1: Loan Repayment: | F1: =Entradas!D30 -> Sistema de riego con energía solar
A2: Bank: | B2: =Entradas!E56 -> AgriBank
B3: Enter Values | F3: Loan Summary
C4: Loan Amount | D4: =Entradas!E53 -> 20000 | G4: Scheduled Payment | H4: =IF(Values_Entered,-PMT(Interest_Rate/Num_Pmt_Per_Year,Loan_Years*Num_Pmt_Per_Year,Loan_Amount),"0") -> 2717.359164
C5: Annual Interest Rate | D5: =Entradas!E54 -> 0.06 | G5: Scheduled Number of Payments | H5: =IF(Values_Entered,Loan_Years*Num_Pmt_Per_Year,"") -> 10
C6: Loan Period in Years | D6: =Entradas!E55 -> 10 | G6: Actual Number of Payments | H6: =IF(Values_Entered,Number_of_Payments,"") -> 10
C7: Number of Payments Per Year | D7: 1 | G7: Total Early Payments | H7: =IF(Values_Entered,SUMIF(Beg_Bal,">0",Extra_Pay),"") -> 0
C8: Start Date of Loan | D8: 2017-01-01 | G8: Total Interest | H8: =IF(Values_Entered,SUMIF(Beg_Bal,">0",Int),"") -> 7173.591644
C9: Optional Extra Payments | D9: 0
A12: PmtNo. | B12: Payment Date | C12: Beginning Balance | D12: Scheduled Payment | E12: Extra Payment | F12: Total Payment | G12: Principal | H12: Interest | I12: Ending Balance | J12: Cumulative Interest
A14: =IF(Values_Entered,1,"") -> 1 | B14: =IF(Pay_Num<>"",DATE(YEAR(Loan_Start),MONTH(Loan_Start)+(Pay_Num)*12/Num_Pmt_Per_Year,DAY(Loan_Start)),"") -> 2018-01-01 | C14: =IF(Values_Entered,Loan_Amount,"") -> 20000 | D14: =IF(Pay_Num<>"",Scheduled_Monthly_Payment,"") -> 2717.359164 | E14: =IF(AND(Pay_Num<>"",Sched_Pay+Scheduled_Extra_Payments<Beg_Bal),Scheduled_Extra_Payments,IF(AND(Pay_Num<>"",Beg_Bal-Sched_Pay>0),Beg_Bal-Sched_Pay,IF(Pay_Num<>"",0,""))) -> 0 | F14: =IF(AND(Pay_Num<>"",Sched_Pay+Extra_Pay<Beg_Bal),Sched_Pay+Extra_Pay,IF(Pay_Num<>"",Beg_Bal,"")) -> 2717.359164 | G14: =IF(Pay_Num<>"",Total_Pay-Int,"") -> 1517.359164 | H14: =IF(Pay_Num<>"",Beg_Bal*(Interest_Rate/Num_Pmt_Per_Year),"") -> 1200 | I14: =IF(AND(Pay_Num<>"",Sched_Pay+Extra_Pay<Beg_Bal),Beg_Bal-Princ,IF(Pay_Num<>"",0,"")) -> 18482.64084 | J14: =SUM($H$14:$H14) -> 1200
A15: =IF(Values_Entered,A14+1,"") -> 2 | B15: 2019-01-01 | C15: =IF(Pay_Num<>"",I14,"") -> 18482.64084 | D15: =IF(Pay_Num<>"",Scheduled_Monthly_Payment,"") -> 2717.359164 | E15: 0 | F15: 2717.359164 | G15: =IF(Pay_Num<>"",Total_Pay-Int,"") -> 1608.400714 | H15: =IF(Pay_Num<>"",Beg_Bal*Interest_Rate/Num_Pmt_Per_Year,"") -> 1108.95845 | I15: 16874.24012 | J15: =SUM($H$14:$H15) -> 2308.95845
A16: =IF(Values_Entered,A15+1,"") -> 3 | B16: 2020-01-01 | C16: 16874.24012 | D16: =IF(Pay_Num<>"",Scheduled_Monthly_Payment,"") -> 2717.359164 | E16: 0 | F16: 2717.359164 | G16: 1704.904757 | H16: 1012.454407 | I16: 15169.33536 | J16: =SUM($H$14:$H16) -> 3321.412857
A17: =IF(Values_Entered,A16+1,"") -> 4 | B17: 2021-01-01 | C17: 15169.33536 | D17: =IF(Pay_Num<>"",Scheduled_Monthly_Payment,"") -> 2717.359164 | E17: 0 | F17: 2717.359164 | G17: 1807.199043 | H17: 910.1601219 | I17: 13362.13632 | J17: =SUM($H$14:$H17) -> 4231.572979
A18: =IF(Values_Entered,A17+1,"") -> 5 | B18: 2022-01-01 | C18: 13362.13632 | D18: 2717.359164 | E18: 0 | F18: 2717.359164 | G18: 1915.630985 | H18: 801.7281793 | I18: 11446.50534 | J18: =SUM($H$14:$H18) -> 5033.301159
A19: =IF(Values_Entered,A18+1,"") -> 6 | B19: 2023-01-01 | C19: 11446.50534 | D19: 2717.359164 | E19: 0 | F19: 2717.359164 | G19: 2030.568844 | H19: 686.7903202 | I19: 9415.936492 | J19: =SUM($H$14:$H19) -> 5720.091479
A20: =IF(Values_Entered,A19+1,"") -> 7 | B20: 2024-01-01 | C20: 9415.936492 | D20: 2717.359164 | E20: 0 | F20: 2717.359164 | G20: 2152.402975 | H20: 564.9561895 | I20: 7263.533517 | J20: =SUM($H$14:$H20) -> 6285.047668
A21: =IF(Values_Entered,A20+1,"") -> 8 | B21: 2025-01-01 | C21: 7263.533517 | D21: 2717.359164 | E21: 0 | F21: 2717.359164 | G21: 2281.547153 | H21: 435.812011 | I21: 4981.986364 | J21: =SUM($H$14:$H21) -> 6720.859679
A22: =IF(Values_Entered,A21+1,"") -> 9 | B22: 2026-01-01 | C22: 4981.986364 | D22: 2717.359164 | E22: 0 | F22: 2717.359164 | G22: 2418.439983 | H22: 298.9191818 | I22: 2563.546382 | J22: =SUM($H$14:$H22) -> 7019.778861
A23: =IF(Values_Entered,A22+1,"") -> 10 | B23: 2027-01-01 | C23: 2563.546382 | D23: 2717.359164 | E23: 0 | F23: 2563.546382 | G23: 2409.733599 | H23: 153.8127829 | I23: 0 | J23: =SUM($H$14:$H23) -> 7173.591644
A24: =IF(Values_Entered,A23+1,"") -> 11 | B24: 2028-01-01 | C24: 0 | D24: 2717.359164 | E24: 0 | F24: 0 | G24: 0 | H24: 0 | I24: 0 | J24: =SUM($H$14:$H24) -> 7173.591644
A25: =IF(Values_Entered,A24+1,"") -> 12 | B25: 2029-01-01 | C25: 0 | D25: 2717.359164 | E25: 0 | F25: 0 | G25: 0 | H25: 0 | I25: 0 | J25: =SUM($H$14:$H25) -> 7173.591644
A26: =IF(Values_Entered,A25+1,"") -> 13 | B26: 2030-01-01 | C26: 0 | D26: 2717.359164 | E26: 0 | F26: 0 | G26: 0 | H26: 0 | I26: 0 | J26: =SUM($H$14:$H26) -> 7173.591644
A27: =IF(Values_Entered,A26+1,"") -> 14 | B27: 2031-01-01 | C27: 0 | D27: 2717.359164 | E27: 0 | F27: 0 | G27: 0 | H27: 0 | I27: 0 | J27: =SUM($H$14:$H27) -> 7173.591644
A28: =IF(Values_Entered,A27+1,"") -> 15 | B28: 2032-01-01 | C28: 0 | D28: 2717.359164 | E28: 0 | F28: 0 | G28: 0 | H28: 0 | I28: 0 | J28: =SUM($H$14:$H28) -> 7173.591644
A29: =IF(Values_Entered,A28+1,"") -> 16 | B29: 2033-01-01 | C29: 0 | D29: 2717.359164 | E29: 0 | F29: 0 | G29: 0 | H29: 0 | I29: 0 | J29: =SUM($H$14:$H29) -> 7173.591644
A30: =IF(Values_Entered,A29+1,"") -> 17 | B30: 2034-01-01 | C30: 0 | D30: 2717.359164 | E30: 0 | F30: 0 | G30: 0 | H30: 0 | I30: 0 | J30: =SUM($H$14:$H30) -> 7173.591644
A31: =IF(Values_Entered,A30+1,"") -> 18 | B31: 2035-01-01 | C31: 0 | D31: 2717.359164 | E31: 0 | F31: 0 | G31: 0 | H31: 0 | I31: 0 | J31: =SUM($H$14:$H31) -> 7173.591644
A32: =IF(Values_Entered,A31+1,"") -> 19 | B32: 2036-01-01 | C32: 0 | D32: 2717.359164 | E32: 0 | F32: 0 | G32: 0 | H32: 0 | I32: 0 | J32: =SUM($H$14:$H32) -> 7173.591644
A33: =IF(Values_Entered,A32+1,"") -> 20 | B33: 2037-01-01 | C33: 0 | D33: 2717.359164 | E33: 0 | F33: 0 | G33: 0 | H33: 0 | I33: 0 | J33: =SUM($H$14:$H33) -> 7173.591644
A34: =IF(Values_Entered,A33+1,"") -> 21 | B34: 2038-01-01 | C34: 0 | D34: 2717.359164 | E34: 0 | F34: 0 | G34: 0 | H34: 0 | I34: 0 | J34: =SUM($H$14:$H34) -> 7173.591644
A35: =IF(Values_Entered,A34+1,"") -> 22 | B35: 2039-01-01 | C35: 0 | D35: 2717.359164 | E35: 0 | F35: 0 | G35: 0 | H35: 0 | I35: 0 | J35: =SUM($H$14:$H35) -> 7173.591644
A36: =IF(Values_Entered,A35+1,"") -> 23 | B36: 2040-01-01 | C36: 0 | D36: 2717.359164 | E36: 0 | F36: 0 | G36: 0 | H36: 0 | I36: 0 | J36: =SUM($H$14:$H36) -> 7173.591644
A37: =IF(Values_Entered,A36+1,"") -> 24 | B37: 2041-01-01 | C37: 0 | D37: 2717.359164 | E37: 0 | F37: 0 | G37: 0 | H37: 0 | I37: 0 | J37: =SUM($H$14:$H37) -> 7173.591644
A38: =IF(Values_Entered,A37+1,"") -> 25 | B38: 2042-01-01 | C38: 0 | D38: 2717.359164 | E38: 0 | F38: 0 | G38: 0 | H38: 0 | I38: 0 | J38: =SUM($H$14:$H38) -> 7173.591644
A39: =IF(Values_Entered,A38+1,"") -> 26 | B39: 2043-01-01 | C39: 0 | D39: 2717.359164 | E39: 0 | F39: 0 | G39: 0 | H39: 0 | I39: 0 | J39: =SUM($H$14:$H39) -> 7173.591644
A40: =IF(Values_Entered,A39+1,"") -> 27 | B40: 2044-01-01 | C40: 0 | D40: 2717.359164 | E40: 0 | F40: 0 | G40: 0 | H40: 0 | I40: 0 | J40: =SUM($H$14:$H40) -> 7173.591644
A41: =IF(Values_Entered,A40+1,"") -> 28 | B41: 2045-01-01 | C41: 0 | D41: 2717.359164 | E41: 0 | F41: 0 | G41: 0 | H41: 0 | I41: 0 | J41: =SUM($H$14:$H41) -> 7173.591644
A42: =IF(Values_Entered,A41+1,"") -> 29 | B42: 2046-01-01 | C42: 0 | D42: 2717.359164 | E42: 0 | F42: 0 | G42: 0 | H42: 0 | I42: 0 | J42: =SUM($H$14:$H42) -> 7173.591644
A43: =IF(Values_Entered,A42+1,"") -> 30 | B43: 2047-01-01 | C43: 0 | D43: 2717.359164 | E43: 0 | F43: 0 | G43: 0 | H43: 0 | I43: 0 | J43: =SUM($H$14:$H43) -> 7173.591644
A44: =IF(Values_Entered,A43+1,"") -> 31 | B44: 2048-01-01 | C44: 0 | D44: 2717.359164 | E44: 0 | F44: 0 | G44: 0 | H44: 0 | I44: 0 | J44: =SUM($H$14:$H44) -> 7173.591644
A45: =IF(Values_Entered,A44+1,"") -> 32 | B45: 2049-01-01 | C45: 0 | D45: 2717.359164 | E45: 0 | F45: 0 | G45: 0 | H45: 0 | I45: 0 | J45: =SUM($H$14:$H45) -> 7173.591644
A46: =IF(Values_Entered,A45+1,"") -> 33 | B46: 2050-01-01 | C46: 0 | D46: 2717.359164 | E46: 0 | F46: 0 | G46: 0 | H46: 0 | I46: 0 | J46: =SUM($H$14:$H46) -> 7173.591644
A47: =IF(Values_Entered,A46+1,"") -> 34 | B47: 2051-01-01 | C47: 0 | D47: 2717.359164 | E47: 0 | F47: 0 | G47: 0 | H47: 0 | I47: 0 | J47: =SUM($H$14:$H47) -> 7173.591644
A48: =IF(Values_Entered,A47+1,"") -> 35 | B48: 2052-01-01 | C48: 0 | D48: 2717.359164 | E48: 0 | F48: 0 | G48: 0 | H48: 0 | I48: 0 | J48: =SUM($H$14:$H48) -> 7173.591644
A49: =IF(Values_Entered,A48+1,"") -> 36 | B49: 2053-01-01 | C49: 0 | D49: 2717.359164 | E49: 0 | F49: 0 | G49: 0 | H49: 0 | I49: 0 | J49: =SUM($H$14:$H49) -> 7173.591644
A50: =IF(Values_Entered,A49+1,"") -> 37 | B50: 2054-01-01 | C50: 0 | D50: 2717.359164 | E50: 0 | F50: 0 | G50: 0 | H50: 0 | I50: 0 | J50: =SUM($H$14:$H50) -> 7173.591644
A51: =IF(Values_Entered,A50+1,"") -> 38 | B51: 2055-01-01 | C51: 0 | D51: 2717.359164 | E51: 0 | F51: 0 | G51: 0 | H51: 0 | I51: 0 | J51: =SUM($H$14:$H51) -> 7173.591644
A52: =IF(Values_Entered,A51+1,"") -> 39 | B52: 2056-01-01 | C52: 0 | D52: 2717.359164 | E52: 0 | F52: 0 | G52: 0 | H52: 0 | I52: 0 | J52: =SUM($H$14:$H52) -> 7173.591644
A53: =IF(Values_Entered,A52+1,"") -> 40 | B53: 2057-01-01 | C53: 0 | D53: 2717.359164 | E53: 0 | F53: 0 | G53: 0 | H53: 0 | I53: 0 | J53: =SUM($H$14:$H53) -> 7173.591644
A54: =IF(Values_Entered,A53+1,"") -> 41 | B54: 2058-01-01 | C54: 0 | D54: 2717.359164 | E54: 0 | F54: 0 | G54: 0 | H54: 0 | I54: 0 | J54: =SUM($H$14:$H54) -> 7173.591644
A55: =IF(Values_Entered,A54+1,"") -> 42 | B55: 2059-01-01 | C55: 0 | D55: 2717.359164 | E55: 0 | F55: 0 | G55: 0 | H55: 0 | I55: 0 | J55: =SUM($H$14:$H55) -> 7173.591644
A56: =IF(Values_Entered,A55+1,"") -> 43 | B56: 2060-01-01 | C56: 0 | D56: 2717.359164 | E56: 0 | F56: 0 | G56: 0 | H56: 0 | I56: 0 | J56: =SUM($H$14:$H56) -> 7173.591644
A57: =IF(Values_Entered,A56+1,"") -> 44 | B57: 2061-01-01 | C57: 0 | D57: 2717.359164 | E57: 0 | F57: 0 | G57: 0 | H57: 0 | I57: 0 | J57: =SUM($H$14:$H57) -> 7173.591644
A58: =IF(Values_Entered,A57+1,"") -> 45 | B58: 2062-01-01 | C58: 0 | D58: 2717.359164 | E58: 0 | F58: 0 | G58: 0 | H58: 0 | I58: 0 | J58: =SUM($H$14:$H58) -> 7173.591644
A59: =IF(Values_Entered,A58+1,"") -> 46 | B59: 2063-01-01 | C59: 0 | D59: 2717.359164 | E59: 0 | F59: 0 | G59: 0 | H59: 0 | I59: 0 | J59: =SUM($H$14:$H59) -> 7173.591644
A60: =IF(Values_Entered,A59+1,"") -> 47 | B60: 2064-01-01 | C60: 0 | D60: 2717.359164 | E60: 0 | F60: 0 | G60: 0 | H60: 0 | I60: 0 | J60: =SUM($H$14:$H60) -> 7173.591644
A61: =IF(Values_Entered,A60+1,"") -> 48 | B61: 2065-01-01 | C61: 0 | D61: 2717.359164 | E61: 0 | F61: 0 | G61: 0 | H61: 0 | I61: 0 | J61: =SUM($H$14:$H61) -> 7173.591644
A62: =IF(Values_Entered,A61+1,"") -> 49 | B62: 2066-01-01 | C62: 0 | D62: 2717.359164 | E62: 0 | F62: 0 | G62: 0 | H62: 0 | I62: 0 | J62: =SUM($H$14:$H62) -> 7173.591644
A63: =IF(Values_Entered,A62+1,"") -> 50 | B63: 2067-01-01 | C63: 0 | D63: 2717.359164 | E63: 0 | F63: 0 | G63: 0 | H63: 0 | I63: 0 | J63: =SUM($H$14:$H63) -> 7173.591644
A64: =IF(Values_Entered,A63+1,"") -> 51 | B64: 2068-01-01 | C64: 0 | D64: 2717.359164 | E64: 0 | F64: 0 | G64: 0 | H64: 0 | I64: 0 | J64: =SUM($H$14:$H64) -> 7173.591644
A65: =IF(Values_Entered,A64+1,"") -> 52 | B65: 2069-01-01 | C65: 0 | D65: 2717.359164 | E65: 0 | F65: 0 | G65: 0 | H65: 0 | I65: 0 | J65: =SUM($H$14:$H65) -> 7173.591644
A66: =IF(Values_Entered,A65+1,"") -> 53 | B66: 2070-01-01 | C66: 0 | D66: 2717.359164 | E66: 0 | F66: 0 | G66: 0 | H66: 0 | I66: 0 | J66: =SUM($H$14:$H66) -> 7173.591644
A67: =IF(Values_Entered,A66+1,"") -> 54 | B67: 2071-01-01 | C67: 0 | D67: 2717.359164 | E67: 0 | F67: 0 | G67: 0 | H67: 0 | I67: 0 | J67: =SUM($H$14:$H67) -> 7173.591644
A68: =IF(Values_Entered,A67+1,"") -> 55 | B68: 2072-01-01 | C68: 0 | D68: 2717.359164 | E68: 0 | F68: 0 | G68: 0 | H68: 0 | I68: 0 | J68: =SUM($H$14:$H68) -> 7173.591644
A69: =IF(Values_Entered,A68+1,"") -> 56 | B69: 2073-01-01 | C69: 0 | D69: 2717.359164 | E69: 0 | F69: 0 | G69: 0 | H69: 0 | I69: 0 | J69: =SUM($H$14:$H69) -> 7173.591644
A70: =IF(Values_Entered,A69+1,"") -> 57 | B70: 2074-01-01 | C70: 0 | D70: 2717.359164 | E70: 0 | F70: 0 | G70: 0 | H70: 0 | I70: 0 | J70: =SUM($H$14:$H70) -> 7173.591644
A71: =IF(Values_Entered,A70+1,"") -> 58 | B71: 2075-01-01 | C71: 0 | D71: 2717.359164 | E71: 0 | F71: 0 | G71: 0 | H71: 0 | I71: 0 | J71: =SUM($H$14:$H71) -> 7173.591644
A72: =IF(Values_Entered,A71+1,"") -> 59 | B72: 2076-01-01 | C72: 0 | D72: 2717.359164 | E72: 0 | F72: 0 | G72: 0 | H72: 0 | I72: 0 | J72: =SUM($H$14:$H72) -> 7173.591644
A73: =IF(Values_Entered,A72+1,"") -> 60 | B73: 2077-01-01 | C73: 0 | D73: 2717.359164 | E73: 0 | F73: 0 | G73: 0 | H73: 0 | I73: 0 | J73: =SUM($H$14:$H73) -> 7173.591644
A74: =IF(Values_Entered,A73+1,"") -> 61 | B74: 2078-01-01 | C74: 0 | D74: 2717.359164 | E74: 0 | F74: 0 | G74: 0 | H74: 0 | I74: 0 | J74: =SUM($H$14:$H74) -> 7173.591644
A75: =IF(Values_Entered,A74+1,"") -> 62 | B75: 2079-01-01 | C75: 0 | D75: 2717.359164 | E75: 0 | F75: 0 | G75: 0 | H75: 0 | I75: 0 | J75: =SUM($H$14:$H75) -> 7173.591644
A76: =IF(Values_Entered,A75+1,"") -> 63 | B76: 2080-01-01 | C76: 0 | D76: 2717.359164 | E76: 0 | F76: 0 | G76: 0 | H76: 0 | I76: 0 | J76: =SUM($H$14:$H76) -> 7173.591644
A77: =IF(Values_Entered,A76+1,"") -> 64 | B77: 2081-01-01 | C77: 0 | D77: 2717.359164 | E77: 0 | F77: 0 | G77: 0 | H77: 0 | I77: 0 | J77: =SUM($H$14:$H77) -> 7173.591644
A78: =IF(Values_Entered,A77+1,"") -> 65 | B78: =IF(Pay_Num<>"",DATE(YEAR(Loan_Start),MONTH(Loan_Start)+(Pay_Num)*12/Num_Pmt_Per_Year,DAY(Loan_Start)),"") -> 2082-01-01 | C78: 0 | D78: 2717.359164 | E78: =IF(AND(Pay_Num<>"",Sched_Pay+Scheduled_Extra_Payments<Beg_Bal),Scheduled_Extra_Payments,IF(AND(Pay_Num<>"",Beg_Bal-Sched_Pay>0),Beg_Bal-Sched_Pay,IF(Pay_Num<>"",0,""))) -> 0 | F78: =IF(AND(Pay_Num<>"",Sched_Pay+Extra_Pay<Beg_Bal),Sched_Pay+Extra_Pay,IF(Pay_Num<>"",Beg_Bal,"")) -> 0 | G78: 0 | H78: 0 | I78: =IF(AND(Pay_Num<>"",Sched_Pay+Extra_Pay<Beg_Bal),Beg_Bal-Princ,IF(Pay_Num<>"",0,"")) -> 0 | J78: =SUM($H$14:$H78) -> 7173.591644
A79: =IF(Values_Entered,A78+1,"") -> 66 | B79: 2083-01-01 | C79: =IF(Pay_Num<>"",I78,"") -> 0 | D79: 2717.359164 | E79: 0 | F79: 0 | G79: =IF(Pay_Num<>"",Total_Pay-Int,"") -> 0 | H79: =IF(Pay_Num<>"",Beg_Bal*Interest_Rate/Num_Pmt_Per_Year,"") -> 0 | I79: 0 | J79: =SUM($H$14:$H79) -> 7173.591644
A80: =IF(Values_Entered,A79+1,"") -> 67 | B80: 2084-01-01 | C80: 0 | D80: =IF(Pay_Num<>"",Scheduled_Monthly_Payment,"") -> 2717.359164 | E80: 0 | F80: 0 | G80: 0 | H80: 0 | I80: 0 | J80: =SUM($H$14:$H80) -> 7173.591644
A81: =IF(Values_Entered,A80+1,"") -> 68 | B81: 2085-01-01 | C81: 0 | D81: 2717.359164 | E81: 0 | F81: 0 | G81: 0 | H81: 0 | I81: 0 | J81: =SUM($H$14:$H81) -> 7173.591644
A82: =IF(Values_Entered,A81+1,"") -> 69 | B82: 2086-01-01 | C82: 0 | D82: 2717.359164 | E82: 0 | F82: 0 | G82: 0 | H82: 0 | I82: 0 | J82: =SUM($H$14:$H82) -> 7173.591644
A83: =IF(Values_Entered,A82+1,"") -> 70 | B83: 2087-01-01 | C83: 0 | D83: 2717.359164 | E83: 0 | F83: 0 | G83: 0 | H83: 0 | I83: 0 | J83: =SUM($H$14:$H83) -> 7173.591644
A84: =IF(Values_Entered,A83+1,"") -> 71 | B84: 2088-01-01 | C84: 0 | D84: 2717.359164 | E84: 0 | F84: 0 | G84: 0 | H84: 0 | I84: 0 | J84: =SUM($H$14:$H84) -> 7173.591644
A85: =IF(Values_Entered,A84+1,"") -> 72 | B85: 2089-01-01 | C85: 0 | D85: 2717.359164 | E85: 0 | F85: 0 | G85: 0 | H85: 0 | I85: 0 | J85: =SUM($H$14:$H85) -> 7173.591644
A86: =IF(Values_Entered,A85+1,"") -> 73 | B86: 2090-01-01 | C86: 0 | D86: 2717.359164 | E86: 0 | F86: 0 | G86: 0 | H86: 0 | I86: 0 | J86: =SUM($H$14:$H86) -> 7173.591644
A87: =IF(Values_Entered,A86+1,"") -> 74 | B87: 2091-01-01 | C87: 0 | D87: 2717.359164 | E87: 0 | F87: 0 | G87: 0 | H87: 0 | I87: 0 | J87: =SUM($H$14:$H87) -> 7173.591644
A88: =IF(Values_Entered,A87+1,"") -> 75 | B88: 2092-01-01 | C88: 0 | D88: 2717.359164 | E88: 0 | F88: 0 | G88: 0 | H88: 0 | I88: 0 | J88: =SUM($H$14:$H88) -> 7173.591644
A89: =IF(Values_Entered,A88+1,"") -> 76 | B89: 2093-01-01 | C89: 0 | D89: 2717.359164 | E89: 0 | F89: 0 | G89: 0 | H89: 0 | I89: 0 | J89: =SUM($H$14:$H89) -> 7173.591644
A90: =IF(Values_Entered,A89+1,"") -> 77 | B90: 2094-01-01 | C90: 0 | D90: 2717.359164 | E90: 0 | F90: 0 | G90: 0 | H90: 0 | I90: 0 | J90: =SUM($H$14:$H90) -> 7173.591644
A91: =IF(Values_Entered,A90+1,"") -> 78 | B91: 2095-01-01 | C91: 0 | D91: 2717.359164 | E91: 0 | F91: 0 | G91: 0 | H91: 0 | I91: 0 | J91: =SUM($H$14:$H91) -> 7173.591644
A92: =IF(Values_Entered,A91+1,"") -> 79 | B92: 2096-01-01 | C92: 0 | D92: 2717.359164 | E92: 0 | F92: 0 | G92: 0 | H92: 0 | I92: 0 | J92: =SUM($H$14:$H92) -> 7173.591644
A93: =IF(Values_Entered,A92+1,"") -> 80 | B93: 2097-01-01 | C93: 0 | D93: 2717.359164 | E93: 0 | F93: 0 | G93: 0 | H93: 0 | I93: 0 | J93: =SUM($H$14:$H93) -> 7173.591644
A94: =IF(Values_Entered,A93+1,"") -> 81 | B94: 2098-01-01 | C94: 0 | D94: 2717.359164 | E94: 0 | F94: 0 | G94: 0 | H94: 0 | I94: 0 | J94: =SUM($H$14:$H94) -> 7173.591644
A95: =IF(Values_Entered,A94+1,"") -> 82 | B95: 2099-01-01 | C95: 0 | D95: 2717.359164 | E95: 0 | F95: 0 | G95: 0 | H95: 0 | I95: 0 | J95: =SUM($H$14:$H95) -> 7173.591644
A96: =IF(Values_Entered,A95+1,"") -> 83 | B96: 2100-01-01 | C96: 0 | D96: 2717.359164 | E96: 0 | F96: 0 | G96: 0 | H96: 0 | I96: 0 | J96: =SUM($H$14:$H96) -> 7173.591644
A97: =IF(Values_Entered,A96+1,"") -> 84 | B97: 2101-01-01 | C97: 0 | D97: 2717.359164 | E97: 0 | F97: 0 | G97: 0 | H97: 0 | I97: 0 | J97: =SUM($H$14:$H97) -> 7173.591644
A98: =IF(Values_Entered,A97+1,"") -> 85 | B98: 2102-01-01 | C98: 0 | D98: 2717.359164 | E98: 0 | F98: 0 | G98: 0 | H98: 0 | I98: 0 | J98: =SUM($H$14:$H98) -> 7173.591644
A99: =IF(Values_Entered,A98+1,"") -> 86 | B99: 2103-01-01 | C99: 0 | D99: 2717.359164 | E99: 0 | F99: 0 | G99: 0 | H99: 0 | I99: 0 | J99: =SUM($H$14:$H99) -> 7173.591644
A100: =IF(Values_Entered,A99+1,"") -> 87 | B100: 2104-01-01 | C100: 0 | D100: 2717.359164 | E100: 0 | F100: 0 | G100: 0 | H100: 0 | I100: 0 | J100: =SUM($H$14:$H100) -> 7173.591644
A101: =IF(Values_Entered,A100+1,"") -> 88 | B101: 2105-01-01 | C101: 0 | D101: 2717.359164 | E101: 0 | F101: 0 | G101: 0 | H101: 0 | I101: 0 | J101: =SUM($H$14:$H101) -> 7173.591644
A102: =IF(Values_Entered,A101+1,"") -> 89 | B102: 2106-01-01 | C102: 0 | D102: 2717.359164 | E102: 0 | F102: 0 | G102: 0 | H102: 0 | I102: 0 | J102: =SUM($H$14:$H102) -> 7173.591644
A103: =IF(Values_Entered,A102+1,"") -> 90 | B103: 2107-01-01 | C103: 0 | D103: 2717.359164 | E103: 0 | F103: 0 | G103: 0 | H103: 0 | I103: 0 | J103: =SUM($H$14:$H103) -> 7173.591644
A104: =IF(Values_Entered,A103+1,"") -> 91 | B104: 2108-01-01 | C104: 0 | D104: 2717.359164 | E104: 0 | F104: 0 | G104: 0 | H104: 0 | I104: 0 | J104: =SUM($H$14:$H104) -> 7173.591644
A105: =IF(Values_Entered,A104+1,"") -> 92 | B105: 2109-01-01 | C105: 0 | D105: 2717.359164 | E105: 0 | F105: 0 | G105: 0 | H105: 0 | I105: 0 | J105: =SUM($H$14:$H105) -> 7173.591644
A106: =IF(Values_Entered,A105+1,"") -> 93 | B106: 2110-01-01 | C106: 0 | D106: 2717.359164 | E106: 0 | F106: 0 | G106: 0 | H106: 0 | I106: 0 | J106: =SUM($H$14:$H106) -> 7173.591644
A107: =IF(Values_Entered,A106+1,"") -> 94 | B107: 2111-01-01 | C107: 0 | D107: 2717.359164 | E107: 0 | F107: 0 | G107: 0 | H107: 0 | I107: 0 | J107: =SUM($H$14:$H107) -> 7173.591644
A108: =IF(Values_Entered,A107+1,"") -> 95 | B108: 2112-01-01 | C108: 0 | D108: 2717.359164 | E108: 0 | F108: 0 | G108: 0 | H108: 0 | I108: 0 | J108: =SUM($H$14:$H108) -> 7173.591644
A109: =IF(Values_Entered,A108+1,"") -> 96 | B109: 2113-01-01 | C109: 0 | D109: 2717.359164 | E109: 0 | F109: 0 | G109: 0 | H109: 0 | I109: 0 | J109: =SUM($H$14:$H109) -> 7173.591644
A110: =IF(Values_Entered,A109+1,"") -> 97 | B110: 2114-01-01 | C110: 0 | D110: 2717.359164 | E110: 0 | F110: 0 | G110: 0 | H110: 0 | I110: 0 | J110: =SUM($H$14:$H110) -> 7173.591644
A111: =IF(Values_Entered,A110+1,"") -> 98 | B111: 2115-01-01 | C111: 0 | D111: 2717.359164 | E111: 0 | F111: 0 | G111: 0 | H111: 0 | I111: 0 | J111: =SUM($H$14:$H111) -> 7173.591644
A112: =IF(Values_Entered,A111+1,"") -> 99 | B112: 2116-01-01 | C112: 0 | D112: 2717.359164 | E112: 0 | F112: 0 | G112: 0 | H112: 0 | I112: 0 | J112: =SUM($H$14:$H112) -> 7173.591644
A113: =IF(Values_Entered,A112+1,"") -> 100 | B113: 2117-01-01 | C113: 0 | D113: 2717.359164 | E113: 0 | F113: 0 | G113: 0 | H113: 0 | I113: 0 | J113: =SUM($H$14:$H113) -> 7173.591644
A114: =IF(Values_Entered,A113+1,"") -> 101 | B114: 2118-01-01 | C114: 0 | D114: 2717.359164 | E114: 0 | F114: 0 | G114: 0 | H114: 0 | I114: 0 | J114: =SUM($H$14:$H114) -> 7173.591644
A115: =IF(Values_Entered,A114+1,"") -> 102 | B115: 2119-01-01 | C115: 0 | D115: 2717.359164 | E115: 0 | F115: 0 | G115: 0 | H115: 0 | I115: 0 | J115: =SUM($H$14:$H115) -> 7173.591644
A116: =IF(Values_Entered,A115+1,"") -> 103 | B116: 2120-01-01 | C116: 0 | D116: 2717.359164 | E116: 0 | F116: 0 | G116: 0 | H116: 0 | I116: 0 | J116: =SUM($H$14:$H116) -> 7173.591644
A117: =IF(Values_Entered,A116+1,"") -> 104 | B117: 2121-01-01 | C117: 0 | D117: 2717.359164 | E117: 0 | F117: 0 | G117: 0 | H117: 0 | I117: 0 | J117: =SUM($H$14:$H117) -> 7173.591644
A118: =IF(Values_Entered,A117+1,"") -> 105 | B118: 2122-01-01 | C118: 0 | D118: 2717.359164 | E118: 0 | F118: 0 | G118: 0 | H118: 0 | I118: 0 | J118: =SUM($H$14:$H118) -> 7173.591644
A119: =IF(Values_Entered,A118+1,"") -> 106 | B119: 2123-01-01 | C119: 0 | D119: 2717.359164 | E119: 0 | F119: 0 | G119: 0 | H119: 0 | I119: 0 | J119: =SUM($H$14:$H119) -> 7173.591644
A120: =IF(Values_Entered,A119+1,"") -> 107 | B120: 2124-01-01 | C120: 0 | D120: 2717.359164 | E120: 0 | F120: 0 | G120: 0 | H120: 0 | I120: 0 | J120: =SUM($H$14:$H120) -> 7173.591644
A121: =IF(Values_Entered,A120+1,"") -> 108 | B121: 2125-01-01 | C121: 0 | D121: 2717.359164 | E121: 0 | F121: 0 | G121: 0 | H121: 0 | I121: 0 | J121: =SUM($H$14:$H121) -> 7173.591644
A122: =IF(Values_Entered,A121+1,"") -> 109 | B122: 2126-01-01 | C122: 0 | D122: 2717.359164 | E122: 0 | F122: 0 | G122: 0 | H122: 0 | I122: 0 | J122: =SUM($H$14:$H122) -> 7173.591644
A123: =IF(Values_Entered,A122+1,"") -> 110 | B123: 2127-01-01 | C123: 0 | D123: 2717.359164 | E123: 0 | F123: 0 | G123: 0 | H123: 0 | I123: 0 | J123: =SUM($H$14:$H123) -> 7173.591644
A124: =IF(Values_Entered,A123+1,"") -> 111 | B124: 2128-01-01 | C124: 0 | D124: 2717.359164 | E124: 0 | F124: 0 | G124: 0 | H124: 0 | I124: 0 | J124: =SUM($H$14:$H124) -> 7173.591644
A125: =IF(Values_Entered,A124+1,"") -> 112 | B125: 2129-01-01 | C125: 0 | D125: 2717.359164 | E125: 0 | F125: 0 | G125: 0 | H125: 0 | I125: 0 | J125: =SUM($H$14:$H125) -> 7173.591644
A126: =IF(Values_Entered,A125+1,"") -> 113 | B126: 2130-01-01 | C126: 0 | D126: 2717.359164 | E126: 0 | F126: 0 | G126: 0 | H126: 0 | I126: 0 | J126: =SUM($H$14:$H126) -> 7173.591644
A127: =IF(Values_Entered,A126+1,"") -> 114 | B127: 2131-01-01 | C127: 0 | D127: 2717.359164 | E127: 0 | F127: 0 | G127: 0 | H127: 0 | I127: 0 | J127: =SUM($H$14:$H127) -> 7173.591644
A128: =IF(Values_Entered,A127+1,"") -> 115 | B128: 2132-01-01 | C128: 0 | D128: 2717.359164 | E128: 0 | F128: 0 | G128: 0 | H128: 0 | I128: 0 | J128: =SUM($H$14:$H128) -> 7173.591644
A129: =IF(Values_Entered,A128+1,"") -> 116 | B129: 2133-01-01 | C129: 0 | D129: 2717.359164 | E129: 0 | F129: 0 | G129: 0 | H129: 0 | I129: 0 | J129: =SUM($H$14:$H129) -> 7173.591644
A130: =IF(Values_Entered,A129+1,"") -> 117 | B130: 2134-01-01 | C130: 0 | D130: 2717.359164 | E130: 0 | F130: 0 | G130: 0 | H130: 0 | I130: 0 | J130: =SUM($H$14:$H130) -> 7173.591644
A131: =IF(Values_Entered,A130+1,"") -> 118 | B131: 2135-01-01 | C131: 0 | D131: 2717.359164 | E131: 0 | F131: 0 | G131: 0 | H131: 0 | I131: 0 | J131: =SUM($H$14:$H131) -> 7173.591644
A132: =IF(Values_Entered,A131+1,"") -> 119 | B132: 2136-01-01 | C132: 0 | D132: 2717.359164 | E132: 0 | F132: 0 | G132: 0 | H132: 0 | I132: 0 | J132: =SUM($H$14:$H132) -> 7173.591644
A133: =IF(Values_Entered,A132+1,"") -> 120 | B133: 2137-01-01 | C133: 0 | D133: 2717.359164 | E133: 0 | F133: 0 | G133: 0 | H133: 0 | I133: 0 | J133: =SUM($H$14:$H133) -> 7173.591644
A134: =IF(Values_Entered,A133+1,"") -> 121 | B134: 2138-01-01 | C134: 0 | D134: 2717.359164 | E134: 0 | F134: 0 | G134: 0 | H134: 0 | I134: 0 | J134: =SUM($H$14:$H134) -> 7173.591644
A135: =IF(Values_Entered,A134+1,"") -> 122 | B135: 2139-01-01 | C135: 0 | D135: 2717.359164 | E135: 0 | F135: 0 | G135: 0 | H135: 0 | I135: 0 | J135: =SUM($H$14:$H135) -> 7173.591644
A136: =IF(Values_Entered,A135+1,"") -> 123 | B136: 2140-01-01 | C136: 0 | D136: 2717.359164 | E136: 0 | F136: 0 | G136: 0 | H136: 0 | I136: 0 | J136: =SUM($H$14:$H136) -> 7173.591644
A137: =IF(Values_Entered,A136+1,"") -> 124 | B137: 2141-01-01 | C137: 0 | D137: 2717.359164 | E137: 0 | F137: 0 | G137: 0 | H137: 0 | I137: 0 | J137: =SUM($H$14:$H137) -> 7173.591644
A138: =IF(Values_Entered,A137+1,"") -> 125 | B138: 2142-01-01 | C138: 0 | D138: 2717.359164 | E138: 0 | F138: 0 | G138: 0 | H138: 0 | I138: 0 | J138: =SUM($H$14:$H138) -> 7173.591644
A139: =IF(Values_Entered,A138+1,"") -> 126 | B139: 2143-01-01 | C139: 0 | D139: 2717.359164 | E139: 0 | F139: 0 | G139: 0 | H139: 0 | I139: 0 | J139: =SUM($H$14:$H139) -> 7173.591644
A140: =IF(Values_Entered,A139+1,"") -> 127 | B140: 2144-01-01 | C140: 0 | D140: 2717.359164 | E140: 0 | F140: 0 | G140: 0 | H140: 0 | I140: 0 | J140: =SUM($H$14:$H140) -> 7173.591644
A141: =IF(Values_Entered,A140+1,"") -> 128 | B141: 2145-01-01 | C141: 0 | D141: 2717.359164 | E141: 0 | F141: 0 | G141: 0 | H141: 0 | I141: 0 | J141: =SUM($H$14:$H141) -> 7173.591644
A142: =IF(Values_Entered,A141+1,"") -> 129 | B142: =IF(Pay_Num<>"",DATE(YEAR(Loan_Start),MONTH(Loan_Start)+(Pay_Num)*12/Num_Pmt_Per_Year,DAY(Loan_Start)),"") -> 2146-01-01 | C142: 0 | D142: 2717.359164 | E142: =IF(AND(Pay_Num<>"",Sched_Pay+Scheduled_Extra_Payments<Beg_Bal),Scheduled_Extra_Payments,IF(AND(Pay_Num<>"",Beg_Bal-Sched_Pay>0),Beg_Bal-Sched_Pay,IF(Pay_Num<>"",0,""))) -> 0 | F142: =IF(AND(Pay_Num<>"",Sched_Pay+Extra_Pay<Beg_Bal),Sched_Pay+Extra_Pay,IF(Pay_Num<>"",Beg_Bal,"")) -> 0 | G142: 0 | H142: 0 | I142: =IF(AND(Pay_Num<>"",Sched_Pay+Extra_Pay<Beg_Bal),Beg_Bal-Princ,IF(Pay_Num<>"",0,"")) -> 0 | J142: =SUM($H$14:$H142) -> 7173.591644
A143: =IF(Values_Entered,A142+1,"") -> 130 | B143: 2147-01-01 | C143: =IF(Pay_Num<>"",I142,"") -> 0 | D143: 2717.359164 | E143: 0 | F143: 0 | G143: =IF(Pay_Num<>"",Total_Pay-Int,"") -> 0 | H143: =IF(Pay_Num<>"",Beg_Bal*Interest_Rate/Num_Pmt_Per_Year,"") -> 0 | I143: 0 | J143: =SUM($H$14:$H143) -> 7173.591644
A144: =IF(Values_Entered,A143+1,"") -> 131 | B144: 2148-01-01 | C144: 0 | D144: =IF(Pay_Num<>"",Scheduled_Monthly_Payment,"") -> 2717.359164 | E144: 0 | F144: 0 | G144: 0 | H144: 0 | I144: 0 | J144: =SUM($H$14:$H144) -> 7173.591644
A145: =IF(Values_Entered,A144+1,"") -> 132 | B145: 2149-01-01 | C145: 0 | D145: 2717.359164 | E145: 0 | F145: 0 | G145: 0 | H145: 0 | I145: 0 | J145: =SUM($H$14:$H145) -> 7173.591644
A146: =IF(Values_Entered,A145+1,"") -> 133 | B146: 2150-01-01 | C146: 0 | D146: 2717.359164 | E146: 0 | F146: 0 | G146: 0 | H146: 0 | I146: 0 | J146: =SUM($H$14:$H146) -> 7173.591644
A147: =IF(Values_Entered,A146+1,"") -> 134 | B147: 2151-01-01 | C147: 0 | D147: 2717.359164 | E147: 0 | F147: 0 | G147: 0 | H147: 0 | I147: 0 | J147: =SUM($H$14:$H147) -> 7173.591644
A148: =IF(Values_Entered,A147+1,"") -> 135 | B148: 2152-01-01 | C148: 0 | D148: 2717.359164 | E148: 0 | F148: 0 | G148: 0 | H148: 0 | I148: 0 | J148: =SUM($H$14:$H148) -> 7173.591644
A149: =IF(Values_Entered,A148+1,"") -> 136 | B149: 2153-01-01 | C149: 0 | D149: 2717.359164 | E149: 0 | F149: 0 | G149: 0 | H149: 0 | I149: 0 | J149: =SUM($H$14:$H149) -> 7173.591644
A150: =IF(Values_Entered,A149+1,"") -> 137 | B150: 2154-01-01 | C150: 0 | D150: 2717.359164 | E150: 0 | F150: 0 | G150: 0 | H150: 0 | I150: 0 | J150: =SUM($H$14:$H150) -> 7173.591644
A151: =IF(Values_Entered,A150+1,"") -> 138 | B151: 2155-01-01 | C151: 0 | D151: 2717.359164 | E151: 0 | F151: 0 | G151: 0 | H151: 0 | I151: 0 | J151: =SUM($H$14:$H151) -> 7173.591644
A152: =IF(Values_Entered,A151+1,"") -> 139 | B152: 2156-01-01 | C152: 0 | D152: 2717.359164 | E152: 0 | F152: 0 | G152: 0 | H152: 0 | I152: 0 | J152: =SUM($H$14:$H152) -> 7173.591644
A153: =IF(Values_Entered,A152+1,"") -> 140 | B153: 2157-01-01 | C153: 0 | D153: 2717.359164 | E153: 0 | F153: 0 | G153: 0 | H153: 0 | I153: 0 | J153: =SUM($H$14:$H153) -> 7173.591644
A154: =IF(Values_Entered,A153+1,"") -> 141 | B154: 2158-01-01 | C154: 0 | D154: 2717.359164 | E154: 0 | F154: 0 | G154: 0 | H154: 0 | I154: 0 | J154: =SUM($H$14:$H154) -> 7173.591644
A155: =IF(Values_Entered,A154+1,"") -> 142 | B155: 2159-01-01 | C155: 0 | D155: 2717.359164 | E155: 0 | F155: 0 | G155: 0 | H155: 0 | I155: 0 | J155: =SUM($H$14:$H155) -> 7173.591644
A156: =IF(Values_Entered,A155+1,"") -> 143 | B156: 2160-01-01 | C156: 0 | D156: 2717.359164 | E156: 0 | F156: 0 | G156: 0 | H156: 0 | I156: 0 | J156: =SUM($H$14:$H156) -> 7173.591644
A157: =IF(Values_Entered,A156+1,"") -> 144 | B157: 2161-01-01 | C157: 0 | D157: 2717.359164 | E157: 0 | F157: 0 | G157: 0 | H157: 0 | I157: 0 | J157: =SUM($H$14:$H157) -> 7173.591644
A158: =IF(Values_Entered,A157+1,"") -> 145 | B158: 2162-01-01 | C158: 0 | D158: 2717.359164 | E158: 0 | F158: 0 | G158: 0 | H158: 0 | I158: 0 | J158: =SUM($H$14:$H158) -> 7173.591644
A159: =IF(Values_Entered,A158+1,"") -> 146 | B159: 2163-01-01 | C159: 0 | D159: 2717.359164 | E159: 0 | F159: 0 | G159: 0 | H159: 0 | I159: 0 | J159: =SUM($H$14:$H159) -> 7173.591644
A160: =IF(Values_Entered,A159+1,"") -> 147 | B160: 2164-01-01 | C160: 0 | D160: 2717.359164 | E160: 0 | F160: 0 | G160: 0 | H160: 0 | I160: 0 | J160: =SUM($H$14:$H160) -> 7173.591644
A161: =IF(Values_Entered,A160+1,"") -> 148 | B161: 2165-01-01 | C161: 0 | D161: 2717.359164 | E161: 0 | F161: 0 | G161: 0 | H161: 0 | I161: 0 | J161: =SUM($H$14:$H161) -> 7173.591644
A162: =IF(Values_Entered,A161+1,"") -> 149 | B162: 2166-01-01 | C162: 0 | D162: 2717.359164 | E162: 0 | F162: 0 | G162: 0 | H162: 0 | I162: 0 | J162: =SUM($H$14:$H162) -> 7173.591644
A163: =IF(Values_Entered,A162+1,"") -> 150 | B163: 2167-01-01 | C163: 0 | D163: 2717.359164 | E163: 0 | F163: 0 | G163: 0 | H163: 0 | I163: 0 | J163: =SUM($H$14:$H163) -> 7173.591644
A164: =IF(Values_Entered,A163+1,"") -> 151 | B164: 2168-01-01 | C164: 0 | D164: 2717.359164 | E164: 0 | F164: 0 | G164: 0 | H164: 0 | I164: 0 | J164: =SUM($H$14:$H164) -> 7173.591644
A165: =IF(Values_Entered,A164+1,"") -> 152 | B165: 2169-01-01 | C165: 0 | D165: 2717.359164 | E165: 0 | F165: 0 | G165: 0 | H165: 0 | I165: 0 | J165: =SUM($H$14:$H165) -> 7173.591644
A166: =IF(Values_Entered,A165+1,"") -> 153 | B166: 2170-01-01 | C166: 0 | D166: 2717.359164 | E166: 0 | F166: 0 | G166: 0 | H166: 0 | I166: 0 | J166: =SUM($H$14:$H166) -> 7173.591644
A167: =IF(Values_Entered,A166+1,"") -> 154 | B167: 2171-01-01 | C167: 0 | D167: 2717.359164 | E167: 0 | F167: 0 | G167: 0 | H167: 0 | I167: 0 | J167: =SUM($H$14:$H167) -> 7173.591644
A168: =IF(Values_Entered,A167+1,"") -> 155 | B168: 2172-01-01 | C168: 0 | D168: 2717.359164 | E168: 0 | F168: 0 | G168: 0 | H168: 0 | I168: 0 | J168: =SUM($H$14:$H168) -> 7173.591644
A169: =IF(Values_Entered,A168+1,"") -> 156 | B169: 2173-01-01 | C169: 0 | D169: 2717.359164 | E169: 0 | F169: 0 | G169: 0 | H169: 0 | I169: 0 | J169: =SUM($H$14:$H169) -> 7173.591644
A170: =IF(Values_Entered,A169+1,"") -> 157 | B170: 2174-01-01 | C170: 0 | D170: 2717.359164 | E170: 0 | F170: 0 | G170: 0 | H170: 0 | I170: 0 | J170: =SUM($H$14:$H170) -> 7173.591644
A171: =IF(Values_Entered,A170+1,"") -> 158 | B171: 2175-01-01 | C171: 0 | D171: 2717.359164 | E171: 0 | F171: 0 | G171: 0 | H171: 0 | I171: 0 | J171: =SUM($H$14:$H171) -> 7173.591644
A172: =IF(Values_Entered,A171+1,"") -> 159 | B172: 2176-01-01 | C172: 0 | D172: 2717.359164 | E172: 0 | F172: 0 | G172: 0 | H172: 0 | I172: 0 | J172: =SUM($H$14:$H172) -> 7173.591644
A173: =IF(Values_Entered,A172+1,"") -> 160 | B173: 2177-01-01 | C173: 0 | D173: 2717.359164 | E173: 0 | F173: 0 | G173: 0 | H173: 0 | I173: 0 | J173: =SUM($H$14:$H173) -> 7173.591644
A174: =IF(Values_Entered,A173+1,"") -> 161 | B174: 2178-01-01 | C174: 0 | D174: 2717.359164 | E174: 0 | F174: 0 | G174: 0 | H174: 0 | I174: 0 | J174: =SUM($H$14:$H174) -> 7173.591644
A175: =IF(Values_Entered,A174+1,"") -> 162 | B175: 2179-01-01 | C175: 0 | D175: 2717.359164 | E175: 0 | F175: 0 | G175: 0 | H175: 0 | I175: 0 | J175: =SUM($H$14:$H175) -> 7173.591644
A176: =IF(Values_Entered,A175+1,"") -> 163 | B176: 2180-01-01 | C176: 0 | D176: 2717.359164 | E176: 0 | F176: 0 | G176: 0 | H176: 0 | I176: 0 | J176: =SUM($H$14:$H176) -> 7173.591644
A177: =IF(Values_Entered,A176+1,"") -> 164 | B177: 2181-01-01 | C177: 0 | D177: 2717.359164 | E177: 0 | F177: 0 | G177: 0 | H177: 0 | I177: 0 | J177: =SUM($H$14:$H177) -> 7173.591644
A178: =IF(Values_Entered,A177+1,"") -> 165 | B178: 2182-01-01 | C178: 0 | D178: 2717.359164 | E178: 0 | F178: 0 | G178: 0 | H178: 0 | I178: 0 | J178: =SUM($H$14:$H178) -> 7173.591644
A179: =IF(Values_Entered,A178+1,"") -> 166 | B179: 2183-01-01 | C179: 0 | D179: 2717.359164 | E179: 0 | F179: 0 | G179: 0 | H179: 0 | I179: 0 | J179: =SUM($H$14:$H179) -> 7173.591644
A180: =IF(Values_Entered,A179+1,"") -> 167 | B180: 2184-01-01 | C180: 0 | D180: 2717.359164 | E180: 0 | F180: 0 | G180: 0 | H180: 0 | I180: 0 | J180: =SUM($H$14:$H180) -> 7173.591644
A181: =IF(Values_Entered,A180+1,"") -> 168 | B181: 2185-01-01 | C181: 0 | D181: 2717.359164 | E181: 0 | F181: 0 | G181: 0 | H181: 0 | I181: 0 | J181: =SUM($H$14:$H181) -> 7173.591644
A182: =IF(Values_Entered,A181+1,"") -> 169 | B182: 2186-01-01 | C182: 0 | D182: 2717.359164 | E182: 0 | F182: 0 | G182: 0 | H182: 0 | I182: 0 | J182: =SUM($H$14:$H182) -> 7173.591644
A183: =IF(Values_Entered,A182+1,"") -> 170 | B183: 2187-01-01 | C183: 0 | D183: 2717.359164 | E183: 0 | F183: 0 | G183: 0 | H183: 0 | I183: 0 | J183: =SUM($H$14:$H183) -> 7173.591644
A184: =IF(Values_Entered,A183+1,"") -> 171 | B184: 2188-01-01 | C184: 0 | D184: 2717.359164 | E184: 0 | F184: 0 | G184: 0 | H184: 0 | I184: 0 | J184: =SUM($H$14:$H184) -> 7173.591644
A185: =IF(Values_Entered,A184+1,"") -> 172 | B185: 2189-01-01 | C185: 0 | D185: 2717.359164 | E185: 0 | F185: 0 | G185: 0 | H185: 0 | I185: 0 | J185: =SUM($H$14:$H185) -> 7173.591644
A186: =IF(Values_Entered,A185+1,"") -> 173 | B186: 2190-01-01 | C186: 0 | D186: 2717.359164 | E186: 0 | F186: 0 | G186: 0 | H186: 0 | I186: 0 | J186: =SUM($H$14:$H186) -> 7173.591644
A187: =IF(Values_Entered,A186+1,"") -> 174 | B187: 2191-01-01 | C187: 0 | D187: 2717.359164 | E187: 0 | F187: 0 | G187: 0 | H187: 0 | I187: 0 | J187: =SUM($H$14:$H187) -> 7173.591644
A188: =IF(Values_Entered,A187+1,"") -> 175 | B188: 2192-01-01 | C188: 0 | D188: 2717.359164 | E188: 0 | F188: 0 | G188: 0 | H188: 0 | I188: 0 | J188: =SUM($H$14:$H188) -> 7173.591644
A189: =IF(Values_Entered,A188+1,"") -> 176 | B189: 2193-01-01 | C189: 0 | D189: 2717.359164 | E189: 0 | F189: 0 | G189: 0 | H189: 0 | I189: 0 | J189: =SUM($H$14:$H189) -> 7173.591644
A190: =IF(Values_Entered,A189+1,"") -> 177 | B190: 2194-01-01 | C190: 0 | D190: 2717.359164 | E190: 0 | F190: 0 | G190: 0 | H190: 0 | I190: 0 | J190: =SUM($H$14:$H190) -> 7173.591644
A191: =IF(Values_Entered,A190+1,"") -> 178 | B191: 2195-01-01 | C191: 0 | D191: 2717.359164 | E191: 0 | F191: 0 | G191: 0 | H191: 0 | I191: 0 | J191: =SUM($H$14:$H191) -> 7173.591644
A192: =IF(Values_Entered,A191+1,"") -> 179 | B192: 2196-01-01 | C192: 0 | D192: 2717.359164 | E192: 0 | F192: 0 | G192: 0 | H192: 0 | I192: 0 | J192: =SUM($H$14:$H192) -> 7173.591644
A193: =IF(Values_Entered,A192+1,"") -> 180 | B193: 2197-01-01 | C193: 0 | D193: 2717.359164 | E193: 0 | F193: 0 | G193: 0 | H193: 0 | I193: 0 | J193: =SUM($H$14:$H193) -> 7173.591644
A194: =IF(Values_Entered,A193+1,"") -> 181 | B194: 2198-01-01 | C194: 0 | D194: 2717.359164 | E194: 0 | F194: 0 | G194: 0 | H194: 0 | I194: 0 | J194: =SUM($H$14:$H194) -> 7173.591644
A195: =IF(Values_Entered,A194+1,"") -> 182 | B195: 2199-01-01 | C195: 0 | D195: 2717.359164 | E195: 0 | F195: 0 | G195: 0 | H195: 0 | I195: 0 | J195: =SUM($H$14:$H195) -> 7173.591644
A196: =IF(Values_Entered,A195+1,"") -> 183 | B196: 2200-01-01 | C196: 0 | D196: 2717.359164 | E196: 0 | F196: 0 | G196: 0 | H196: 0 | I196: 0 | J196: =SUM($H$14:$H196) -> 7173.591644
A197: =IF(Values_Entered,A196+1,"") -> 184 | B197: 2201-01-01 | C197: 0 | D197: 2717.359164 | E197: 0 | F197: 0 | G197: 0 | H197: 0 | I197: 0 | J197: =SUM($H$14:$H197) -> 7173.591644
A198: =IF(Values_Entered,A197+1,"") -> 185 | B198: 2202-01-01 | C198: 0 | D198: 2717.359164 | E198: 0 | F198: 0 | G198: 0 | H198: 0 | I198: 0 | J198: =SUM($H$14:$H198) -> 7173.591644
A199: =IF(Values_Entered,A198+1,"") -> 186 | B199: 2203-01-01 | C199: 0 | D199: 2717.359164 | E199: 0 | F199: 0 | G199: 0 | H199: 0 | I199: 0 | J199: =SUM($H$14:$H199) -> 7173.591644
A200: =IF(Values_Entered,A199+1,"") -> 187 | B200: 2204-01-01 | C200: 0 | D200: 2717.359164 | E200: 0 | F200: 0 | G200: 0 | H200: 0 | I200: 0 | J200: =SUM($H$14:$H200) -> 7173.591644
A201: =IF(Values_Entered,A200+1,"") -> 188 | B201: 2205-01-01 | C201: 0 | D201: 2717.359164 | E201: 0 | F201: 0 | G201: 0 | H201: 0 | I201: 0 | J201: =SUM($H$14:$H201) -> 7173.591644
A202: =IF(Values_Entered,A201+1,"") -> 189 | B202: 2206-01-01 | C202: 0 | D202: 2717.359164 | E202: 0 | F202: 0 | G202: 0 | H202: 0 | I202: 0 | J202: =SUM($H$14:$H202) -> 7173.591644
A203: =IF(Values_Entered,A202+1,"") -> 190 | B203: 2207-01-01 | C203: 0 | D203: 2717.359164 | E203: 0 | F203: 0 | G203: 0 | H203: 0 | I203: 0 | J203: =SUM($H$14:$H203) -> 7173.591644
... 170 more rows

Sheet Loan Repayment Grid (hidden)
A1: Loan Repayment: | F1: =Entradas!D60 -> Sistema de riego conectado a la red eléctrica
A2: Bank: | B2: =Entradas!E88 -> 0
B3: Enter Values | F3: Loan Summary
C4: Loan Amount | D4: =Entradas!E85 -> 0 | G4: Scheduled Payment | H4: =IF(Values_Entered,-PMT(Interest_Rate/Num_Pmt_Per_Year,Loan_Years*Num_Pmt_Per_Year,Loan_Amount),"0") -> 0
C5: Annual Interest Rate | D5: =Entradas!E86 -> 0 | G5: Scheduled Number of Payments | H5: =IF(Values_Entered,Loan_Years*Num_Pmt_Per_Year,"") -> 
C6: Loan Period in Years | D6: =Entradas!E87 -> 0 | G6: Actual Number of Payments | H6: =IF(Values_Entered,Number_of_Payments,"") -> 
C7: Number of Payments Per Year | D7: 1 | G7: Total Early Payments | H7: =IF(Values_Entered,SUMIF(Beg_Bal,">0",Extra_Pay),"") -> 
C8: Start Date of Loan | D8: 2017-01-01 | G8: Total Interest | H8: =IF(Values_Entered,SUMIF(Beg_Bal,">0",Int),"") -> 
C9: Optional Extra Payments | D9: 0
A12: PmtNo. | B12: Payment Date | C12: Beginning Balance | D12: Scheduled Payment | E12: Extra Payment | F12: Total Payment | G12: Principal | H12: Interest | I12: Ending Balance | J12: Cumulative Interest
A14: =IF(Values_Entered,1,"") ->  | B14: =IF(Pay_Num<>"",DATE(YEAR(Loan_Start),MONTH(Loan_Start)+(Pay_Num)*12/Num_Pmt_Per_Year,DAY(Loan_Start)),"") ->  | C14: =IF(Values_Entered,Loan_Amount,"") ->  | D14: =IF(Pay_Num<>"",Scheduled_Monthly_Payment,"") ->  | E14: =IF(AND(Pay_Num<>"",Sched_Pay+Scheduled_Extra_Payments<Beg_Bal),Scheduled_Extra_Payments,IF(AND(Pay_Num<>"",Beg_Bal-Sched_Pay>0),Beg_Bal-Sched_Pay,IF(Pay_Num<>"",0,""))) ->  | F14: =IF(AND(Pay_Num<>"",Sched_Pay+Extra_Pay<Beg_Bal),Sched_Pay+Extra_Pay,IF(Pay_Num<>"",Beg_Bal,"")) ->  | G14: =IF(Pay_Num<>"",Total_Pay-Int,"") ->  | H14: =IF(Pay_Num<>"",Beg_Bal*(Interest_Rate/Num_Pmt_Per_Year),"") ->  | I14: =IF(AND(Pay_Num<>"",Sched_Pay+Extra_Pay<Beg_Bal),Beg_Bal-Princ,IF(Pay_Num<>"",0,"")) ->  | J14: =SUM($H$14:$H14) -> 0
A15: =IF(Values_Entered,A14+1,"") ->  | C15: =IF(Pay_Num<>"",I14,"") ->  | D15: =IF(Pay_Num<>"",Scheduled_Monthly_Payment,"") ->  | G15: =IF(Pay_Num<>"",Total_Pay-Int,"") ->  | H15: =IF(Pay_Num<>"",Beg_Bal*Interest_Rate/Num_Pmt_Per_Year,"") ->  | J15: =SUM($H$14:$H15) -> 0
A16: =IF(Values_Entered,A15+1,"") ->  | D16: =IF(Pay_Num<>"",Scheduled_Monthly_Payment,"") ->  | J16: =SUM($H$14:$H16) -> 0
A17: =IF(Values_Entered,A16+1,"") ->  | D17: =IF(Pay_Num<>"",Scheduled_Monthly_Payment,"") ->  | J17: =SUM($H$14:$H17) -> 0
A18: =IF(Values_Entered,A17+1,"") ->  | J18: =SUM($H$14:$H18) -> 0
A19: =IF(Values_Entered,A18+1,"") ->  | J19: =SUM($H$14:$H19) -> 0
A20: =IF(Values_Entered,A19+1,"") ->  | J20: =SUM($H$14:$H20) -> 0
A21: =IF(Values_Entered,A20+1,"") ->  | J21: =SUM($H$14:$H21) -> 0
A22: =IF(Values_Entered,A21+1,"") ->  | J22: =SUM($H$14:$H22) -> 0
A23: =IF(Values_Entered,A22+1,"") ->  | J23: =SUM($H$14:$H23) -> 0
A24: =IF(Values_Entered,A23+1,"") ->  | J24: =SUM($H$14:$H24) -> 0
A25: =IF(Values_Entered,A24+1,"") ->  | J25: =SUM($H$14:$H25) -> 0
A26: =IF(Values_Entered,A25+1,"") ->  | J26: =SUM($H$14:$H26) -> 0
A27: =IF(Values_Entered,A26+1,"") ->  | J27: =SUM($H$14:$H27) -> 0
A28: =IF(Values_Entered,A27+1,"") ->  | J28: =SUM($H$14:$H28) -> 0
A29: =IF(Values_Entered,A28+1,"") ->  | J29: =SUM($H$14:$H29) -> 0
A30: =IF(Values_Entered,A29+1,"") ->  | J30: =SUM($H$14:$H30) -> 0
A31: =IF(Values_Entered,A30+1,"") ->  | J31: =SUM($H$14:$H31) -> 0
A32: =IF(Values_Entered,A31+1,"") ->  | J32: =SUM($H$14:$H32) -> 0
A33: =IF(Values_Entered,A32+1,"") ->  | J33: =SUM($H$14:$H33) -> 0
A34: =IF(Values_Entered,A33+1,"") ->  | J34: =SUM($H$14:$H34) -> 0
A35: =IF(Values_Entered,A34+1,"") ->  | J35: =SUM($H$14:$H35) -> 0
A36: =IF(Values_Entered,A35+1,"") ->  | J36: =SUM($H$14:$H36) -> 0
A37: =IF(Values_Entered,A36+1,"") ->  | J37: =SUM($H$14:$H37) -> 0
A38: =IF(Values_Entered,A37+1,"") ->  | J38: =SUM($H$14:$H38) -> 0
A39: =IF(Values_Entered,A38+1,"") ->  | J39: =SUM($H$14:$H39) -> 0
A40: =IF(Values_Entered,A39+1,"") ->  | J40: =SUM($H$14:$H40) -> 0
A41: =IF(Values_Entered,A40+1,"") ->  | J41: =SUM($H$14:$H41) -> 0
A42: =IF(Values_Entered,A41+1,"") ->  | J42: =SUM($H$14:$H42) -> 0
A43: =IF(Values_Entered,A42+1,"") ->  | J43: =SUM($H$14:$H43) -> 0
A44: =IF(Values_Entered,A43+1,"") ->  | J44: =SUM($H$14:$H44) -> 0
A45: =IF(Values_Entered,A44+1,"") ->  | J45: =SUM($H$14:$H45) -> 0
A46: =IF(Values_Entered,A45+1,"") ->  | J46: =SUM($H$14:$H46) -> 0
A47: =IF(Values_Entered,A46+1,"") ->  | J47: =SUM($H$14:$H47) -> 0
A48: =IF(Values_Entered,A47+1,"") ->  | J48: =SUM($H$14:$H48) -> 0
A49: =IF(Values_Entered,A48+1,"") ->  | J49: =SUM($H$14:$H49) -> 0
A50: =IF(Values_Entered,A49+1,"") ->  | J50: =SUM($H$14:$H50) -> 0
A51: =IF(Values_Entered,A50+1,"") ->  | J51: =SUM($H$14:$H51) -> 0
A52: =IF(Values_Entered,A51+1,"") ->  | J52: =SUM($H$14:$H52) -> 0
A53: =IF(Values_Entered,A52+1,"") ->  | J53: =SUM($H$14:$H53) -> 0
A54: =IF(Values_Entered,A53+1,"") ->  | J54: =SUM($H$14:$H54) -> 0
A55: =IF(Values_Entered,A54+1,"") ->  | J55: =SUM($H$14:$H55) -> 0
A56: =IF(Values_Entered,A55+1,"") ->  | J56: =SUM($H$14:$H56) -> 0
A57: =IF(Values_Entered,A56+1,"") ->  | J57: =SUM($H$14:$H57) -> 0
A58: =IF(Values_Entered,A57+1,"") ->  | J58: =SUM($H$14:$H58) -> 0
A59: =IF(Values_Entered,A58+1,"") ->  | J59: =SUM($H$14:$H59) -> 0
A60: =IF(Values_Entered,A59+1,"") ->  | J60: =SUM($H$14:$H60) -> 0
A61: =IF(Values_Entered,A60+1,"") ->  | J61: =SUM($H$14:$H61) -> 0
A62: =IF(Values_Entered,A61+1,"") ->  | J62: =SUM($H$14:$H62) -> 0
A63: =IF(Values_Entered,A62+1,"") ->  | J63: =SUM($H$14:$H63) -> 0
A64: =IF(Values_Entered,A63+1,"") ->  | J64: =SUM($H$14:$H64) -> 0
A65: =IF(Values_Entered,A64+1,"") ->  | J65: =SUM($H$14:$H65) -> 0
A66: =IF(Values_Entered,A65+1,"") ->  | J66: =SUM($H$14:$H66) -> 0
A67: =IF(Values_Entered,A66+1,"") ->  | J67: =SUM($H$14:$H67) -> 0
A68: =IF(Values_Entered,A67+1,"") ->  | J68: =SUM($H$14:$H68) -> 0
A69: =IF(Values_Entered,A68+1,"") ->  | J69: =SUM($H$14:$H69) -> 0
A70: =IF(Values_Entered,A69+1,"") ->  | J70: =SUM($H$14:$H70) -> 0
A71: =IF(Values_Entered,A70+1,"") ->  | J71: =SUM($H$14:$H71) -> 0
A72: =IF(Values_Entered,A71+1,"") ->  | J72: =SUM($H$14:$H72) -> 0
A73: =IF(Values_Entered,A72+1,"") ->  | J73: =SUM($H$14:$H73) -> 0
A74: =IF(Values_Entered,A73+1,"") ->  | J74: =SUM($H$14:$H74) -> 0
A75: =IF(Values_Entered,A74+1,"") ->  | J75: =SUM($H$14:$H75) -> 0
A76: =IF(Values_Entered,A75+1,"") ->  | J76: =SUM($H$14:$H76) -> 0
A77: =IF(Values_Entered,A76+1,"") ->  | J77: =SUM($H$14:$H77) -> 0
A78: =IF(Values_Entered,A77+1,"") ->  | B78: =IF(Pay_Num<>"",DATE(YEAR(Loan_Start),MONTH(Loan_Start)+(Pay_Num)*12/Num_Pmt_Per_Year,DAY(Loan_Start)),"") ->  | E78: =IF(AND(Pay_Num<>"",Sched_Pay+Scheduled_Extra_Payments<Beg_Bal),Scheduled_Extra_Payments,IF(AND(Pay_Num<>"",Beg_Bal-Sched_Pay>0),Beg_Bal-Sched_Pay,IF(Pay_Num<>"",0,""))) ->  | F78: =IF(AND(Pay_Num<>"",Sched_Pay+Extra_Pay<Beg_Bal),Sched_Pay+Extra_Pay,IF(Pay_Num<>"",Beg_Bal,"")) ->  | I78: =IF(AND(Pay_Num<>"",Sched_Pay+Extra_Pay<Beg_Bal),Beg_Bal-Princ,IF(Pay_Num<>"",0,"")) ->  | J78: =SUM($H$14:$H78) -> 0
A79: =IF(Values_Entered,A78+1,"") ->  | C79: =IF(Pay_Num<>"",I78,"") ->  | G79: =IF(Pay_Num<>"",Total_Pay-Int,"") ->  | H79: =IF(Pay_Num<>"",Beg_Bal*Interest_Rate/Num_Pmt_Per_Year,"") ->  | J79: =SUM($H$14:$H79) -> 0
A80: =IF(Values_Entered,A79+1,"") ->  | D80: =IF(Pay_Num<>"",Scheduled_Monthly_Payment,"") ->  | J80: =SUM($H$14:$H80) -> 0
A81: =IF(Values_Entered,A80+1,"") ->  | J81: =SUM($H$14:$H81) -> 0
A82: =IF(Values_Entered,A81+1,"") ->  | J82: =SUM($H$14:$H82) -> 0
A83: =IF(Values_Entered,A82+1,"") ->  | J83: =SUM($H$14:$H83) -> 0
A84: =IF(Values_Entered,A83+1,"") ->  | J84: =SUM($H$14:$H84) -> 0
A85: =IF(Values_Entered,A84+1,"") ->  | J85: =SUM($H$14:$H85) -> 0
A86: =IF(Values_Entered,A85+1,"") ->  | J86: =SUM($H$14:$H86) -> 0
A87: =IF(Values_Entered,A86+1,"") ->  | J87: =SUM($H$14:$H87) -> 0
A88: =IF(Values_Entered,A87+1,"") ->  | J88: =SUM($H$14:$H88) -> 0
A89: =IF(Values_Entered,A88+1,"") ->  | J89: =SUM($H$14:$H89) -> 0
A90: =IF(Values_Entered,A89+1,"") ->  | J90: =SUM($H$14:$H90) -> 0
A91: =IF(Values_Entered,A90+1,"") ->  | J91: =SUM($H$14:$H91) -> 0
A92: =IF(Values_Entered,A91+1,"") ->  | J92: =SUM($H$14:$H92) -> 0
A93: =IF(Values_Entered,A92+1,"") ->  | J93: =SUM($H$14:$H93) -> 0
A94: =IF(Values_Entered,A93+1,"") ->  | J94: =SUM($H$14:$H94) -> 0
A95: =IF(Values_Entered,A94+1,"") ->  | J95: =SUM($H$14:$H95) -> 0
A96: =IF(Values_Entered,A95+1,"") ->  | J96: =SUM($H$14:$H96) -> 0
A97: =IF(Values_Entered,A96+1,"") ->  | J97: =SUM($H$14:$H97) -> 0
A98: =IF(Values_Entered,A97+1,"") ->  | J98: =SUM($H$14:$H98) -> 0
A99: =IF(Values_Entered,A98+1,"") ->  | J99: =SUM($H$14:$H99) -> 0
A100: =IF(Values_Entered,A99+1,"") ->  | J100: =SUM($H$14:$H100) -> 0
A101: =IF(Values_Entered,A100+1,"") ->  | J101: =SUM($H$14:$H101) -> 0
A102: =IF(Values_Entered,A101+1,"") ->  | J102: =SUM($H$14:$H102) -> 0
A103: =IF(Values_Entered,A102+1,"") ->  | J103: =SUM($H$14:$H103) -> 0
A104: =IF(Values_Entered,A103+1,"") ->  | J104: =SUM($H$14:$H104) -> 0
A105: =IF(Values_Entered,A104+1,"") ->  | J105: =SUM($H$14:$H105) -> 0
A106: =IF(Values_Entered,A105+1,"") ->  | J106: =SUM($H$14:$H106) -> 0
A107: =IF(Values_Entered,A106+1,"") ->  | J107: =SUM($H$14:$H107) -> 0
A108: =IF(Values_Entered,A107+1,"") ->  | J108: =SUM($H$14:$H108) -> 0
A109: =IF(Values_Entered,A108+1,"") ->  | J109: =SUM($H$14:$H109) -> 0
A110: =IF(Values_Entered,A109+1,"") ->  | J110: =SUM($H$14:$H110) -> 0
A111: =IF(Values_Entered,A110+1,"") ->  | J111: =SUM($H$14:$H111) -> 0
A112: =IF(Values_Entered,A111+1,"") ->  | J112: =SUM($H$14:$H112) -> 0
A113: =IF(Values_Entered,A112+1,"") ->  | J113: =SUM($H$14:$H113) -> 0
A114: =IF(Values_Entered,A113+1,"") ->  | J114: =SUM($H$14:$H114) -> 0
A115: =IF(Values_Entered,A114+1,"") ->  | J115: =SUM($H$14:$H115) -> 0
A116: =IF(Values_Entered,A115+1,"") ->  | J116: =SUM($H$14:$H116) -> 0
A117: =IF(Values_Entered,A116+1,"") ->  | J117: =SUM($H$14:$H117) -> 0
A118: =IF(Values_Entered,A117+1,"") ->  | J118: =SUM($H$14:$H118) -> 0
A119: =IF(Values_Entered,A118+1,"") ->  | J119: =SUM($H$14:$H119) -> 0
A120: =IF(Values_Entered,A119+1,"") ->  | J120: =SUM($H$14:$H120) -> 0
A121: =IF(Values_Entered,A120+1,"") ->  | J121: =SUM($H$14:$H121) -> 0
A122: =IF(Values_Entered,A121+1,"") ->  | J122: =SUM($H$14:$H122) -> 0
A123: =IF(Values_Entered,A122+1,"") ->  | J123: =SUM($H$14:$H123) -> 0
A124: =IF(Values_Entered,A123+1,"") ->  | J124: =SUM($H$14:$H124) -> 0
A125: =IF(Values_Entered,A124+1,"") ->  | J125: =SUM($H$14:$H125) -> 0
A126: =IF(Values_Entered,A125+1,"") ->  | J126: =SUM($H$14:$H126) -> 0
A127: =IF(Values_Entered,A126+1,"") ->  | J127: =SUM($H$14:$H127) -> 0
A128: =IF(Values_Entered,A127+1,"") ->  | J128: =SUM($H$14:$H128) -> 0
A129: =IF(Values_Entered,A128+1,"") ->  | J129: =SUM($H$14:$H129) -> 0
A130: =IF(Values_Entered,A129+1,"") ->  | J130: =SUM($H$14:$H130) -> 0
A131: =IF(Values_Entered,A130+1,"") ->  | J131: =SUM($H$14:$H131) -> 0
A132: =IF(Values_Entered,A131+1,"") ->  | J132: =SUM($H$14:$H132) -> 0
A133: =IF(Values_Entered,A132+1,"") ->  | J133: =SUM($H$14:$H133) -> 0
A134: =IF(Values_Entered,A133+1,"") ->  | J134: =SUM($H$14:$H134) -> 0
A135: =IF(Values_Entered,A134+1,"") ->  | J135: =SUM($H$14:$H135) -> 0
A136: =IF(Values_Entered,A135+1,"") ->  | J136: =SUM($H$14:$H136) -> 0
A137: =IF(Values_Entered,A136+1,"") ->  | J137: =SUM($H$14:$H137) -> 0
A138: =IF(Values_Entered,A137+1,"") ->  | J138: =SUM($H$14:$H138) -> 0
A139: =IF(Values_Entered,A138+1,"") ->  | J139: =SUM($H$14:$H139) -> 0
A140: =IF(Values_Entered,A139+1,"") ->  | J140: =SUM($H$14:$H140) -> 0
A141: =IF(Values_Entered,A140+1,"") ->  | J141: =SUM($H$14:$H141) -> 0
A142: =IF(Values_Entered,A141+1,"") ->  | B142: =IF(Pay_Num<>"",DATE(YEAR(Loan_Start),MONTH(Loan_Start)+(Pay_Num)*12/Num_Pmt_Per_Year,DAY(Loan_Start)),"") ->  | E142: =IF(AND(Pay_Num<>"",Sched_Pay+Scheduled_Extra_Payments<Beg_Bal),Scheduled_Extra_Payments,IF(AND(Pay_Num<>"",Beg_Bal-Sched_Pay>0),Beg_Bal-Sched_Pay,IF(Pay_Num<>"",0,""))) ->  | F142: =IF(AND(Pay_Num<>"",Sched_Pay+Extra_Pay<Beg_Bal),Sched_Pay+Extra_Pay,IF(Pay_Num<>"",Beg_Bal,"")) ->  | I142: =IF(AND(Pay_Num<>"",Sched_Pay+Extra_Pay<Beg_Bal),Beg_Bal-Princ,IF(Pay_Num<>"",0,"")) ->  | J142: =SUM($H$14:$H142) -> 0
A143: =IF(Values_Entered,A142+1,"") ->  | C143: =IF(Pay_Num<>"",I142,"") ->  | G143: =IF(Pay_Num<>"",Total_Pay-Int,"") ->  | H143: =IF(Pay_Num<>"",Beg_Bal*Interest_Rate/Num_Pmt_Per_Year,"") ->  | J143: =SUM($H$14:$H143) -> 0
A144: =IF(Values_Entered,A143+1,"") ->  | D144: =IF(Pay_Num<>"",Scheduled_Monthly_Payment,"") ->  | J144: =SUM($H$14:$H144) -> 0
A145: =IF(Values_Entered,A144+1,"") ->  | J145: =SUM($H$14:$H145) -> 0
A146: =IF(Values_Entered,A145+1,"") ->  | J146: =SUM($H$14:$H146) -> 0
A147: =IF(Values_Entered,A146+1,"") ->  | J147: =SUM($H$14:$H147) -> 0
A148: =IF(Values_Entered,A147+1,"") ->  | J148: =SUM($H$14:$H148) -> 0
A149: =IF(Values_Entered,A148+1,"") ->  | J149: =SUM($H$14:$H149) -> 0
A150: =IF(Values_Entered,A149+1,"") ->  | J150: =SUM($H$14:$H150) -> 0
A151: =IF(Values_Entered,A150+1,"") ->  | J151: =SUM($H$14:$H151) -> 0
A152: =IF(Values_Entered,A151+1,"") ->  | J152: =SUM($H$14:$H152) -> 0
A153: =IF(Values_Entered,A152+1,"") ->  | J153: =SUM($H$14:$H153) -> 0
A154: =IF(Values_Entered,A153+1,"") ->  | J154: =SUM($H$14:$H154) -> 0
A155: =IF(Values_Entered,A154+1,"") ->  | J155: =SUM($H$14:$H155) -> 0
A156: =IF(Values_Entered,A155+1,"") ->  | J156: =SUM($H$14:$H156) -> 0
A157: =IF(Values_Entered,A156+1,"") ->  | J157: =SUM($H$14:$H157) -> 0
A158: =IF(Values_Entered,A157+1,"") ->  | J158: =SUM($H$14:$H158) -> 0
A159: =IF(Values_Entered,A158+1,"") ->  | J159: =SUM($H$14:$H159) -> 0
A160: =IF(Values_Entered,A159+1,"") ->  | J160: =SUM($H$14:$H160) -> 0
A161: =IF(Values_Entered,A160+1,"") ->  | J161: =SUM($H$14:$H161) -> 0
A162: =IF(Values_Entered,A161+1,"") ->  | J162: =SUM($H$14:$H162) -> 0
A163: =IF(Values_Entered,A162+1,"") ->  | J163: =SUM($H$14:$H163) -> 0
A164: =IF(Values_Entered,A163+1,"") ->  | J164: =SUM($H$14:$H164) -> 0
A165: =IF(Values_Entered,A164+1,"") ->  | J165: =SUM($H$14:$H165) -> 0
A166: =IF(Values_Entered,A165+1,"") ->  | J166: =SUM($H$14:$H166) -> 0
A167: =IF(Values_Entered,A166+1,"") ->  | J167: =SUM($H$14:$H167) -> 0
A168: =IF(Values_Entered,A167+1,"") ->  | J168: =SUM($H$14:$H168) -> 0
A169: =IF(Values_Entered,A168+1,"") ->  | J169: =SUM($H$14:$H169) -> 0
A170: =IF(Values_Entered,A169+1,"") ->  | J170: =SUM($H$14:$H170) -> 0
A171: =IF(Values_Entered,A170+1,"") ->  | J171: =SUM($H$14:$H171) -> 0
A172: =IF(Values_Entered,A171+1,"") ->  | J172: =SUM($H$14:$H172) -> 0
A173: =IF(Values_Entered,A172+1,"") ->  | J173: =SUM($H$14:$H173) -> 0
A174: =IF(Values_Entered,A173+1,"") ->  | J174: =SUM($H$14:$H174) -> 0
A175: =IF(Values_Entered,A174+1,"") ->  | J175: =SUM($H$14:$H175) -> 0
A176: =IF(Values_Entered,A175+1,"") ->  | J176: =SUM($H$14:$H176) -> 0
A177: =IF(Values_Entered,A176+1,"") ->  | J177: =SUM($H$14:$H177) -> 0
A178: =IF(Values_Entered,A177+1,"") ->  | J178: =SUM($H$14:$H178) -> 0
A179: =IF(Values_Entered,A178+1,"") ->  | J179: =SUM($H$14:$H179) -> 0
A180: =IF(Values_Entered,A179+1,"") ->  | J180: =SUM($H$14:$H180) -> 0
A181: =IF(Values_Entered,A180+1,"") ->  | J181: =SUM($H$14:$H181) -> 0
A182: =IF(Values_Entered,A181+1,"") ->  | J182: =SUM($H$14:$H182) -> 0
A183: =IF(Values_Entered,A182+1,"") ->  | J183: =SUM($H$14:$H183) -> 0
A184: =IF(Values_Entered,A183+1,"") ->  | J184: =SUM($H$14:$H184) -> 0
A185: =IF(Values_Entered,A184+1,"") ->  | J185: =SUM($H$14:$H185) -> 0
A186: =IF(Values_Entered,A185+1,"") ->  | J186: =SUM($H$14:$H186) -> 0
A187: =IF(Values_Entered,A186+1,"") ->  | J187: =SUM($H$14:$H187) -> 0
A188: =IF(Values_Entered,A187+1,"") ->  | J188: =SUM($H$14:$H188) -> 0
A189: =IF(Values_Entered,A188+1,"") ->  | J189: =SUM($H$14:$H189) -> 0
A190: =IF(Values_Entered,A189+1,"") ->  | J190: =SUM($H$14:$H190) -> 0
A191: =IF(Values_Entered,A190+1,"") ->  | J191: =SUM($H$14:$H191) -> 0
A192: =IF(Values_Entered,A191+1,"") ->  | J192: =SUM($H$14:$H192) -> 0
A193: =IF(Values_Entered,A192+1,"") ->  | J193: =SUM($H$14:$H193) -> 0
A194: =IF(Values_Entered,A193+1,"") ->  | J194: =SUM($H$14:$H194) -> 0
A195: =IF(Values_Entered,A194+1,"") ->  | J195: =SUM($H$14:$H195) -> 0
A196: =IF(Values_Entered,A195+1,"") ->  | J196: =SUM($H$14:$H196) -> 0
A197: =IF(Values_Entered,A196+1,"") ->  | J197: =SUM($H$14:$H197) -> 0
A198: =IF(Values_Entered,A197+1,"") ->  | J198: =SUM($H$14:$H198) -> 0
A199: =IF(Values_Entered,A198+1,"") ->  | J199: =SUM($H$14:$H199) -> 0
A200: =IF(Values_Entered,A199+1,"") ->  | J200: =SUM($H$14:$H200) -> 0
A201: =IF(Values_Entered,A200+1,"") ->  | J201: =SUM($H$14:$H201) -> 0
A202: =IF(Values_Entered,A201+1,"") ->  | J202: =SUM($H$14:$H202) -> 0
A203: =IF(Values_Entered,A202+1,"") ->  | J203: =SUM($H$14:$H203) -> 0
... 170 more rows

Sheet Loan Repayment Diesel (hidden)
A1: Loan Repayment: | F1: =Entradas!D60 -> Sistema de riego conectado a la red eléctrica
A2: Bank: | B2: =Entradas!E119 -> 0
B3: Enter Values | F3: Loan Summary
C4: Loan Amount | D4: =Entradas!E116 -> 0 | G4: Scheduled Payment | H4: =IF(Values_Entered,-PMT(Interest_Rate/Num_Pmt_Per_Year,Loan_Years*Num_Pmt_Per_Year,Loan_Amount),"0") -> 0
C5: Annual Interest Rate | D5: =Entradas!E117 -> 0 | G5: Scheduled Number of Payments | H5: =IF(Values_Entered,Loan_Years*Num_Pmt_Per_Year,"") -> 
C6: Loan Period in Years | D6: =Entradas!E118 -> 0 | G6: Actual Number of Payments | H6: =IF(Values_Entered,Number_of_Payments,"") -> 
C7: Number of Payments Per Year | D7: 1 | G7: Total Early Payments | H7: =IF(Values_Entered,SUMIF(Beg_Bal,">0",Extra_Pay),"") -> 
C8: Start Date of Loan | D8: 2017-01-01 | G8: Total Interest | H8: =IF(Values_Entered,SUMIF(Beg_Bal,">0",Int),"") -> 
C9: Optional Extra Payments | D9: 0
A12: PmtNo. | B12: Payment Date | C12: Beginning Balance | D12: Scheduled Payment | E12: Extra Payment | F12: Total Payment | G12: Principal | H12: Interest | I12: Ending Balance | J12: Cumulative Interest
A14: =IF(Values_Entered,1,"") ->  | B14: =IF(Pay_Num<>"",DATE(YEAR(Loan_Start),MONTH(Loan_Start)+(Pay_Num)*12/Num_Pmt_Per_Year,DAY(Loan_Start)),"") ->  | C14: =IF(Values_Entered,Loan_Amount,"") ->  | D14: =IF(Pay_Num<>"",Scheduled_Monthly_Payment,"") ->  | E14: =IF(AND(Pay_Num<>"",Sched_Pay+Scheduled_Extra_Payments<Beg_Bal),Scheduled_Extra_Payments,IF(AND(Pay_Num<>"",Beg_Bal-Sched_Pay>0),Beg_Bal-Sched_Pay,IF(Pay_Num<>"",0,""))) ->  | F14: =IF(AND(Pay_Num<>"",Sched_Pay+Extra_Pay<Beg_Bal),Sched_Pay+Extra_Pay,IF(Pay_Num<>"",Beg_Bal,"")) ->  | G14: =IF(Pay_Num<>"",Total_Pay-Int,"") ->  | H14: =IF(Pay_Num<>"",Beg_Bal*(Interest_Rate/Num_Pmt_Per_Year),"") ->  | I14: =IF(AND(Pay_Num<>"",Sched_Pay+Extra_Pay<Beg_Bal),Beg_Bal-Princ,IF(Pay_Num<>"",0,"")) ->  | J14: =SUM($H$14:$H14) -> 0
A15: =IF(Values_Entered,A14+1,"") ->  | C15: =IF(Pay_Num<>"",I14,"") ->  | D15: =IF(Pay_Num<>"",Scheduled_Monthly_Payment,"") ->  | G15: =IF(Pay_Num<>"",Total_Pay-Int,"") ->  | H15: =IF(Pay_Num<>"",Beg_Bal*Interest_Rate/Num_Pmt_Per_Year,"") ->  | J15: =SUM($H$14:$H15) -> 0
A16: =IF(Values_Entered,A15+1,"") ->  | D16: =IF(Pay_Num<>"",Scheduled_Monthly_Payment,"") ->  | J16: =SUM($H$14:$H16) -> 0
A17: =IF(Values_Entered,A16+1,"") ->  | D17: =IF(Pay_Num<>"",Scheduled_Monthly_Payment,"") ->  | J17: =SUM($H$14:$H17) -> 0
A18: =IF(Values_Entered,A17+1,"") ->  | J18: =SUM($H$14:$H18) -> 0
A19: =IF(Values_Entered,A18+1,"") ->  | J19: =SUM($H$14:$H19) -> 0
A20: =IF(Values_Entered,A19+1,"") ->  | J20: =SUM($H$14:$H20) -> 0
A21: =IF(Values_Entered,A20+1,"") ->  | J21: =SUM($H$14:$H21) -> 0
A22: =IF(Values_Entered,A21+1,"") ->  | J22: =SUM($H$14:$H22) -> 0
A23: =IF(Values_Entered,A22+1,"") ->  | J23: =SUM($H$14:$H23) -> 0
A24: =IF(Values_Entered,A23+1,"") ->  | J24: =SUM($H$14:$H24) -> 0
A25: =IF(Values_Entered,A24+1,"") ->  | J25: =SUM($H$14:$H25) -> 0
A26: =IF(Values_Entered,A25+1,"") ->  | J26: =SUM($H$14:$H26) -> 0
A27: =IF(Values_Entered,A26+1,"") ->  | J27: =SUM($H$14:$H27) -> 0
A28: =IF(Values_Entered,A27+1,"") ->  | J28: =SUM($H$14:$H28) -> 0
A29: =IF(Values_Entered,A28+1,"") ->  | J29: =SUM($H$14:$H29) -> 0
A30: =IF(Values_Entered,A29+1,"") ->  | J30: =SUM($H$14:$H30) -> 0
A31: =IF(Values_Entered,A30+1,"") ->  | J31: =SUM($H$14:$H31) -> 0
A32: =IF(Values_Entered,A31+1,"") ->  | J32: =SUM($H$14:$H32) -> 0
A33: =IF(Values_Entered,A32+1,"") ->  | J33: =SUM($H$14:$H33) -> 0
A34: =IF(Values_Entered,A33+1,"") ->  | J34: =SUM($H$14:$H34) -> 0
A35: =IF(Values_Entered,A34+1,"") ->  | J35: =SUM($H$14:$H35) -> 0
A36: =IF(Values_Entered,A35+1,"") ->  | J36: =SUM($H$14:$H36) -> 0
A37: =IF(Values_Entered,A36+1,"") ->  | J37: =SUM($H$14:$H37) -> 0
A38: =IF(Values_Entered,A37+1,"") ->  | J38: =SUM($H$14:$H38) -> 0
A39: =IF(Values_Entered,A38+1,"") ->  | J39: =SUM($H$14:$H39) -> 0
A40: =IF(Values_Entered,A39+1,"") ->  | J40: =SUM($H$14:$H40) -> 0
A41: =IF(Values_Entered,A40+1,"") ->  | J41: =SUM($H$14:$H41) -> 0
A42: =IF(Values_Entered,A41+1,"") ->  | J42: =SUM($H$14:$H42) -> 0
A43: =IF(Values_Entered,A42+1,"") ->  | J43: =SUM($H$14:$H43) -> 0
A44: =IF(Values_Entered,A43+1,"") ->  | J44: =SUM($H$14:$H44) -> 0
A45: =IF(Values_Entered,A44+1,"") ->  | J45: =SUM($H$14:$H45) -> 0
A46: =IF(Values_Entered,A45+1,"") ->  | J46: =SUM($H$14:$H46) -> 0
A47: =IF(Values_Entered,A46+1,"") ->  | J47: =SUM($H$14:$H47) -> 0
A48: =IF(Values_Entered,A47+1,"") ->  | J48: =SUM($H$14:$H48) -> 0
A49: =IF(Values_Entered,A48+1,"") ->  | J49: =SUM($H$14:$H49) -> 0
A50: =IF(Values_Entered,A49+1,"") ->  | J50: =SUM($H$14:$H50) -> 0
A51: =IF(Values_Entered,A50+1,"") ->  | J51: =SUM($H$14:$H51) -> 0
A52: =IF(Values_Entered,A51+1,"") ->  | J52: =SUM($H$14:$H52) -> 0
A53: =IF(Values_Entered,A52+1,"") ->  | J53: =SUM($H$14:$H53) -> 0
A54: =IF(Values_Entered,A53+1,"") ->  | J54: =SUM($H$14:$H54) -> 0
A55: =IF(Values_Entered,A54+1,"") ->  | J55: =SUM($H$14:$H55) -> 0
A56: =IF(Values_Entered,A55+1,"") ->  | J56: =SUM($H$14:$H56) -> 0
A57: =IF(Values_Entered,A56+1,"") ->  | J57: =SUM($H$14:$H57) -> 0
A58: =IF(Values_Entered,A57+1,"") ->  | J58: =SUM($H$14:$H58) -> 0
A59: =IF(Values_Entered,A58+1,"") ->  | J59: =SUM($H$14:$H59) -> 0
A60: =IF(Values_Entered,A59+1,"") ->  | J60: =SUM($H$14:$H60) -> 0
A61: =IF(Values_Entered,A60+1,"") ->  | J61: =SUM($H$14:$H61) -> 0
A62: =IF(Values_Entered,A61+1,"") ->  | J62: =SUM($H$14:$H62) -> 0
A63: =IF(Values_Entered,A62+1,"") ->  | J63: =SUM($H$14:$H63) -> 0
A64: =IF(Values_Entered,A63+1,"") ->  | J64: =SUM($H$14:$H64) -> 0
A65: =IF(Values_Entered,A64+1,"") ->  | J65: =SUM($H$14:$H65) -> 0
A66: =IF(Values_Entered,A65+1,"") ->  | J66: =SUM($H$14:$H66) -> 0
A67: =IF(Values_Entered,A66+1,"") ->  | J67: =SUM($H$14:$H67) -> 0
A68: =IF(Values_Entered,A67+1,"") ->  | J68: =SUM($H$14:$H68) -> 0
A69: =IF(Values_Entered,A68+1,"") ->  | J69: =SUM($H$14:$H69) -> 0
A70: =IF(Values_Entered,A69+1,"") ->  | J70: =SUM($H$14:$H70) -> 0
A71: =IF(Values_Entered,A70+1,"") ->  | J71: =SUM($H$14:$H71) -> 0
A72: =IF(Values_Entered,A71+1,"") ->  | J72: =SUM($H$14:$H72) -> 0
A73: =IF(Values_Entered,A72+1,"") ->  | J73: =SUM($H$14:$H73) -> 0
A74: =IF(Values_Entered,A73+1,"") ->  | J74: =SUM($H$14:$H74) -> 0
A75: =IF(Values_Entered,A74+1,"") ->  | J75: =SUM($H$14:$H75) -> 0
A76: =IF(Values_Entered,A75+1,"") ->  | J76: =SUM($H$14:$H76) -> 0
A77: =IF(Values_Entered,A76+1,"") ->  | J77: =SUM($H$14:$H77) -> 0
A78: =IF(Values_Entered,A77+1,"") ->  | B78: =IF(Pay_Num<>"",DATE(YEAR(Loan_Start),MONTH(Loan_Start)+(Pay_Num)*12/Num_Pmt_Per_Year,DAY(Loan_Start)),"") ->  | E78: =IF(AND(Pay_Num<>"",Sched_Pay+Scheduled_Extra_Payments<Beg_Bal),Scheduled_Extra_Payments,IF(AND(Pay_Num<>"",Beg_Bal-Sched_Pay>0),Beg_Bal-Sched_Pay,IF(Pay_Num<>"",0,""))) ->  | F78: =IF(AND(Pay_Num<>"",Sched_Pay+Extra_Pay<Beg_Bal),Sched_Pay+Extra_Pay,IF(Pay_Num<>"",Beg_Bal,"")) ->  | I78: =IF(AND(Pay_Num<>"",Sched_Pay+Extra_Pay<Beg_Bal),Beg_Bal-Princ,IF(Pay_Num<>"",0,"")) ->  | J78: =SUM($H$14:$H78) -> 0
A79: =IF(Values_Entered,A78+1,"") ->  | C79: =IF(Pay_Num<>"",I78,"") ->  | G79: =IF(Pay_Num<>"",Total_Pay-Int,"") ->  | H79: =IF(Pay_Num<>"",Beg_Bal*Interest_Rate/Num_Pmt_Per_Year,"") ->  | J79: =SUM($H$14:$H79) -> 0
A80: =IF(Values_Entered,A79+1,"") ->  | D80: =IF(Pay_Num<>"",Scheduled_Monthly_Payment,"") ->  | J80: =SUM($H$14:$H80) -> 0
A81: =IF(Values_Entered,A80+1,"") ->  | J81: =SUM($H$14:$H81) -> 0
A82: =IF(Values_Entered,A81+1,"") ->  | J82: =SUM($H$14:$H82) -> 0
A83: =IF(Values_Entered,A82+1,"") ->  | J83: =SUM($H$14:$H83) -> 0
A84: =IF(Values_Entered,A83+1,"") ->  | J84: =SUM($H$14:$H84) -> 0
A85: =IF(Values_Entered,A84+1,"") ->  | J85: =SUM($H$14:$H85) -> 0
A86: =IF(Values_Entered,A85+1,"") ->  | J86: =SUM($H$14:$H86) -> 0
A87: =IF(Values_Entered,A86+1,"") ->  | J87: =SUM($H$14:$H87) -> 0
A88: =IF(Values_Entered,A87+1,"") ->  | J88: =SUM($H$14:$H88) -> 0
A89: =IF(Values_Entered,A88+1,"") ->  | J89: =SUM($H$14:$H89) -> 0
A90: =IF(Values_Entered,A89+1,"") ->  | J90: =SUM($H$14:$H90) -> 0
A91: =IF(Values_Entered,A90+1,"") ->  | J91: =SUM($H$14:$H91) -> 0
A92: =IF(Values_Entered,A91+1,"") ->  | J92: =SUM($H$14:$H92) -> 0
A93: =IF(Values_Entered,A92+1,"") ->  | J93: =SUM($H$14:$H93) -> 0
A94: =IF(Values_Entered,A93+1,"") ->  | J94: =SUM($H$14:$H94) -> 0
A95: =IF(Values_Entered,A94+1,"") ->  | J95: =SUM($H$14:$H95) -> 0
A96: =IF(Values_Entered,A95+1,"") ->  | J96: =SUM($H$14:$H96) -> 0
A97: =IF(Values_Entered,A96+1,"") ->  | J97: =SUM($H$14:$H97) -> 0
A98: =IF(Values_Entered,A97+1,"") ->  | J98: =SUM($H$14:$H98) -> 0
A99: =IF(Values_Entered,A98+1,"") ->  | J99: =SUM($H$14:$H99) -> 0
A100: =IF(Values_Entered,A99+1,"") ->  | J100: =SUM($H$14:$H100) -> 0
A101: =IF(Values_Entered,A100+1,"") ->  | J101: =SUM($H$14:$H101) -> 0
A102: =IF(Values_Entered,A101+1,"") ->  | J102: =SUM($H$14:$H102) -> 0
A103: =IF(Values_Entered,A102+1,"") ->  | J103: =SUM($H$14:$H103) -> 0
A104: =IF(Values_Entered,A103+1,"") ->  | J104: =SUM($H$14:$H104) -> 0
A105: =IF(Values_Entered,A104+1,"") ->  | J105: =SUM($H$14:$H105) -> 0
A106: =IF(Values_Entered,A105+1,"") ->  | J106: =SUM($H$14:$H106) -> 0
A107: =IF(Values_Entered,A106+1,"") ->  | J107: =SUM($H$14:$H107) -> 0
A108: =IF(Values_Entered,A107+1,"") ->  | J108: =SUM($H$14:$H108) -> 0
A109: =IF(Values_Entered,A108+1,"") ->  | J109: =SUM($H$14:$H109) -> 0
A110: =IF(Values_Entered,A109+1,"") ->  | J110: =SUM($H$14:$H110) -> 0
A111: =IF(Values_Entered,A110+1,"") ->  | J111: =SUM($H$14:$H111) -> 0
A112: =IF(Values_Entered,A111+1,"") ->  | J112: =SUM($H$14:$H112) -> 0
A113: =IF(Values_Entered,A112+1,"") ->  | J113: =SUM($H$14:$H113) -> 0
A114: =IF(Values_Entered,A113+1,"") ->  | J114: =SUM($H$14:$H114) -> 0
A115: =IF(Values_Entered,A114+1,"") ->  | J115: =SUM($H$14:$H115) -> 0
A116: =IF(Values_Entered,A115+1,"") ->  | J116: =SUM($H$14:$H116) -> 0
A117: =IF(Values_Entered,A116+1,"") ->  | J117: =SUM($H$14:$H117) -> 0
A118: =IF(Values_Entered,A117+1,"") ->  | J118: =SUM($H$14:$H118) -> 0
A119: =IF(Values_Entered,A118+1,"") ->  | J119: =SUM($H$14:$H119) -> 0
A120: =IF(Values_Entered,A119+1,"") ->  | J120: =SUM($H$14:$H120) -> 0
A121: =IF(Values_Entered,A120+1,"") ->  | J121: =SUM($H$14:$H121) -> 0
A122: =IF(Values_Entered,A121+1,"") ->  | J122: =SUM($H$14:$H122) -> 0
A123: =IF(Values_Entered,A122+1,"") ->  | J123: =SUM($H$14:$H123) -> 0
A124: =IF(Values_Entered,A123+1,"") ->  | J124: =SUM($H$14:$H124) -> 0
A125: =IF(Values_Entered,A124+1,"") ->  | J125: =SUM($H$14:$H125) -> 0
A126: =IF(Values_Entered,A125+1,"") ->  | J126: =SUM($H$14:$H126) -> 0
A127: =IF(Values_Entered,A126+1,"") ->  | J127: =SUM($H$14:$H127) -> 0
A128: =IF(Values_Entered,A127+1,"") ->  | J128: =SUM($H$14:$H128) -> 0
A129: =IF(Values_Entered,A128+1,"") ->  | J129: =SUM($H$14:$H129) -> 0
A130: =IF(Values_Entered,A129+1,"") ->  | J130: =SUM($H$14:$H130) -> 0
A131: =IF(Values_Entered,A130+1,"") ->  | J131: =SUM($H$14:$H131) -> 0
A132: =IF(Values_Entered,A131+1,"") ->  | J132: =SUM($H$14:$H132) -> 0
A133: =IF(Values_Entered,A132+1,"") ->  | J133: =SUM($H$14:$H133) -> 0
A134: =IF(Values_Entered,A133+1,"") ->  | J134: =SUM($H$14:$H134) -> 0
A135: =IF(Values_Entered,A134+1,"") ->  | J135: =SUM($H$14:$H135) -> 0
A136: =IF(Values_Entered,A135+1,"") ->  | J136: =SUM($H$14:$H136) -> 0
A137: =IF(Values_Entered,A136+1,"") ->  | J137: =SUM($H$14:$H137) -> 0
A138: =IF(Values_Entered,A137+1,"") ->  | J138: =SUM($H$14:$H138) -> 0
A139: =IF(Values_Entered,A138+1,"") ->  | J139: =SUM($H$14:$H139) -> 0
A140: =IF(Values_Entered,A139+1,"") ->  | J140: =SUM($H$14:$H140) -> 0
A141: =IF(Values_Entered,A140+1,"") ->  | J141: =SUM($H$14:$H141) -> 0
A142: =IF(Values_Entered,A141+1,"") ->  | B142: =IF(Pay_Num<>"",DATE(YEAR(Loan_Start),MONTH(Loan_Start)+(Pay_Num)*12/Num_Pmt_Per_Year,DAY(Loan_Start)),"") ->  | E142: =IF(AND(Pay_Num<>"",Sched_Pay+Scheduled_Extra_Payments<Beg_Bal),Scheduled_Extra_Payments,IF(AND(Pay_Num<>"",Beg_Bal-Sched_Pay>0),Beg_Bal-Sched_Pay,IF(Pay_Num<>"",0,""))) ->  | F142: =IF(AND(Pay_Num<>"",Sched_Pay+Extra_Pay<Beg_Bal),Sched_Pay+Extra_Pay,IF(Pay_Num<>"",Beg_Bal,"")) ->  | I142: =IF(AND(Pay_Num<>"",Sched_Pay+Extra_Pay<Beg_Bal),Beg_Bal-Princ,IF(Pay_Num<>"",0,"")) ->  | J142: =SUM($H$14:$H142) -> 0
A143: =IF(Values_Entered,A142+1,"") ->  | C143: =IF(Pay_Num<>"",I142,"") ->  | G143: =IF(Pay_Num<>"",Total_Pay-Int,"") ->  | H143: =IF(Pay_Num<>"",Beg_Bal*Interest_Rate/Num_Pmt_Per_Year,"") ->  | J143: =SUM($H$14:$H143) -> 0
A144: =IF(Values_Entered,A143+1,"") ->  | D144: =IF(Pay_Num<>"",Scheduled_Monthly_Payment,"") ->  | J144: =SUM($H$14:$H144) -> 0
A145: =IF(Values_Entered,A144+1,"") ->  | J145: =SUM($H$14:$H145) -> 0
A146: =IF(Values_Entered,A145+1,"") ->  | J146: =SUM($H$14:$H146) -> 0
A147: =IF(Values_Entered,A146+1,"") ->  | J147: =SUM($H$14:$H147) -> 0
A148: =IF(Values_Entered,A147+1,"") ->  | J148: =SUM($H$14:$H148) -> 0
A149: =IF(Values_Entered,A148+1,"") ->  | J149: =SUM($H$14:$H149) -> 0
A150: =IF(Values_Entered,A149+1,"") ->  | J150: =SUM($H$14:$H150) -> 0
A151: =IF(Values_Entered,A150+1,"") ->  | J151: =SUM($H$14:$H151) -> 0
A152: =IF(Values_Entered,A151+1,"") ->  | J152: =SUM($H$14:$H152) -> 0
A153: =IF(Values_Entered,A152+1,"") ->  | J153: =SUM($H$14:$H153) -> 0
A154: =IF(Values_Entered,A153+1,"") ->  | J154: =SUM($H$14:$H154) -> 0
A155: =IF(Values_Entered,A154+1,"") ->  | J155: =SUM($H$14:$H155) -> 0
A156: =IF(Values_Entered,A155+1,"") ->  | J156: =SUM($H$14:$H156) -> 0
A157: =IF(Values_Entered,A156+1,"") ->  | J157: =SUM($H$14:$H157) -> 0
A158: =IF(Values_Entered,A157+1,"") ->  | J158: =SUM($H$14:$H158) -> 0
A159: =IF(Values_Entered,A158+1,"") ->  | J159: =SUM($H$14:$H159) -> 0
A160: =IF(Values_Entered,A159+1,"") ->  | J160: =SUM($H$14:$H160) -> 0
A161: =IF(Values_Entered,A160+1,"") ->  | J161: =SUM($H$14:$H161) -> 0
A162: =IF(Values_Entered,A161+1,"") ->  | J162: =SUM($H$14:$H162) -> 0
A163: =IF(Values_Entered,A162+1,"") ->  | J163: =SUM($H$14:$H163) -> 0
A164: =IF(Values_Entered,A163+1,"") ->  | J164: =SUM($H$14:$H164) -> 0
A165: =IF(Values_Entered,A164+1,"") ->  | J165: =SUM($H$14:$H165) -> 0
A166: =IF(Values_Entered,A165+1,"") ->  | J166: =SUM($H$14:$H166) -> 0
A167: =IF(Values_Entered,A166+1,"") ->  | J167: =SUM($H$14:$H167) -> 0
A168: =IF(Values_Entered,A167+1,"") ->  | J168: =SUM($H$14:$H168) -> 0
A169: =IF(Values_Entered,A168+1,"") ->  | J169: =SUM($H$14:$H169) -> 0
A170: =IF(Values_Entered,A169+1,"") ->  | J170: =SUM($H$14:$H170) -> 0
A171: =IF(Values_Entered,A170+1,"") ->  | J171: =SUM($H$14:$H171) -> 0
A172: =IF(Values_Entered,A171+1,"") ->  | J172: =SUM($H$14:$H172) -> 0
A173: =IF(Values_Entered,A172+1,"") ->  | J173: =SUM($H$14:$H173) -> 0
A174: =IF(Values_Entered,A173+1,"") ->  | J174: =SUM($H$14:$H174) -> 0
A175: =IF(Values_Entered,A174+1,"") ->  | J175: =SUM($H$14:$H175) -> 0
A176: =IF(Values_Entered,A175+1,"") ->  | J176: =SUM($H$14:$H176) -> 0
A177: =IF(Values_Entered,A176+1,"") ->  | J177: =SUM($H$14:$H177) -> 0
A178: =IF(Values_Entered,A177+1,"") ->  | J178: =SUM($H$14:$H178) -> 0
A179: =IF(Values_Entered,A178+1,"") ->  | J179: =SUM($H$14:$H179) -> 0
A180: =IF(Values_Entered,A179+1,"") ->  | J180: =SUM($H$14:$H180) -> 0
A181: =IF(Values_Entered,A180+1,"") ->  | J181: =SUM($H$14:$H181) -> 0
A182: =IF(Values_Entered,A181+1,"") ->  | J182: =SUM($H$14:$H182) -> 0
A183: =IF(Values_Entered,A182+1,"") ->  | J183: =SUM($H$14:$H183) -> 0
A184: =IF(Values_Entered,A183+1,"") ->  | J184: =SUM($H$14:$H184) -> 0
A185: =IF(Values_Entered,A184+1,"") ->  | J185: =SUM($H$14:$H185) -> 0
A186: =IF(Values_Entered,A185+1,"") ->  | J186: =SUM($H$14:$H186) -> 0
A187: =IF(Values_Entered,A186+1,"") ->  | J187: =SUM($H$14:$H187) -> 0
A188: =IF(Values_Entered,A187+1,"") ->  | J188: =SUM($H$14:$H188) -> 0
A189: =IF(Values_Entered,A188+1,"") ->  | J189: =SUM($H$14:$H189) -> 0
A190: =IF(Values_Entered,A189+1,"") ->  | J190: =SUM($H$14:$H190) -> 0
A191: =IF(Values_Entered,A190+1,"") ->  | J191: =SUM($H$14:$H191) -> 0
A192: =IF(Values_Entered,A191+1,"") ->  | J192: =SUM($H$14:$H192) -> 0
A193: =IF(Values_Entered,A192+1,"") ->  | J193: =SUM($H$14:$H193) -> 0
A194: =IF(Values_Entered,A193+1,"") ->  | J194: =SUM($H$14:$H194) -> 0
A195: =IF(Values_Entered,A194+1,"") ->  | J195: =SUM($H$14:$H195) -> 0
A196: =IF(Values_Entered,A195+1,"") ->  | J196: =SUM($H$14:$H196) -> 0
A197: =IF(Values_Entered,A196+1,"") ->  | J197: =SUM($H$14:$H197) -> 0
A198: =IF(Values_Entered,A197+1,"") ->  | J198: =SUM($H$14:$H198) -> 0
A199: =IF(Values_Entered,A198+1,"") ->  | J199: =SUM($H$14:$H199) -> 0
A200: =IF(Values_Entered,A199+1,"") ->  | J200: =SUM($H$14:$H200) -> 0
A201: =IF(Values_Entered,A200+1,"") ->  | J201: =SUM($H$14:$H201) -> 0
A202: =IF(Values_Entered,A201+1,"") ->  | J202: =SUM($H$14:$H202) -> 0
A203: =IF(Values_Entered,A202+1,"") ->  | J203: =SUM($H$14:$H203) -> 0
... 170 more rows
